Workbook

Sheet Main
B10: 2023-08-07
B12: Sheet No. | C12: Template Name | D12: Summary
B13: 1 | C13: Future Intra | D13: For Intraday trading in F&O segment
B14: 2 | C14: Cash Intra | D14: For Intraday trading in cash market segment
B15: 3 | C15: Mid-cap Intra | D15: For Intraday trading in Mid-cap stocks
B16: 4 | C16: Bulk Deals | D16: Reveals Bulk Deals carried on NSE & BSE
B17: 5 | C17: Call Tracker
K27: `

Sheet Future Intra
M5: Back to Main Page
A6: FOR INTRA DAY TRADING | L6: 2023-07-27
A9: Sr.no | B9: Sector | C9: Scrip | D9: Expiry Date | E9: CLOSE RATE | F9: Pivot Point | G9: Supports | J9: Resistances
E10: Point | F10: Point | G10: S1 | H10: S2 | I10: S3 | J10: R1 | K10: R2 | L10: R3 | M10: HIGH | N10: LOW | O10: OI | P10: % Change in OI
A11: 1 | B11: Index | C11: NIFTY | D11: 2023-08-31 | E11: 19576.25 | F11: 19553.00 | G11: 19509.35 | H11: 19442.45 | I11: 19398.80 | J11: 19619.90 | K11: 19663.55 | L11: 19730.45 | M11: 19596.65 | N11: 19486.1 | O11: 13055850 | P11: 4%
A12: 2 | B12: Index | C12: BANKNIFTY | D12: 2023-08-31 | E12: 45001.60 | F12: 44950.18 | G12: 44672.42 | H12: 44343.23 | I12: 44065.47 | J12: 45279.37 | K12: 45557.13 | L12: 45886.32 | M12: 45227.95 | N12: 44621 | O12: 2007660 | P12: -2%
A13: 3 | B13: Index | C13: FINNIFTY | D13: 2023-08-29 | E13: 20082.05 | F13: 20049.72 | G13: 19974.48 | H13: 19866.92 | I13: 19791.68 | J13: 20157.28 | K13: 20232.52 | L13: 20340.08 | M13: 20124.95 | N13: 19942.15 | O13: 62520 | P13: -14%
A14: 4 | B14: Index | C14: MIDCPNIFTY | D14: 2023-08-30 | E14: 8585.35 | F14: 8565.83 | G14: 8521.37 | H14: 8457.38 | I14: 8412.92 | J14: 8629.82 | K14: 8674.28 | L14: 8738.27 | M14: 8610.3 | N14: 8501.85 | O14: 78750 | P14: 15%
A15: 5 | B15: Chemical | C15: AARTIIND | D15: 2023-08-31 | E15: 476.40 | F15: 477.48 | G15: 474.47 | H15: 472.53 | I15: 469.52 | J15: 479.42 | K15: 482.43 | L15: 484.37 | M15: 480.5 | N15: 475.55 | O15: 11132000 | P15: 1%
A16: 6 | B16: Capital_Goods | C16: ABB | D16: 2023-08-31 | E16: 4461.30 | F16: 4428.43 | G16: 4382.87 | H16: 4304.43 | I16: 4258.87 | J16: 4506.87 | K16: 4552.43 | L16: 4630.87 | M16: 4474 | N16: 4350 | O16: 1436500 | P16: 3%
A17: 7 | B17: Pharma | C17: ABBOTINDIA | D17: 2023-08-31 | E17: 24047.00 | F17: 24237.57 | G17: 23784.53 | H17: 23522.07 | I17: 23069.03 | J17: 24500.03 | K17: 24953.07 | L17: 25215.53 | M17: 24690.6 | N17: 23975.1 | O17: 74240 | P17: 6%
A18: 8 | B18: Others | C18: ABCAPITAL | D18: 2023-08-31 | E18: 187.70 | F18: 189.82 | G18: 184.38 | H18: 181.07 | I18: 175.63 | J18: 193.13 | K18: 198.57 | L18: 201.88 | M18: 195.25 | N18: 186.5 | O18: 25363800 | P18: 14%
A19: 9 | B19: Textile | C19: ABFRL | D19: 2023-08-31 | E19: 210.90 | F19: 214.18 | G19: 201.92 | H19: 192.93 | I19: 180.67 | J19: 223.17 | K19: 235.43 | L19: 244.42 | M19: 226.45 | N19: 205.2 | O19: 29382600 | P19: 6%
A20: 10 | B20: Cement | C20: ACC | D20: 2023-08-31 | E20: 2052.20 | F20: 2048.72 | G20: 2031.33 | H20: 2010.47 | I20: 1993.08 | J20: 2069.58 | K20: 2086.97 | L20: 2107.83 | M20: 2066.1 | N20: 2027.85 | O20: 6453600 | P20: -1%
A21: 11 | B21: Others | C21: ADANIENT | D21: 2023-08-31 | E21: 2553.15 | F21: 2546.25 | G21: 2519.50 | H21: 2485.85 | I21: 2459.10 | J21: 2579.90 | K21: 2606.65 | L21: 2640.30 | M21: 2573 | N21: 2512.6 | O21: 11997900 | P21: -3%
A22: 12 | B22: Others | C22: ADANIPORTS | D22: 2023-08-31 | E22: 780.95 | F22: 779.80 | G22: 773.80 | H22: 766.65 | I22: 760.65 | J22: 786.95 | K22: 792.95 | L22: 800.10 | M22: 785.8 | N22: 772.65 | O22: 35838400 | P22: -0%
A23: 13 | B23: Pharma | C23: ALKEM | D23: 2023-08-31 | E23: 4116.65 | F23: 4093.60 | G23: 4053.05 | H23: 3989.45 | I23: 3948.90 | J23: 4157.20 | K23: 4197.75 | L23: 4261.35 | M23: 4134.15 | N23: 4030 | O23: 699600 | P23: -1%
A24: 14 | B24: Cement | C24: AMBUJACEM | D24: 2023-08-31 | E24: 474.35 | F24: 475.65 | G24: 471.25 | H24: 468.15 | I24: 463.75 | J24: 478.75 | K24: 483.15 | L24: 486.25 | M24: 480.05 | N24: 472.55 | O24: 62485200 | P24: -1%
A25: 15 | B25: Others | C25: APOLLOHOSP | D25: 2023-08-31 | E25: 5008.05 | F25: 5014.73 | G25: 4979.62 | H25: 4951.18 | I25: 4916.07 | J25: 5043.17 | K25: 5078.28 | L25: 5106.72 | M25: 5049.85 | N25: 4986.3 | O25: 2384875 | P25: 2%
A26: 16 | B26: Automobile | C26: APOLLOTYRE | D26: 2023-08-31 | E26: 439.80 | F26: 437.80 | G26: 432.15 | H26: 424.50 | I26: 418.85 | J26: 445.45 | K26: 451.10 | L26: 458.75 | M26: 443.45 | N26: 430.15 | O26: 9140900 | P26: 3%
A27: 17 | B27: Automobile | C27: ASHOKLEY | D27: 2023-08-31 | E27: 183.85 | F27: 183.62 | G27: 182.03 | H27: 180.22 | I27: 178.63 | J27: 185.43 | K27: 187.02 | L27: 188.83 | M27: 185.2 | N27: 181.8 | O27: 83060000 | P27: 1%
A28: 18 | B28: FMCG | C28: ASIANPAINT | D28: 2023-08-31 | E28: 3353.25 | F28: 3358.85 | G28: 3333.70 | H28: 3314.15 | I28: 3289.00 | J28: 3378.40 | K28: 3403.55 | L28: 3423.10 | M28: 3384 | N28: 3339.3 | O28: 5011400 | P28: -1%
A29: 19 | B29: Others | C29: ASTRAL | D29: 2023-08-31 | E29: 2041.30 | F29: 2039.87 | G29: 2007.18 | H29: 1973.07 | I29: 1940.38 | J29: 2073.98 | K29: 2106.67 | L29: 2140.78 | M29: 2072.55 | N29: 2005.75 | O29: 3297128 | P29: 12%
A30: 20 | B30: Others | C30: ATUL | D30: 2023-08-31 | E30: 7107.45 | F30: 7085.62 | G30: 7026.83 | H30: 6946.22 | I30: 6887.43 | J30: 7166.23 | K30: 7225.02 | L30: 7305.63 | M30: 7144.4 | N30: 7005 | O30: 429750 | P30: 0%
A31: 21 | B31: Banking | C31: AUBANK | D31: 2023-08-31 | E31: 738.35 | F31: 736.47 | G31: 730.18 | H31: 722.02 | I31: 715.73 | J31: 744.63 | K31: 750.92 | L31: 759.08 | M31: 742.75 | N31: 728.3 | O31: 12317000 | P31: -3%
A32: 22 | B32: Pharma | C32: AUROPHARMA | D32: 2023-08-31 | E32: 846.85 | F32: 848.73 | G32: 835.92 | H32: 824.98 | I32: 812.17 | J32: 859.67 | K32: 872.48 | L32: 883.42 | M32: 861.55 | N32: 837.8 | O32: 13910600 | P32: 0%
A33: 23 | B33: Banking | C33: AXISBANK | D33: 2023-08-31 | E33: 958.75 | F33: 953.18 | G33: 945.42 | H33: 932.08 | I33: 924.32 | J33: 966.52 | K33: 974.28 | L33: 987.62 | M33: 960.95 | N33: 939.85 | O33: 42192500 | P33: -8%
A34: 24 | B34: Automobile | C34: BAJAJ-AUTO | D34: 2023-08-31 | E34: 4746.30 | F34: 4794.40 | G34: 4688.50 | H34: 4630.70 | I34: 4524.80 | J34: 4852.20 | K34: 4958.10 | L34: 5015.90 | M34: 4900.3 | N34: 4736.6 | O34: 2429750 | P34: 2%
A35: 25 | B35: Finance | C35: BAJAJFINSV | D35: 2023-08-31 | E35: 1496.75 | F35: 1497.88 | G35: 1481.27 | H35: 1465.78 | I35: 1449.17 | J35: 1513.37 | K35: 1529.98 | L35: 1545.47 | M35: 1514.5 | N35: 1482.4 | O35: 10562000 | P35: 6%
A36: 26 | B36: Finance | C36: BAJFINANCE | D36: 2023-08-31 | E36: 7194.55 | F36: 7185.27 | G36: 7132.33 | H36: 7070.12 | I36: 7017.18 | J36: 7247.48 | K36: 7300.42 | L36: 7362.63 | M36: 7238.2 | N36: 7123.05 | O36: 5036500 | P36: -2%
A37: 27 | B37: Automobile | C37: BALKRISIND | D37: 2023-08-31 | E37: 2487.40 | F37: 2489.85 | G37: 2471.75 | H37: 2456.10 | I37: 2438.00 | J37: 2505.50 | K37: 2523.60 | L37: 2539.25 | M37: 2507.95 | N37: 2474.2 | O37: 2065200 | P37: 2%
A38: 28 | B38: Others | C38: BALRAMCHIN | D38: 2023-08-31 | E38: 415.20 | F38: 413.68 | G38: 410.37 | H38: 405.53 | I38: 402.22 | J38: 418.52 | K38: 421.83 | L38: 426.67 | M38: 417 | N38: 408.85 | O38: 11483200 | P38: 8%
A39: 29 | B39: Banking | C39: BANDHANBNK | D39: 2023-08-31 | E39: 228.25 | F39: 228.13 | G39: 226.12 | H39: 223.98 | I39: 221.97 | J39: 230.27 | K39: 232.28 | L39: 234.42 | M39: 230.15 | N39: 226 | O39: 83442500 | P39: -1%
A40: 30 | B40: Banking | C40: BANKBARODA | D40: 2023-08-31 | E40: 192.15 | F40: 193.43 | G40: 189.62 | H40: 187.08 | I40: 183.27 | J40: 195.97 | K40: 199.78 | L40: 202.32 | M40: 197.25 | N40: 190.9 | O40: 118281150 | P40: 1%
A41: 31 | B41: FMCG | C41: BATAINDIA | D41: 2023-08-31 | E41: 1745.95 | F41: 1740.43 | G41: 1726.52 | H41: 1707.08 | I41: 1693.17 | J41: 1759.87 | K41: 1773.78 | L41: 1793.22 | M41: 1754.35 | N41: 1721 | O41: 1812375 | P41: 1%
A42: 32 | B42: Capital_Goods | C42: BEL | D42: 2023-08-31 | E42: 127.65 | F42: 127.22 | G42: 125.93 | H42: 124.22 | I42: 122.93 | J42: 128.93 | K42: 130.22 | L42: 131.93 | M42: 128.5 | N42: 125.5 | O42: 81874800 | P42: 3%
A43: 33 | B43: FMCG | C43: BERGEPAINT | D43: 2023-08-31 | E43: 698.25 | F43: 697.97 | G43: 691.53 | H43: 684.82 | I43: 678.38 | J43: 704.68 | K43: 711.12 | L43: 717.83 | M43: 704.4 | N43: 691.25 | O43: 8186200 | P43: -0%
A44: 34 | B44: Automobile | C44: BHARATFORG | D44: 2023-08-31 | E44: 918.95 | F44: 918.35 | G44: 910.70 | H44: 902.45 | I44: 894.80 | J44: 926.60 | K44: 934.25 | L44: 942.50 | M44: 926 | N44: 910.1 | O44: 7755000 | P44: -0%
A45: 35 | B45: Telecom | C45: BHARTIARTL | D45: 2023-08-31 | E45: 889.55 | F45: 882.68 | G45: 872.87 | H45: 856.18 | I45: 846.37 | J45: 899.37 | K45: 909.18 | L45: 925.87 | M45: 892.5 | N45: 866 | O45: 36485700 | P45: -8%
A46: 36 | B46: Capital_Goods | C46: BHEL | D46: 2023-08-31 | E46: 99.00 | F46: 100.20 | G46: 97.30 | H46: 95.60 | I46: 92.70 | J46: 101.90 | K46: 104.80 | L46: 106.50 | M46: 103.1 | N46: 98.5 | O46: 119343000 | P46: 5%
A47: 37 | B47: Pharma | C47: BIOCON | D47: 2023-08-31 | E47: 255.50 | F47: 256.67 | G47: 253.53 | H47: 251.57 | I47: 248.43 | J47: 258.63 | K47: 261.77 | L47: 263.73 | M47: 259.8 | N47: 254.7 | O47: 32637500 | P47: 2%
A48: 38 | B48: Automobile | C48: BOSCHLTD | D48: 2023-08-31 | E48: 18338.40 | F48: 18332.32 | G48: 18211.53 | H48: 18084.67 | I48: 17963.88 | J48: 18459.18 | K48: 18579.97 | L48: 18706.83 | M48: 18453.1 | N48: 18205.45 | O48: 215950 | P48: -1%
A49: 39 | B49: Oil_Gas | C49: BPCL | D49: 2023-08-31 | E49: 359.05 | F49: 362.10 | G49: 355.45 | H49: 351.85 | I49: 345.20 | J49: 365.70 | K49: 372.35 | L49: 375.95 | M49: 368.75 | N49: 358.5 | O49: 30384000 | P49: 3%
A50: 40 | B50: FMCG | C50: BRITANNIA | D50: 2023-08-31 | E50: 4816.85 | F50: 4813.28 | G50: 4781.57 | H50: 4746.28 | I50: 4714.57 | J50: 4848.57 | K50: 4880.28 | L50: 4915.57 | M50: 4845 | N50: 4778 | O50: 2104000 | P50: 5%
A51: 41 | B51: Technology | C51: BSOFT | D51: 2023-08-31 | E51: 442.20 | F51: 441.43 | G51: 437.97 | H51: 433.73 | I51: 430.27 | J51: 445.67 | K51: 449.13 | L51: 453.37 | M51: 444.9 | N51: 437.2 | O51: 8596000 | P51: 3%
A52: 42 | B52: Banking | C52: CANBK | D52: 2023-08-31 | E52: 330.75 | F52: 331.65 | G52: 327.10 | H52: 323.45 | I52: 318.90 | J52: 335.30 | K52: 339.85 | L52: 343.50 | M52: 336.2 | N52: 328 | O52: 48675600 | P52: -0%
A53: 43 | B53: Finance | C53: CANFINHOME | D53: 2023-08-31 | E53: 739.10 | F53: 738.50 | G53: 730.85 | H53: 722.60 | I53: 714.95 | J53: 746.75 | K53: 754.40 | L53: 762.65 | M53: 746.15 | N53: 730.25 | O53: 5828550 | P53: 0%
A54: 44 | B54: Others | C54: CHAMBLFERT | D54: 2023-08-31 | E54: 271.65 | F54: 271.78 | G54: 268.97 | H54: 266.28 | I54: 263.47 | J54: 274.47 | K54: 277.28 | L54: 279.97 | M54: 274.6 | N54: 269.1 | O54: 12990300 | P54: 3%
A55: 45 | B55: Finance | C55: CHOLAFIN | D55: 2023-08-31 | E55: 1090.85 | F55: 1089.13 | G55: 1081.82 | H55: 1072.78 | I55: 1065.47 | J55: 1098.17 | K55: 1105.48 | L55: 1114.52 | M55: 1096.45 | N55: 1080.1 | O55: 11441250 | P55: -1%
A56: 46 | B56: Pharma | C56: CIPLA | D56: 2023-08-31 | E56: 1210.55 | F56: 1208.30 | G56: 1179.80 | H56: 1149.05 | I56: 1120.55 | J56: 1239.05 | K56: 1267.55 | L56: 1298.30 | M56: 1236.8 | N56: 1177.55 | O56: 11241750 | P56: 9%
A57: 47 | B57: Others | C57: COALINDIA | D57: 2023-08-31 | E57: 231.40 | F57: 230.88 | G57: 227.87 | H57: 224.33 | I57: 221.32 | J57: 234.42 | K57: 237.43 | L57: 240.97 | M57: 233.9 | N57: 227.35 | O57: 61941600 | P57: 1%
A58: 48 | B58: Technology | C58: COFORGE | D58: 2023-08-31 | E58: 4898.40 | F58: 4860.63 | G58: 4815.27 | H58: 4732.13 | I58: 4686.77 | J58: 4943.77 | K58: 4989.13 | L58: 5072.27 | M58: 4906 | N58: 4777.5 | O58: 661200 | P58: -5%
A59: 49 | B59: FMCG | C59: COLPAL | D59: 2023-08-31 | E59: 2010.00 | F59: 2020.88 | G59: 1983.12 | H59: 1956.23 | I59: 1918.47 | J59: 2047.77 | K59: 2085.53 | L59: 2112.42 | M59: 2058.65 | N59: 1994 | O59: 2469600 | P59: -4%
A60: 50 | B60: Others | C60: CONCOR | D60: 2023-08-31 | E60: 695.05 | F60: 693.77 | G60: 689.43 | H60: 683.82 | I60: 679.48 | J60: 699.38 | K60: 703.72 | L60: 709.33 | M60: 698.1 | N60: 688.15 | O60: 4683000 | P60: -0%
A61: 51 | B61: Others | C61: COROMANDEL | D61: 2023-08-31 | E61: 1048.70 | F61: 1047.58 | G61: 1037.67 | H61: 1026.63 | I61: 1016.72 | J61: 1058.62 | K61: 1068.53 | L61: 1079.57 | M61: 1057.5 | N61: 1036.55 | O61: 2042600 | P61: 2%
A62: 52 | B62: Capital_Goods | C62: CROMPTON | D62: 2023-08-31 | E62: 299.35 | F62: 298.92 | G62: 295.23 | H62: 291.12 | I62: 287.43 | J62: 303.03 | K62: 306.72 | L62: 310.83 | M62: 302.6 | N62: 294.8 | O62: 14682600 | P62: 2%
A63: 53 | B63: Banking | C63: CUB | D63: 2023-08-31 | E63: 132.70 | F63: 132.45 | G63: 131.30 | H63: 129.90 | I63: 128.75 | J63: 133.85 | K63: 135.00 | L63: 136.40 | M63: 133.6 | N63: 131.05 | O63: 36545000 | P63: 2%
A64: 54 | B64: Capital_Goods | C64: CUMMINSIND | D64: 2023-08-31 | E64: 1793.70 | F64: 1820.33 | G64: 1724.92 | H64: 1656.13 | I64: 1560.72 | J64: 1889.12 | K64: 1984.53 | L64: 2053.32 | M64: 1915.75 | N64: 1751.55 | O64: 4808400 | P64: 14%
A65: 55 | B65: FMCG | C65: DABUR | D65: 2023-08-31 | E65: 573.95 | F65: 580.67 | G65: 563.03 | H65: 552.12 | I65: 534.48 | J65: 591.58 | K65: 609.22 | L65: 620.13 | M65: 598.3 | N65: 569.75 | O65: 15686250 | P65: 1%
A66: 56 | B66: Cement | C66: DALBHARAT | D66: 2023-08-31 | E66: 2002.15 | F66: 1998.07 | G66: 1982.03 | H66: 1961.92 | I66: 1945.88 | J66: 2018.18 | K66: 2034.22 | L66: 2054.33 | M66: 2014.1 | N66: 1977.95 | O66: 1766500 | P66: -0%
A67: 57 | B67: Chemical | C67: DEEPAKNTR | D67: 2023-08-31 | E67: 2053.00 | F67: 2023.93 | G67: 1984.32 | H67: 1915.63 | I67: 1876.02 | J67: 2092.62 | K67: 2132.23 | L67: 2200.92 | M67: 2063.55 | N67: 1955.25 | O67: 2286000 | P67: -3%
A68: 58 | B68: Others | C68: DELTACORP | D68: 2023-08-31 | E68: 188.05 | F68: 189.23 | G68: 185.87 | H68: 183.68 | I68: 180.32 | J68: 191.42 | K68: 194.78 | L68: 196.97 | M68: 192.6 | N68: 187.05 | O68: 11558400 | P68: 4%
A69: 59 | B69: Pharma | C69: DIVISLAB | D69: 2023-08-31 | E69: 3740.55 | F69: 3737.43 | G69: 3721.87 | H69: 3703.18 | I69: 3687.62 | J69: 3756.12 | K69: 3771.68 | L69: 3790.37 | M69: 3753 | N69: 3718.75 | O69: 2737200 | P69: -1%
A70: 60 | B70: Others | C70: DIXON | D70: 2023-08-31 | E70: 4617.25 | F70: 4645.28 | G70: 4460.57 | H70: 4303.88 | I70: 4119.17 | J70: 4801.97 | K70: 4986.68 | L70: 5143.37 | M70: 4830 | N70: 4488.6 | O70: 1136400 | P70: 10%
A71: 61 | B71: Realty | C71: DLF | D71: 2023-08-31 | E71: 493.35 | F71: 494.02 | G71: 490.58 | H71: 487.82 | I71: 484.38 | J71: 496.78 | K71: 500.22 | L71: 502.98 | M71: 497.45 | N71: 491.25 | O71: 42426450 | P71: 0%
A72: 62 | B72: Pharma | C72: DRREDDY | D72: 2023-08-31 | E72: 5691.30 | F72: 5705.03 | G72: 5661.27 | H72: 5631.23 | I72: 5587.47 | J72: 5735.07 | K72: 5778.83 | L72: 5808.87 | M72: 5748.8 | N72: 5675 | O72: 2741750 | P72: 1%
A73: 63 | B73: Automobile | C73: EICHERMOT | D73: 2023-08-31 | E73: 3339.40 | F73: 3378.72 | G73: 3292.48 | H73: 3245.57 | I73: 3159.33 | J73: 3425.63 | K73: 3511.87 | L73: 3558.78 | M73: 3464.95 | N73: 3331.8 | O73: 4557175 | P73: 8%
A74: 64 | B74: Automobile | C74: ESCORTS | D74: 2023-08-31 | E74: 2591.25 | F74: 2587.45 | G74: 2564.90 | H74: 2538.55 | I74: 2516.00 | J74: 2613.80 | K74: 2636.35 | L74: 2662.70 | M74: 2610 | N74: 2561.1 | O74: 1305150 | P74: -4%
A75: 65 | B75: Automobile | C75: EXIDEIND | D75: 2023-08-31 | E75: 258.55 | F75: 258.98 | G75: 256.17 | H75: 253.78 | I75: 250.97 | J75: 261.37 | K75: 264.18 | L75: 266.57 | M75: 261.8 | N75: 256.6 | O75: 19368000 | P75: -1%
A76: 66 | B76: Banking | C76: FEDERALBNK | D76: 2023-08-31 | E76: 134.50 | F76: 133.80 | G76: 132.15 | H76: 129.80 | I76: 128.15 | J76: 136.15 | K76: 137.80 | L76: 140.15 | M76: 135.45 | N76: 131.45 | O76: 120180000 | P76: 1%
A77: 67 | B77: Oil_Gas | C77: GAIL | D77: 2023-08-31 | E77: 116.15 | F77: 116.28 | G77: 114.92 | H77: 113.68 | I77: 112.32 | J77: 117.52 | K77: 118.88 | L77: 120.12 | M77: 117.65 | N77: 115.05 | O77: 134559900 | P77: 0%
A78: 68 | B78: Pharma | C78: GLENMARK | D78: 2023-08-31 | E78: 808.80 | F78: 802.78 | G78: 794.77 | H78: 780.73 | I78: 772.72 | J78: 816.82 | K78: 824.83 | L78: 838.87 | M78: 810.8 | N78: 788.75 | O78: 6546750 | P78: -2%
A79: 69 | B79: Infrastructure | C79: GMRINFRA | D79: 2023-08-31 | E79: 51.85 | F79: 51.67 | G79: 51.28 | H79: 50.72 | I79: 50.33 | J79: 52.23 | K79: 52.62 | L79: 53.18 | M79: 52.05 | N79: 51.1 | O79: 122062500 | P79: 2%
A80: 70 | B80: Others | C80: GNFC | D80: 2023-08-31 | E80: 590.45 | F80: 590.20 | G80: 587.25 | H80: 584.05 | I80: 581.10 | J80: 593.40 | K80: 596.35 | L80: 599.55 | M80: 593.15 | N80: 587 | O80: 8539700 | P80: -2%
A81: 71 | B81: FMCG | C81: GODREJCP | D81: 2023-08-31 | E81: 1023.40 | F81: 1022.65 | G81: 1017.90 | H81: 1012.40 | I81: 1007.65 | J81: 1028.15 | K81: 1032.90 | L81: 1038.40 | M81: 1027.4 | N81: 1017.15 | O81: 7655000 | P81: 3%
A82: 72 | B82: Realty | C82: GODREJPROP | D82: 2023-08-31 | E82: 1545.65 | F82: 1557.72 | G82: 1528.73 | H82: 1511.82 | I82: 1482.83 | J82: 1574.63 | K82: 1603.62 | L82: 1620.53 | M82: 1586.7 | N82: 1540.8 | O82: 3715450 | P82: 8%
A83: 73 | B83: Pharma | C83: GRANULES | D83: 2023-08-31 | E83: 320.05 | F83: 321.98 | G83: 317.07 | H83: 314.08 | I83: 309.17 | J83: 324.97 | K83: 329.88 | L83: 332.87 | M83: 326.9 | N83: 319 | O83: 11554000 | P83: -1%
A84: 74 | B84: Cement | C84: GRASIM | D84: 2023-08-31 | E84: 1825.45 | F84: 1831.20 | G84: 1816.85 | H84: 1808.25 | I84: 1793.90 | J84: 1839.80 | K84: 1854.15 | L84: 1862.75 | M84: 1845.55 | N84: 1822.6 | O84: 12637375 | P84: 0%
A85: 75 | B85: Oil_Gas | C85: GUJGASLTD | D85: 2023-08-31 | E85: 446.60 | F85: 448.60 | G85: 443.55 | H85: 440.50 | I85: 435.45 | J85: 451.65 | K85: 456.70 | L85: 459.75 | M85: 453.65 | N85: 445.55 | O85: 8893750 | P85: 1%
A86: 76 | B86: Others | C86: HAL | D86: 2023-08-31 | E86: 3763.80 | F86: 3781.58 | G86: 3738.27 | H86: 3712.73 | I86: 3669.42 | J86: 3807.12 | K86: 3850.43 | L86: 3875.97 | M86: 3824.9 | N86: 3756.05 | O86: 4122900 | P86: 0%
A87: 77 | B87: Capital_Goods | C87: HAVELLS | D87: 2023-08-31 | E87: 1324.10 | F87: 1322.27 | G87: 1309.58 | H87: 1295.07 | I87: 1282.38 | J87: 1336.78 | K87: 1349.47 | L87: 1363.98 | M87: 1334.95 | N87: 1307.75 | O87: 5264000 | P87: -1%
A88: 78 | B88: Technology | C88: HCLTECH | D88: 2023-08-31 | E88: 1150.20 | F88: 1147.43 | G88: 1134.37 | H88: 1118.53 | I88: 1105.47 | J88: 1163.27 | K88: 1176.33 | L88: 1192.17 | M88: 1160.5 | N88: 1131.6 | O88: 10476200 | P88: -3%
A89: 79 | B89: Finance | C89: HDFCAMC | D89: 2023-08-31 | E89: 2400.85 | F89: 2399.48 | G89: 2367.27 | H89: 2333.68 | I89: 2301.47 | J89: 2433.07 | K89: 2465.28 | L89: 2498.87 | M89: 2431.7 | N89: 2365.9 | O89: 2949600 | P89: 10%
A90: 80 | B90: Banking | C90: HDFCBANK | D90: 2023-08-31 | E90: 1660.00 | F90: 1654.47 | G90: 1645.53 | H90: 1631.07 | I90: 1622.13 | J90: 1668.93 | K90: 1677.87 | L90: 1692.33 | M90: 1663.4 | N90: 1640 | O90: 111750100 | P90: -0%
A91: 81 | B91: Finance | C91: HDFCLIFE | D91: 2023-08-31 | E91: 646.45 | F91: 644.45 | G91: 639.95 | H91: 633.45 | I91: 628.95 | J91: 650.95 | K91: 655.45 | L91: 661.95 | M91: 648.95 | N91: 637.95 | O91: 18608700 | P91: -0%
A92: 82 | B92: Automobile | C92: HEROMOTOCO | D92: 2023-08-31 | E92: 2964.20 | F92: 2968.65 | G92: 2936.70 | H92: 2909.20 | I92: 2877.25 | J92: 2996.15 | K92: 3028.10 | L92: 3055.60 | M92: 3000.6 | N92: 2941.15 | O92: 4382100 | P92: -0%
A93: 83 | B93: Metals | C93: HINDALCO | D93: 2023-08-31 | E93: 457.25 | F93: 459.00 | G93: 452.50 | H93: 447.75 | I93: 441.25 | J93: 463.75 | K93: 470.25 | L93: 475.00 | M93: 465.5 | N93: 454.25 | O93: 24915800 | P93: -4%
A94: 84 | B94: Metals | C94: HINDCOPPER | D94: 2023-08-31 | E94: 153.80 | F94: 154.77 | G94: 152.23 | H94: 150.67 | I94: 148.13 | J94: 156.33 | K94: 158.87 | L94: 160.43 | M94: 157.3 | N94: 153.2 | O94: 29017500 | P94: -5%
A95: 85 | B95: Oil_Gas | C95: HINDPETRO | D95: 2023-08-31 | E95: 268.75 | F95: 270.07 | G95: 266.68 | H95: 264.62 | I95: 261.23 | J95: 272.13 | K95: 275.52 | L95: 277.58 | M95: 273.45 | N95: 268 | O95: 44517600 | P95: 1%
A96: 86 | B96: FMCG | C96: HINDUNILVR | D96: 2023-08-31 | E96: 2557.35 | F96: 2559.93 | G96: 2548.92 | H96: 2540.48 | I96: 2529.47 | J96: 2568.37 | K96: 2579.38 | L96: 2587.82 | M96: 2570.95 | N96: 2551.5 | O96: 10279800 | P96: 1%
A97: 87 | B97: Finance | C97: IBULHSGFIN | D97: 2023-08-31 | E97: 167.40 | F97: 166.38 | G97: 162.37 | H97: 157.33 | I97: 153.32 | J97: 171.42 | K97: 175.43 | L97: 180.47 | M97: 170.4 | N97: 161.35 | O97: 64173300 | P97: 15%
A98: 88 | B98: Banking | C98: ICICIBANK | D98: 2023-08-31 | E98: 969.70 | F98: 967.25 | G98: 960.95 | H98: 952.20 | I98: 945.90 | J98: 976.00 | K98: 982.30 | L98: 991.05 | M98: 973.55 | N98: 958.5 | O98: 83554100 | P98: -0%
A99: 89 | B99: Finance | C99: ICICIGI | D99: 2023-08-31 | E99: 1374.75 | F99: 1369.85 | G99: 1357.80 | H99: 1340.85 | I99: 1328.80 | J99: 1386.80 | K99: 1398.85 | L99: 1415.80 | M99: 1381.9 | N99: 1352.9 | O99: 3732500 | P99: -3%
A100: 90 | B100: Finance | C100: ICICIPRULI | D100: 2023-08-31 | E100: 582.85 | F100: 579.95 | G100: 574.65 | H100: 566.45 | I100: 561.15 | J100: 588.15 | K100: 593.45 | L100: 601.65 | M100: 585.25 | N100: 571.75 | O100: 9250500 | P100: 0%
A101: 91 | B101: Telecom | C101: IDEA | D101: 2023-08-31 | E101: 8.35 | F101: 8.25 | G101: 8.00 | H101: 7.65 | I101: 7.40 | J101: 8.60 | K101: 8.85 | L101: 9.20 | M101: 8.5 | N101: 7.9 | O101: 797200000 | P101: 2%
A102: 92 | B102: Finance | C102: IDFC | D102: 2023-08-31 | E102: 119.05 | F102: 119.13 | G102: 117.97 | H102: 116.88 | I102: 115.72 | J102: 120.22 | K102: 121.38 | L102: 122.47 | M102: 120.3 | N102: 118.05 | O102: 123070000 | P102: 1%
A103: 93 | B103: Banking | C103: IDFCFIRSTB | D103: 2023-08-31 | E103: 87.45 | F103: 87.32 | G103: 86.48 | H103: 85.52 | I103: 84.68 | J103: 88.28 | K103: 89.12 | L103: 90.08 | M103: 88.15 | N103: 86.35 | O103: 162630000 | P103: 1%
A104: 94 | B104: Others | C104: IEX | D104: 2023-08-31 | E104: 128.00 | F104: 128.10 | G104: 126.90 | H104: 125.80 | I104: 124.60 | J104: 129.20 | K104: 130.40 | L104: 131.50 | M104: 129.3 | N104: 127 | O104: 48056250 | P104: -1%
A105: 95 | B105: Oil_Gas | C105: IGL | D105: 2023-08-31 | E105: 458.30 | F105: 456.50 | G105: 453.80 | H105: 449.30 | I105: 446.60 | J105: 461.00 | K105: 463.70 | L105: 468.20 | M105: 459.2 | N105: 452 | O105: 10414250 | P105: -3%
A106: 96 | B106: Infrastructure | C106: INDHOTEL | D106: 2023-08-31 | E106: 398.75 | F106: 399.88 | G106: 396.42 | H106: 394.08 | I106: 390.62 | J106: 402.22 | K106: 405.68 | L106: 408.02 | M106: 403.35 | N106: 397.55 | O106: 19658000 | P106: -0%
A107: 97 | B107: Cement | C107: INDIACEM | D107: 2023-08-31 | E107: 226.05 | F107: 223.32 | G107: 219.58 | H107: 213.12 | I107: 209.38 | J107: 229.78 | K107: 233.52 | L107: 239.98 | M107: 227.05 | N107: 216.85 | O107: 20882900 | P107: 5%
A108: 98 | B108: Others | C108: INDIAMART | D108: 2023-08-31 | E108: 3145.85 | F108: 3115.12 | G108: 3075.83 | H108: 3005.82 | I108: 2966.53 | J108: 3185.13 | K108: 3224.42 | L108: 3294.43 | M108: 3154.4 | N108: 3045.1 | O108: 718800 | P108: -0%
A109: 99 | B109: Others | C109: INDIGO | D109: 2023-08-31 | E109: 2520.05 | F109: 2503.68 | G109: 2477.57 | H109: 2435.08 | I109: 2408.97 | J109: 2546.17 | K109: 2572.28 | L109: 2614.77 | M109: 2529.8 | N109: 2461.2 | O109: 5522700 | P109: -0%
A110: 100 | B110: Banking | C110: INDUSINDBK | D110: 2023-08-31 | E110: 1415.55 | F110: 1403.13 | G110: 1384.52 | H110: 1353.48 | I110: 1334.87 | J110: 1434.17 | K110: 1452.78 | L110: 1483.82 | M110: 1421.75 | N110: 1372.1 | O110: 19847000 | P110: -2%
A111: 101 | B111: Telecom | C111: INDUSTOWER | D111: 2023-08-31 | E111: 174.30 | F111: 173.78 | G111: 171.67 | H111: 169.03 | I111: 166.92 | J111: 176.42 | K111: 178.53 | L111: 181.17 | M111: 175.9 | N111: 171.15 | O111: 79488600 | P111: 0%
A112: 102 | B112: Technology | C112: INFY | D112: 2023-08-31 | E112: 1384.50 | F112: 1383.92 | G112: 1371.83 | H112: 1359.17 | I112: 1347.08 | J112: 1396.58 | K112: 1408.67 | L112: 1421.33 | M112: 1396 | N112: 1371.25 | O112: 32919200 | P112: -0%
A113: 103 | B113: Oil_Gas | C113: IOC | D113: 2023-08-31 | E113: 93.05 | F113: 93.42 | G113: 92.48 | H113: 91.92 | I113: 90.98 | J113: 93.98 | K113: 94.92 | L113: 95.48 | M113: 94.35 | N113: 92.85 | O113: 104169000 | P113: 1%
A114: 104 | B114: Pharma | C114: IPCALAB | D114: 2023-08-31 | E114: 908.50 | F114: 902.57 | G114: 893.63 | H114: 878.77 | I114: 869.83 | J114: 917.43 | K114: 926.37 | L114: 941.23 | M114: 911.5 | N114: 887.7 | O114: 2273050 | P114: -4%
A115: 105 | B115: Others | C115: IRCTC | D115: 2023-08-31 | E115: 656.20 | F115: 660.70 | G115: 650.65 | H115: 645.10 | I115: 635.05 | J115: 666.25 | K115: 676.30 | L115: 681.85 | M115: 670.75 | N115: 655.15 | O115: 12936875 | P115: 2%
A116: 106 | B116: FMCG | C116: ITC | D116: 2023-08-31 | E116: 458.15 | F116: 459.68 | G116: 455.97 | H116: 453.78 | I116: 450.07 | J116: 461.87 | K116: 465.58 | L116: 467.77 | M116: 463.4 | N116: 457.5 | O116: 78331200 | P116: -0%
A117: 107 | B117: Metals | C117: JINDALSTEL | D117: 2023-08-31 | E117: 653.70 | F117: 655.87 | G117: 645.88 | H117: 638.07 | I117: 628.08 | J117: 663.68 | K117: 673.67 | L117: 681.48 | M117: 665.85 | N117: 648.05 | O117: 24106250 | P117: -2%
A118: 108 | B118: Cement | C118: JKCEMENT | D118: 2023-08-31 | E118: 3228.50 | F118: 3224.28 | G118: 3195.52 | H118: 3162.53 | I118: 3133.77 | J118: 3257.27 | K118: 3286.03 | L118: 3319.02 | M118: 3253.05 | N118: 3191.3 | O118: 413500 | P118: 9%
A119: 109 | B119: Metals | C119: JSWSTEEL | D119: 2023-08-31 | E119: 809.05 | F119: 811.05 | G119: 805.00 | H119: 800.95 | I119: 794.90 | J119: 815.10 | K119: 821.15 | L119: 825.20 | M119: 817.1 | N119: 807 | O119: 20291850 | P119: 0%
A120: 110 | B120: Others | C120: JUBLFOOD | D120: 2023-08-31 | E120: 517.60 | F120: 510.13 | G120: 500.57 | H120: 483.53 | I120: 473.97 | J120: 527.17 | K120: 536.73 | L120: 553.77 | M120: 519.7 | N120: 493.1 | O120: 15870000 | P120: -5%
A121: 111 | B121: Banking | C121: KOTAKBANK | D121: 2023-08-31 | E121: 1846.95 | F121: 1842.10 | G121: 1830.25 | H121: 1813.55 | I121: 1801.70 | J121: 1858.80 | K121: 1870.65 | L121: 1887.35 | M121: 1853.95 | N121: 1825.4 | O121: 24558400 | P121: -2%
A122: 112 | B122: Finance | C122: L&TFH | D122: 2023-08-31 | E122: 128.00 | F122: 127.35 | G122: 126.00 | H122: 124.00 | I122: 122.65 | J122: 129.35 | K122: 130.70 | L122: 132.70 | M122: 128.7 | N122: 125.35 | O122: 76032480 | P122: -1%
A123: 113 | B123: Others | C123: LALPATHLAB | D123: 2023-08-31 | E123: 2343.50 | F123: 2335.48 | G123: 2315.02 | H123: 2286.53 | I123: 2266.07 | J123: 2363.97 | K123: 2384.43 | L123: 2412.92 | M123: 2355.95 | N123: 2307 | O123: 748500 | P123: -3%
A124: 114 | B124: Pharma | C124: LAURUSLABS | D124: 2023-08-31 | E124: 393.10 | F124: 390.67 | G124: 386.33 | H124: 379.57 | I124: 375.23 | J124: 397.43 | K124: 401.77 | L124: 408.53 | M124: 395 | N124: 383.9 | O124: 12010500 | P124: -6%
A125: 115 | B125: Finance | C125: LICHSGFIN | D125: 2023-08-31 | E125: 429.60 | F125: 421.02 | G125: 405.63 | H125: 381.67 | I125: 366.28 | J125: 444.98 | K125: 460.37 | L125: 484.33 | M125: 436.4 | N125: 397.05 | O125: 24912000 | P125: 25%
A126: 116 | B126: Capital_Goods | C126: LT | D126: 2023-08-31 | E126: 2637.85 | F126: 2632.68 | G126: 2617.92 | H126: 2597.98 | I126: 2583.22 | J126: 2652.62 | K126: 2667.38 | L126: 2687.32 | M126: 2647.45 | N126: 2612.75 | O126: 8812800 | P126: 2%
A127: 117 | B127: Technology | C127: LTIM | D127: 2023-08-31 | E127: 4977.05 | F127: 4968.32 | G127: 4918.68 | H127: 4860.32 | I127: 4810.68 | J127: 5026.68 | K127: 5076.32 | L127: 5134.68 | M127: 5017.95 | N127: 4909.95 | O127: 1977150 | P127: -3%
A128: 118 | B128: Technology | C128: LTTS | D128: 2023-08-31 | E128: 4235.45 | F128: 4258.60 | G128: 4201.85 | H128: 4168.25 | I128: 4111.50 | J128: 4292.20 | K128: 4348.95 | L128: 4382.55 | M128: 4315.35 | N128: 4225 | O128: 902000 | P128: 7%
A129: 119 | B129: Pharma | C129: LUPIN | D129: 2023-08-31 | E129: 1071.45 | F129: 1055.50 | G129: 1026.30 | H129: 981.15 | I129: 951.95 | J129: 1100.65 | K129: 1129.85 | L129: 1175.00 | M129: 1084.7 | N129: 1010.35 | O129: 5298050 | P129: 11%
A130: 120 | B130: Automobile | C130: M&M | D130: 2023-08-31 | E130: 1472.35 | F130: 1470.82 | G130: 1428.63 | H130: 1384.92 | I130: 1342.73 | J130: 1514.53 | K130: 1556.72 | L130: 1600.43 | M130: 1513 | N130: 1427.1 | O130: 19675600 | P130: 10%
A131: 121 | B131: Finance | C131: M&MFIN | D131: 2023-08-31 | E131: 290.40 | F131: 290.05 | G131: 287.25 | H131: 284.10 | I131: 281.30 | J131: 293.20 | K131: 296.00 | L131: 299.15 | M131: 292.85 | N131: 286.9 | O131: 38688000 | P131: -2%
A132: 122 | B132: Finance | C132: MANAPPURAM | D132: 2023-08-31 | E132: 134.75 | F132: 134.95 | G132: 133.45 | H132: 132.15 | I132: 130.65 | J132: 136.25 | K132: 137.75 | L132: 139.05 | M132: 136.45 | N132: 133.65 | O132: 72342000 | P132: 1%
A133: 123 | B133: FMCG | C133: MARICO | D133: 2023-08-31 | E133: 577.45 | F133: 578.68 | G133: 574.12 | H133: 570.78 | I133: 566.22 | J133: 582.02 | K133: 586.58 | L133: 589.92 | M133: 583.25 | N133: 575.35 | O133: 7623600 | P133: 4%
A134: 124 | B134: Automobile | C134: MARUTI | D134: 2023-08-31 | E134: 9532.10 | F134: 9564.32 | G134: 9470.83 | H134: 9409.57 | I134: 9316.08 | J134: 9625.58 | K134: 9719.07 | L134: 9780.33 | M134: 9657.8 | N134: 9503.05 | O134: 2928600 | P134: 2%
A135: 125 | B135: FMCG | C135: MCDOWELL-N | D135: 2023-08-31 | E135: 1012.80 | F135: 1010.67 | G135: 1005.73 | H135: 998.67 | I135: 993.73 | J135: 1017.73 | K135: 1022.67 | L135: 1029.73 | M135: 1015.6 | N135: 1003.6 | O135: 9769200 | P135: 1%
A136: 126 | B136: Others | C136: MCX | D136: 2023-08-31 | E136: 1647.70 | F136: 1635.77 | G136: 1616.08 | H136: 1584.47 | I136: 1564.78 | J136: 1667.38 | K136: 1687.07 | L136: 1718.68 | M136: 1655.45 | N136: 1604.15 | O136: 2889600 | P136: 6%
A137: 127 | B137: Pharma | C137: METROPOLIS | D137: 2023-08-31 | E137: 1365.70 | F137: 1386.40 | G137: 1341.80 | H137: 1317.90 | I137: 1273.30 | J137: 1410.30 | K137: 1454.90 | L137: 1478.80 | M137: 1431 | N137: 1362.5 | O137: 1821200 | P137: 12%
A138: 128 | B138: Finance | C138: MFSL | D138: 2023-08-31 | E138: 777.05 | F138: 781.50 | G138: 765.00 | H138: 752.95 | I138: 736.45 | J138: 793.55 | K138: 810.05 | L138: 822.10 | M138: 798 | N138: 769.45 | O138: 4294400 | P138: 2%
A139: 129 | B139: Oil_Gas | C139: MGL | D139: 2023-08-31 | E139: 1045.15 | F139: 1070.02 | G139: 1018.18 | H139: 991.22 | I139: 939.38 | J139: 1096.98 | K139: 1148.82 | L139: 1175.78 | M139: 1121.85 | N139: 1043.05 | O139: 3339200 | P139: 8%
A140: 130 | B140: Automobile | C140: MOTHERSON | D140: 2023-08-31 | E140: 96.70 | F140: 96.68 | G140: 94.67 | H140: 92.63 | I140: 90.62 | J140: 98.72 | K140: 100.73 | L140: 102.77 | M140: 98.7 | N140: 94.65 | O140: 64865600 | P140: 3%
A141: 131 | B141: Technology | C141: MPHASIS | D141: 2023-08-31 | E141: 2280.40 | F141: 2278.05 | G141: 2261.15 | H141: 2241.90 | I141: 2225.00 | J141: 2297.30 | K141: 2314.20 | L141: 2333.45 | M141: 2294.95 | N141: 2258.8 | O141: 2124375 | P141: 0%
A142: 132 | B142: Automobile | C142: MRF | D142: 2023-08-31 | E142: 112023.55 | F142: 110731.22 | G142: 108792.33 | H142: 105561.12 | I142: 103622.23 | J142: 113962.43 | K142: 115901.32 | L142: 119132.53 | M142: 112670.1 | N142: 107500 | O142: 55470 | P142: 16%
A143: 133 | B143: Finance | C143: MUTHOOTFIN | D143: 2023-08-31 | E143: 1348.25 | F143: 1345.37 | G143: 1338.28 | H143: 1328.32 | I143: 1321.23 | J143: 1355.33 | K143: 1362.42 | L143: 1372.38 | M143: 1352.45 | N143: 1335.4 | O143: 4766300 | P143: 1%
A144: 134 | B144: Metals | C144: NATIONALUM | D144: 2023-08-31 | E144: 95.75 | F144: 95.82 | G144: 94.83 | H144: 93.92 | I144: 92.93 | J144: 96.73 | K144: 97.72 | L144: 98.63 | M144: 96.8 | N144: 94.9 | O144: 55882500 | P144: 3%
A145: 135 | B145: Others | C145: NAUKRI | D145: 2023-08-31 | E145: 4920.80 | F145: 4826.95 | G145: 4681.55 | H145: 4442.30 | I145: 4296.90 | J145: 5066.20 | K145: 5211.60 | L145: 5450.85 | M145: 4972.35 | N145: 4587.7 | O145: 1200750 | P145: 4%
A146: 136 | B146: Chemical | C146: NAVINFLUOR | D146: 2023-08-31 | E146: 4502.50 | F146: 4505.57 | G146: 4467.13 | H146: 4431.77 | I146: 4393.33 | J146: 4540.93 | K146: 4579.37 | L146: 4614.73 | M146: 4544 | N146: 4470.2 | O146: 935700 | P146: -2%
A147: 137 | B147: FMCG | C147: NESTLEIND | D147: 2023-08-31 | E147: 22549.60 | F147: 22608.55 | G147: 22437.10 | H147: 22324.60 | I147: 22153.15 | J147: 22721.05 | K147: 22892.50 | L147: 23005.00 | M147: 22780 | N147: 22496.05 | O147: 290680 | P147: -2%
A148: 138 | B148: Metals | C148: NMDC | D148: 2023-08-31 | E148: 114.05 | F148: 114.37 | G148: 113.58 | H148: 113.12 | I148: 112.33 | J148: 114.83 | K148: 115.62 | L148: 116.08 | M148: 115.15 | N148: 113.9 | O148: 82431000 | P148: -1%
A149: 139 | B149: Power | C149: NTPC | D149: 2023-08-31 | E149: 216.60 | F149: 217.65 | G149: 215.10 | H149: 213.60 | I149: 211.05 | J149: 219.15 | K149: 221.70 | L149: 223.20 | M149: 220.2 | N149: 216.15 | O149: 69510000 | P149: 1%
A150: 140 | B150: Realty | C150: OBEROIRLTY | D150: 2023-08-31 | E150: 1124.50 | F150: 1121.42 | G150: 1102.83 | H150: 1081.17 | I150: 1062.58 | J150: 1143.08 | K150: 1161.67 | L150: 1183.33 | M150: 1140 | N150: 1099.75 | O150: 5730900 | P150: 1%
A151: 141 | B151: Technology | C151: OFSS | D151: 2023-08-31 | E151: 3903.55 | F151: 3906.65 | G151: 3838.55 | H151: 3773.55 | I151: 3705.45 | J151: 3971.65 | K151: 4039.75 | L151: 4104.75 | M151: 3974.75 | N151: 3841.65 | O151: 223000 | P151: -0%
A152: 142 | B152: Oil_Gas | C152: ONGC | D152: 2023-08-31 | E152: 173.50 | F152: 173.47 | G152: 172.68 | H152: 171.87 | I152: 171.08 | J152: 174.28 | K152: 175.07 | L152: 175.88 | M152: 174.25 | N152: 172.65 | O152: 34769350 | P152: 1%
A153: 143 | B153: Textile | C153: PAGEIND | D153: 2023-08-31 | E153: 39128.95 | F153: 39063.08 | G153: 38836.17 | H153: 38543.38 | I153: 38316.47 | J153: 39355.87 | K153: 39582.78 | L153: 39875.57 | M153: 39290 | N153: 38770.3 | O153: 203340 | P153: -2%
A154: 144 | B154: Pharma | C154: PEL | D154: 2023-08-31 | E154: 969.70 | F154: 969.45 | G154: 959.90 | H154: 950.10 | I154: 940.55 | J154: 979.25 | K154: 988.80 | L154: 998.60 | M154: 979 | N154: 959.65 | O154: 11184750 | P154: -1%
A155: 145 | B155: Technology | C155: PERSISTENT | D155: 2023-08-31 | E155: 4808.60 | F155: 4800.53 | G155: 4758.07 | H155: 4707.53 | I155: 4665.07 | J155: 4851.07 | K155: 4893.53 | L155: 4944.07 | M155: 4843 | N155: 4750 | O155: 1068375 | P155: -3%
A156: 146 | B156: Oil_Gas | C156: PETRONET | D156: 2023-08-31 | E156: 225.00 | F156: 225.37 | G156: 223.73 | H156: 222.47 | I156: 220.83 | J156: 226.63 | K156: 228.27 | L156: 229.53 | M156: 227 | N156: 224.1 | O156: 15297000 | P156: 1%
A157: 147 | B157: Finance | C157: PFC | D157: 2023-08-31 | E157: 259.25 | F157: 260.13 | G157: 256.72 | H157: 254.18 | I157: 250.77 | J157: 262.67 | K157: 266.08 | L157: 268.62 | M157: 263.55 | N157: 257.6 | O157: 52111000 | P157: 0%
A158: 148 | B158: FMCG | C158: PIDILITIND | D158: 2023-08-31 | E158: 2620.85 | F158: 2616.83 | G158: 2601.02 | H158: 2581.18 | I158: 2565.37 | J158: 2636.67 | K158: 2652.48 | L158: 2672.32 | M158: 2632.65 | N158: 2597 | O158: 2831000 | P158: -0%
A159: 149 | B159: Chemical | C159: PIIND | D159: 2023-08-31 | E159: 3715.85 | F159: 3721.78 | G159: 3695.67 | H159: 3675.48 | I159: 3649.37 | J159: 3741.97 | K159: 3768.08 | L159: 3788.27 | M159: 3747.9 | N159: 3701.6 | O159: 2332250 | P159: -0%
A160: 150 | B160: Banking | C160: PNB | D160: 2023-08-31 | E160: 60.25 | F160: 60.22 | G160: 59.53 | H160: 58.82 | I160: 58.13 | J160: 60.93 | K160: 61.62 | L160: 62.33 | M160: 60.9 | N160: 59.5 | O160: 264080000 | P160: -0%
A161: 151 | B161: Others | C161: POLYCAB | D161: 2023-08-31 | E161: 4613.20 | F161: 4607.27 | G161: 4559.93 | H161: 4506.67 | I161: 4459.33 | J161: 4660.53 | K161: 4707.87 | L161: 4761.13 | M161: 4654.6 | N161: 4554 | O161: 1861800 | P161: 5%
A162: 152 | B162: Power | C162: POWERGRID | D162: 2023-08-31 | E162: 248.85 | F162: 249.07 | G162: 247.68 | H162: 246.52 | I162: 245.13 | J162: 250.23 | K162: 251.62 | L162: 252.78 | M162: 250.45 | N162: 247.9 | O162: 42579000 | P162: 1%
A163: 153 | B163: Media | C163: PVRINOX | D163: 2023-08-31 | E163: 1627.45 | F163: 1628.50 | G163: 1612.00 | H163: 1596.55 | I163: 1580.05 | J163: 1643.95 | K163: 1660.45 | L163: 1675.90 | M163: 1645 | N163: 1613.05 | O163: 3051686 | P163: 2%
A164: 154 | B164: Cement | C164: RAMCOCEM | D164: 2023-08-31 | E164: 876.80 | F164: 872.38 | G164: 862.27 | H164: 847.73 | I164: 837.62 | J164: 886.92 | K164: 897.03 | L164: 911.57 | M164: 882.5 | N164: 857.85 | O164: 3283550 | P164: 5%
A165: 155 | B165: Banking | C165: RBLBANK | D165: 2023-08-31 | E165: 216.15 | F165: 215.77 | G165: 208.53 | H165: 200.92 | I165: 193.68 | J165: 223.38 | K165: 230.62 | L165: 238.23 | M165: 223 | N165: 208.15 | O165: 45605000 | P165: 3%
A166: 156 | B166: Power | C166: RECLTD | D166: 2023-08-31 | E166: 197.60 | F166: 198.05 | G166: 195.45 | H166: 193.30 | I166: 190.70 | J166: 200.20 | K166: 202.80 | L166: 204.95 | M166: 200.65 | N166: 195.9 | O166: 78584000 | P166: -1%
A167: 157 | B167: Oil_Gas | C167: RELIANCE | D167: 2023-08-31 | E167: 2516.70 | F167: 2506.32 | G167: 2490.93 | H167: 2465.17 | I167: 2449.78 | J167: 2532.08 | K167: 2547.47 | L167: 2573.23 | M167: 2521.7 | N167: 2480.55 | O167: 19573500 | P167: 2%
A168: 158 | B168: Metals | C168: SAIL | D168: 2023-08-31 | E168: 94.40 | F168: 94.20 | G168: 93.65 | H168: 92.90 | I168: 92.35 | J168: 94.95 | K168: 95.50 | L168: 96.25 | M168: 94.75 | N168: 93.45 | O168: 108688000 | P168: 0%
A169: 159 | B169: Banking | C169: SBICARD | D169: 2023-08-31 | E169: 885.20 | F169: 881.75 | G169: 871.10 | H169: 857.00 | I169: 846.35 | J169: 895.85 | K169: 906.50 | L169: 920.60 | M169: 892.4 | N169: 867.65 | O169: 9206400 | P169: -1%
A170: 160 | B170: Finance | C170: SBILIFE | D170: 2023-08-31 | E170: 1276.95 | F170: 1278.28 | G170: 1261.42 | H170: 1245.88 | I170: 1229.02 | J170: 1293.82 | K170: 1310.68 | L170: 1326.22 | M170: 1295.15 | N170: 1262.75 | O170: 7900500 | P170: 1%
A171: 161 | B171: Banking | C171: SBIN | D171: 2023-08-31 | E171: 577.50 | F171: 584.70 | G171: 568.50 | H171: 559.50 | I171: 543.30 | J171: 593.70 | K171: 609.90 | L171: 618.90 | M171: 600.9 | N171: 575.7 | O171: 95085000 | P171: 23%
A172: 162 | B172: Cement | C172: SHREECEM | D172: 2023-08-31 | E172: 24389.10 | F172: 24364.67 | G172: 24260.58 | H172: 24132.07 | I172: 24027.98 | J172: 24493.18 | K172: 24597.27 | L172: 24725.78 | M172: 24468.75 | N172: 24236.15 | O172: 219300 | P172: 1%
A173: 163 | B173: Capital_Goods | C173: SIEMENS | D173: 2023-08-31 | E173: 3799.80 | F173: 3814.15 | G173: 3777.65 | H173: 3755.50 | I173: 3719.00 | J173: 3836.30 | K173: 3872.80 | L173: 3894.95 | M173: 3850.65 | N173: 3792 | O173: 1722875 | P173: 1%
A174: 164 | B174: Textile | C174: SRF | D174: 2023-08-31 | E174: 2276.50 | F174: 2281.28 | G174: 2267.72 | H174: 2258.93 | I174: 2245.37 | J174: 2290.07 | K174: 2303.63 | L174: 2312.42 | M174: 2294.85 | N174: 2272.5 | O174: 4405500 | P174: 1%
A175: 165 | B175: Finance | C175: SHRIRAMFIN | D175: 2023-08-31 | E175: 1847.55 | F175: 1838.50 | G175: 1822.05 | H175: 1796.55 | I175: 1780.10 | J175: 1864.00 | K175: 1880.45 | L175: 1905.95 | M175: 1854.95 | N175: 1813 | O175: 6595200 | P175: -1%
A176: 166 | B176: Pharma | C176: SUNPHARMA | D176: 2023-08-31 | E176: 1144.15 | F176: 1140.07 | G176: 1129.78 | H176: 1115.42 | I176: 1105.13 | J176: 1154.43 | K176: 1164.72 | L176: 1179.08 | M176: 1150.35 | N176: 1125.7 | O176: 22612800 | P176: -6%
A177: 167 | B177: Media | C177: SUNTV | D177: 2023-08-31 | E177: 533.60 | F177: 532.65 | G177: 524.80 | H177: 516.00 | I177: 508.15 | J177: 541.45 | K177: 549.30 | L177: 558.10 | M177: 540.5 | N177: 523.85 | O177: 8769000 | P177: 1%
A178: 168 | B178: Pharma | C178: SYNGENE | D178: 2023-08-31 | E178: 816.75 | F178: 813.75 | G178: 808.75 | H178: 800.75 | I178: 795.75 | J178: 821.75 | K178: 826.75 | L178: 834.75 | M178: 818.75 | N178: 805.75 | O178: 3155000 | P178: 0%
A179: 169 | B179: Chemical | C179: TATACHEM | D179: 2023-08-31 | E179: 1051.70 | F179: 1050.55 | G179: 1039.75 | H179: 1027.80 | I179: 1017.00 | J179: 1062.50 | K179: 1073.30 | L179: 1085.25 | M179: 1061.35 | N179: 1038.6 | O179: 8331400 | P179: -4%
A180: 170 | B180: Telecom | C180: TATACOMM | D180: 2023-08-31 | E180: 1698.85 | F180: 1703.95 | G180: 1689.90 | H180: 1680.95 | I180: 1666.90 | J180: 1712.90 | K180: 1726.95 | L180: 1735.90 | M180: 1718 | N180: 1695 | O180: 4178500 | P180: -0%
A181: 171 | B181: FMCG | C181: TATACONSUM | D181: 2023-08-31 | E181: 839.95 | F181: 841.10 | G181: 835.45 | H181: 830.95 | I181: 825.30 | J181: 845.60 | K181: 851.25 | L181: 855.75 | M181: 846.75 | N181: 836.6 | O181: 11604600 | P181: 1%
A182: 172 | B182: Automobile | C182: TATAMOTORS | D182: 2023-08-31 | E182: 619.55 | F182: 621.35 | G182: 614.75 | H182: 609.95 | I182: 603.35 | J182: 626.15 | K182: 632.75 | L182: 637.55 | M182: 627.95 | N182: 616.55 | O182: 59402550 | P182: 3%
A183: 173 | B183: Power | C183: TATAPOWER | D183: 2023-08-31 | E183: 236.85 | F183: 237.12 | G183: 235.33 | H183: 233.82 | I183: 232.03 | J183: 238.63 | K183: 240.42 | L183: 241.93 | M183: 238.9 | N183: 235.6 | O183: 90605250 | P183: 0%
A184: 174 | B184: Metals | C184: TATASTEEL | D184: 2023-08-31 | E184: 119.55 | F184: 119.47 | G184: 118.68 | H184: 117.82 | I184: 117.03 | J184: 120.33 | K184: 121.12 | L184: 121.98 | M184: 120.25 | N184: 118.6 | O184: 234250500 | P184: -1%
A185: 175 | B185: Technology | C185: TCS | D185: 2023-08-31 | E185: 3466.75 | F185: 3459.90 | G185: 3423.60 | H185: 3380.45 | I185: 3344.15 | J185: 3503.05 | K185: 3539.35 | L185: 3582.50 | M185: 3496.2 | N185: 3416.75 | O185: 10865400 | P185: 5%
A186: 176 | B186: Technology | C186: TECHM | D186: 2023-08-31 | E186: 1181.85 | F186: 1173.35 | G186: 1158.20 | H186: 1134.55 | I186: 1119.40 | J186: 1197.00 | K186: 1212.15 | L186: 1235.80 | M186: 1188.5 | N186: 1149.7 | O186: 17152200 | P186: -1%
A187: 177 | B187: FMCG | C187: TITAN | D187: 2023-08-31 | E187: 2921.90 | F187: 2929.02 | G187: 2910.08 | H187: 2898.27 | I187: 2879.33 | J187: 2940.83 | K187: 2959.77 | L187: 2971.58 | M187: 2947.95 | N187: 2917.2 | O187: 6177750 | P187: -2%
A188: 178 | B188: Pharma | C188: TORNTPHARM | D188: 2023-08-31 | E188: 2071.50 | F188: 2057.82 | G188: 2026.98 | H188: 1982.47 | I188: 1951.63 | J188: 2102.33 | K188: 2133.17 | L188: 2177.68 | M188: 2088.65 | N188: 2013.3 | O188: 1533000 | P188: -6%
A189: 179 | B189: Others | C189: TRENT | D189: 2023-08-31 | E189: 1713.35 | F189: 1716.03 | G189: 1701.07 | H189: 1688.78 | I189: 1673.82 | J189: 1728.32 | K189: 1743.28 | L189: 1755.57 | M189: 1731 | N189: 1703.75 | O189: 3780800 | P189: 0%
A190: 180 | B190: Automobile | C190: TVSMOTOR | D190: 2023-08-31 | E190: 1362.45 | F190: 1368.38 | G190: 1349.77 | H190: 1337.08 | I190: 1318.47 | J190: 1381.07 | K190: 1399.68 | L190: 1412.37 | M190: 1387 | N190: 1355.7 | O190: 6648600 | P190: -0%
A191: 181 | B191: FMCG | C191: UBL | D191: 2023-08-31 | E191: 1587.10 | F191: 1583.53 | G191: 1574.27 | H191: 1561.43 | I191: 1552.17 | J191: 1596.37 | K191: 1605.63 | L191: 1618.47 | M191: 1592.8 | N191: 1570.7 | O191: 2296400 | P191: -3%
A192: 182 | B192: Cement | C192: ULTRACEMCO | D192: 2023-08-31 | E192: 8212.90 | F192: 8225.98 | G192: 8187.97 | H192: 8163.03 | I192: 8125.02 | J192: 8250.92 | K192: 8288.93 | L192: 8313.87 | M192: 8264 | N192: 8201.05 | O192: 1700300 | P192: 2%
A193: 183 | B193: Chemical | C193: UPL | D193: 2023-08-31 | E193: 607.35 | F193: 606.98 | G193: 603.62 | H193: 599.88 | I193: 596.52 | J193: 610.72 | K193: 614.08 | L193: 617.82 | M193: 610.35 | N193: 603.25 | O193: 34329100 | P193: -0%
A194: 184 | B194: Metals | C194: VEDL | D194: 2023-08-31 | E194: 242.15 | F194: 240.88 | G194: 237.42 | H194: 232.68 | I194: 229.22 | J194: 245.62 | K194: 249.08 | L194: 253.82 | M194: 244.35 | N194: 236.15 | O194: 97868000 | P194: 4%
A195: 185 | B195: Capital_Goods | C195: VOLTAS | D195: 2023-08-31 | E195: 825.40 | F195: 818.88 | G195: 810.32 | H195: 795.23 | I195: 786.67 | J195: 833.97 | K195: 842.53 | L195: 857.62 | M195: 827.45 | N195: 803.8 | O195: 9664800 | P195: 2%
A196: 186 | B196: Technology | C196: WIPRO | D196: 2023-08-31 | E196: 411.70 | F196: 409.22 | G196: 405.33 | H196: 398.97 | I196: 395.08 | J196: 415.58 | K196: 419.47 | L196: 425.83 | M196: 413.1 | N196: 402.85 | O196: 37099500 | P196: 0%
A197: 187 | B197: Media | C197: ZEEL | D197: 2023-08-31 | E197: 236.15 | F197: 233.77 | G197: 228.73 | H197: 221.32 | I197: 216.28 | J197: 241.18 | K197: 246.22 | L197: 253.63 | M197: 238.8 | N197: 226.35 | O197: 108927000 | P197: 2%
A198: 188 | B198: Pharma | C198: ZYDUSLIFE | D198: 2023-08-31 | E198: 653.70 | F198: 652.50 | G198: 645.45 | H198: 637.20 | I198: 630.15 | J198: 660.75 | K198: 667.80 | L198: 676.05 | M198: 659.55 | N198: 644.25 | O198: 7156800 | P198: 1%
A199: 189
A200: 190
A201: 191
A202: 192
A203: 193
A204: 194
A221: Pivot Point: This is trigger point for intra day buy/sell based on the price range of the previous day
A222: As per the tool,the trader should take BUY position just above Pivot and keep the stop loss of pivot point and the first target would be Resistance 1(R1)
... 13 more rows

Sheet Cash Intra
M5: Back to Main Page
A6: FOR INTRA DAY TRADING | K6: =Main!B10 -> 2023-08-07
A8: Sr.no | C8: CLOSE RATE | D8: Pivot Point | E8: Supports | H8: Resistances
E9: S1 | F9: S2 | G9: S3 | H9: R1 | I9: R2 | J9: R3 | K9: HIGH | L9: LOW | M9: Total Trade Quanity in Lakhs
A10: 1 | B10: Nifty 50 | C10: 19517.00 | D10: 19497.43 | E10: 19456.02 | F10: 19395.03 | G10: 19353.62 | H10: 19558.42 | I10: 19599.83 | J10: 19660.82 | K10: 19538.85 | L10: 19436.45
A11: 2 | B11: Nifty Bank | C11: 44879.50 | D11: 44839.37 | E11: 44560.68 | F11: 44241.87 | G11: 43963.18 | H11: 45158.18 | I11: 45436.87 | J11: 45755.68 | K11: 45118.05 | L11: 44520.55
A12: 3 | B12: Nifty CPSE | C12: 3442.15 | D12: 3442.17 | E12: 3427.43 | F12: 3412.72 | G12: 3397.98 | H12: 3456.88 | I12: 3471.62 | J12: 3486.33 | K12: 3456.90 | L12: 3427.45
A13: 4 | B13: Nifty Infra | C13: 6010.50 | D13: 6001.35 | E13: 5983.10 | F13: 5955.70 | G13: 5937.45 | H13: 6028.75 | I13: 6047.00 | J13: 6074.40 | K13: 6019.60 | L13: 5973.95
A14: 5 | B14: Nifty IT | C14: 30436.10 | D14: 30339.73 | E14: 30123.67 | F14: 29811.23 | G14: 29595.17 | H14: 30652.17 | I14: 30868.23 | J14: 31180.67 | K14: 30555.80 | L14: 30027.30
A15: 6 | B15: Nifty PSE | C15: 5382.50 | D15: 5395.55 | E15: 5364.80 | F15: 5347.10 | G15: 5316.35 | H15: 5413.25 | I15: 5444.00 | J15: 5461.70 | K15: 5426.30 | L15: 5377.85
A16: 7 | B16: Nifty Midcap 50 | C16: 10741.90 | D16: 10729.42 | E16: 10678.48 | F16: 10615.07 | G16: 10564.13 | H16: 10792.83 | I16: 10843.77 | J16: 10907.18 | K16: 10780.35 | L16: 10666.00
A17: 8 | B17: ABB | C17: 4438.05 | D17: 4399.35 | E17: 4349.70 | F17: 4261.35 | G17: 4211.70 | H17: 4487.70 | I17: 4537.35 | J17: 4625.70 | K17: 4449 | L17: 4311 | M17: 1.9949
A18: 9 | B18: ABBOTINDIA | C18: 23864 | D18: 24107.15 | E18: 23556.85 | F18: 23249.70 | G18: 22699.40 | H18: 24414.30 | I18: 24964.60 | J18: 25271.75 | K18: 24657.45 | L18: 23800 | M18: 0.12946
A19: 10 | B19: ABCAPITAL | C19: 188.5 | D19: 189.97 | E19: 185.03 | F19: 181.57 | G19: 176.63 | H19: 193.43 | I19: 198.37 | J19: 201.83 | K19: 194.9 | L19: 186.5 | M19: 43.1251
A20: 11 | B20: ABFRL | C20: 209.8 | D20: 212.90 | E20: 200.90 | F20: 192.00 | G20: 180.00 | H20: 221.80 | I20: 233.80 | J20: 242.70 | K20: 224.9 | L20: 204 | M20: 84.5763
A21: 12 | B21: ACC | C21: 2042.75 | D21: 2037.02 | E21: 2021.53 | F21: 2000.32 | G21: 1984.83 | H21: 2058.23 | I21: 2073.72 | J21: 2094.93 | K21: 2052.5 | L21: 2015.8 | M21: 5.25513
A22: 13 | B22: ADANIENT | C22: 2541.8 | D22: 2533.90 | E22: 2509.90 | F22: 2478.00 | G22: 2454.00 | H22: 2565.80 | I22: 2589.80 | J22: 2621.70 | K22: 2557.9 | L22: 2502 | M22: 32.94056
A23: 14 | B23: ADANIGREEN | C23: 1012.55 | D23: 1027.65 | E23: 993.05 | F23: 973.55 | G23: 938.95 | H23: 1047.15 | I23: 1081.75 | J23: 1101.25 | K23: 1062.25 | L23: 1008.15 | M23: 9.24378
A24: 15 | B24: ADANIPORTS | C24: 775.25 | D24: 774.63 | E24: 769.37 | F24: 763.48 | G24: 758.22 | H24: 780.52 | I24: 785.78 | J24: 791.67 | K24: 779.9 | L24: 768.75 | M24: 27.58619
A25: 16 | B25: ADANIPOWER | C25: 278.5 | D25: 279.40 | E25: 274.30 | F25: 270.10 | G25: 265.00 | H25: 283.60 | I25: 288.70 | J25: 292.90 | K25: 284.5 | L25: 275.2 | M25: 102.93961
A26: 17 | B26: ADANITRANS | C26: 796.65 | D26: 796.48 | E26: 788.52 | F26: 780.38 | G26: 772.42 | H26: 804.62 | I26: 812.58 | J26: 820.72 | K26: 804.45 | L26: 788.35 | M26: 54.54846
A27: 18 | B27: ALKEM | C27: 4099 | D27: 4071.07 | E27: 4032.13 | F27: 3965.27 | G27: 3926.33 | H27: 4137.93 | I27: 4176.87 | J27: 4243.73 | K27: 4110 | L27: 4004.2 | M27: 2.98023
A28: 19 | B28: AMBUJACEM | C28: 471.75 | D28: 473.12 | E28: 468.73 | F28: 465.72 | G28: 461.33 | H28: 476.13 | I28: 480.52 | J28: 483.53 | K28: 477.5 | L28: 470.1 | M28: 29.94518
A29: 20 | B29: APOLLOHOSP | C29: 4980.3 | D29: 4993.58 | E29: 4950.72 | F29: 4921.13 | G29: 4878.27 | H29: 5023.17 | I29: 5066.03 | J29: 5095.62 | K29: 5036.45 | L29: 4964 | M29: 3.58846
A30: 21 | B30: APOLLOTYRE | C30: 437.3 | D30: 435.43 | E30: 429.97 | F30: 422.63 | G30: 417.17 | H30: 442.77 | I30: 448.23 | J30: 455.57 | K30: 440.9 | L30: 428.1 | M30: 22.11786
A31: 22 | B31: ASHOKLEY | C31: 182.5 | D31: 182.42 | E31: 180.63 | F31: 178.77 | G31: 176.98 | H31: 184.28 | I31: 186.07 | J31: 187.93 | K31: 184.2 | L31: 180.55 | M31: 86.4958
A32: 23 | B32: ASIANPAINT | C32: 3339.65 | D32: 3345.32 | E32: 3317.33 | F32: 3295.02 | G32: 3267.03 | H32: 3367.63 | I32: 3395.62 | J32: 3417.93 | K32: 3373.3 | L32: 3323 | M32: 5.19248
A33: 24 | B33: ASTRAL | C33: 2025.65 | D33: 2028.88 | E33: 1999.77 | F33: 1973.88 | G33: 1944.77 | H33: 2054.77 | I33: 2083.88 | J33: 2109.77 | K33: 2058 | L33: 2003 | M33: 11.41954
A34: 25 | B34: ATGL | C34: 649.65 | D34: 651.87 | E34: 641.78 | F34: 633.92 | G34: 623.83 | H34: 659.73 | I34: 669.82 | J34: 677.68 | K34: 661.95 | L34: 644 | M34: 4.47631
A35: 26 | B35: AUBANK | C35: 738.9 | D35: 737.12 | E35: 731.18 | F35: 723.47 | G35: 717.53 | H35: 744.83 | I35: 750.77 | J35: 758.48 | K35: 743.05 | L35: 729.4 | M35: 12.94794
A36: 27 | B36: AUROPHARMA | C36: 841.55 | D36: 842.98 | E36: 830.57 | F36: 819.58 | G36: 807.17 | H36: 853.97 | I36: 866.38 | J36: 877.37 | K36: 855.4 | L36: 832 | M36: 19.20051
A37: 28 | B37: AWL | C37: 398.1 | D37: 399.00 | E37: 396.00 | F37: 393.90 | G37: 390.90 | H37: 401.10 | I37: 404.10 | J37: 406.20 | K37: 402 | L37: 396.9 | M37: 8.12495
A38: 29 | B38: AXISBANK | C38: 952.25 | D38: 947.25 | E38: 939.65 | F38: 927.05 | G38: 919.45 | H38: 959.85 | I38: 967.45 | J38: 980.05 | K38: 954.85 | L38: 934.65 | M38: 123.76086
A39: 30 | B39: BAJAJ-AUTO | C39: 4712 | D39: 4758.73 | E39: 4653.27 | F39: 4594.53 | G39: 4489.07 | H39: 4817.47 | I39: 4922.93 | J39: 4981.67 | K39: 4864.2 | L39: 4700 | M39: 4.51353
A40: 31 | B40: BAJAJFINSV | C40: 1486.3 | D40: 1488.13 | E40: 1468.92 | F40: 1451.53 | G40: 1432.32 | H40: 1505.52 | I40: 1524.73 | J40: 1542.12 | K40: 1507.35 | L40: 1470.75 | M40: 27.03607
A41: 32 | B41: BAJAJHLDNG | C41: 7394.55 | D41: 7421.18 | E41: 7343.37 | F41: 7292.18 | G41: 7214.37 | H41: 7472.37 | I41: 7550.18 | J41: 7601.37 | K41: 7499 | L41: 7370 | M41: 0.11767
A42: 33 | B42: BAJFINANCE | C42: 7148.7 | D42: 7141.67 | E42: 7078.33 | F42: 7007.97 | G42: 6944.63 | H42: 7212.03 | I42: 7275.37 | J42: 7345.73 | K42: 7205 | L42: 7071.3 | M42: 7.31349
A43: 34 | B43: BALKRISIND | C43: 2482.55 | D43: 2488.17 | E43: 2465.38 | F43: 2448.22 | G43: 2425.43 | H43: 2505.33 | I43: 2528.12 | J43: 2545.28 | K43: 2510.95 | L43: 2471 | M43: 1.49437
A44: 35 | B44: BANDHANBNK | C44: 228.1 | D44: 228.00 | E44: 226.00 | F44: 223.90 | G44: 221.90 | H44: 230.10 | I44: 232.10 | J44: 234.20 | K44: 230 | L44: 225.9 | M44: 92.0117
A45: 36 | B45: BANKBARODA | C45: 191.35 | D45: 192.37 | E45: 188.58 | F45: 185.82 | G45: 182.03 | H45: 195.13 | I45: 198.92 | J45: 201.68 | K45: 196.15 | L45: 189.6 | M45: 327.81495
A46: 37 | B46: BANKINDIA | C46: 84.2 | D46: 84.42 | E46: 83.43 | F46: 82.67 | G46: 81.68 | H46: 85.18 | I46: 86.17 | J46: 86.93 | K46: 85.4 | L46: 83.65 | M46: 76.55878
A47: 38 | B47: BATAINDIA | C47: 1759.15 | D47: 1753.00 | E47: 1742.30 | F47: 1725.45 | G47: 1714.75 | H47: 1769.85 | I47: 1780.55 | J47: 1797.40 | K47: 1763.7 | L47: 1736.15 | M47: 1.74206
A48: 39 | B48: BEL | C48: 127.6 | D48: 127.05 | E48: 126.05 | F48: 124.50 | G48: 123.50 | H48: 128.60 | I48: 129.60 | J48: 131.15 | K48: 128.05 | L48: 125.5 | M48: 105.89274
A49: 40 | B49: BERGEPAINT | C49: 704.65 | D49: 702.88 | E49: 696.77 | F49: 688.88 | G49: 682.77 | H49: 710.77 | I49: 716.88 | J49: 724.77 | K49: 709 | L49: 695 | M49: 6.67507
A50: 41 | B50: BHARATFORG | C50: 912.55 | D50: 911.95 | E50: 904.80 | F50: 897.05 | G50: 889.90 | H50: 919.70 | I50: 926.85 | J50: 934.60 | K50: 919.1 | L50: 904.2 | M50: 7.0977
A51: 42 | B51: BHARTIARTL | C51: 889.65 | D51: 882.93 | E51: 872.92 | F51: 856.18 | G51: 846.17 | H51: 899.67 | I51: 909.68 | J51: 926.42 | K51: 892.95 | L51: 866.2 | M51: 70.66276
A52: 43 | B52: BHEL | C52: 98.95 | D52: 100.23 | E52: 97.32 | F52: 95.68 | G52: 92.77 | H52: 101.87 | I52: 104.78 | J52: 106.42 | K52: 103.15 | L52: 98.6 | M52: 313.96068
A53: 44 | B53: BIOCON | C53: 253.55 | D53: 254.93 | E53: 251.67 | F53: 249.78 | G53: 246.52 | H53: 256.82 | I53: 260.08 | J53: 261.97 | K53: 258.2 | L53: 253.05 | M53: 19.88139
A54: 45 | B54: BOSCHLTD | C54: 18256.7 | D54: 18252.60 | E54: 18115.20 | F54: 17973.70 | G54: 17836.30 | H54: 18394.10 | I54: 18531.50 | J54: 18673.00 | K54: 18390 | L54: 18111.1 | M54: 0.22731
A55: 46 | B55: BPCL | C55: 360.4 | D55: 363.77 | E55: 356.68 | F55: 352.97 | G55: 345.88 | H55: 367.48 | I55: 374.57 | J55: 378.28 | K55: 370.85 | L55: 360.05 | M55: 32.78751
A56: 47 | B56: BRITANNIA | C56: 4798.5 | D56: 4799.05 | E56: 4766.10 | F56: 4733.70 | G56: 4700.75 | H56: 4831.45 | I56: 4864.40 | J56: 4896.80 | K56: 4832 | L56: 4766.65 | M56: 4.01478
A57: 48 | B57: CANBK | C57: 328.75 | D57: 330.05 | E57: 325.40 | F57: 322.05 | G57: 317.40 | H57: 333.40 | I57: 338.05 | J57: 341.40 | K57: 334.7 | L57: 326.7 | M57: 71.54048
A58: 49 | B58: CGPOWER | C58: 408.05 | D58: 408.03 | E58: 403.62 | F58: 399.18 | G58: 394.77 | H58: 412.47 | I58: 416.88 | J58: 421.32 | K58: 412.45 | L58: 403.6 | M58: 8.4684
A59: 50 | B59: CHOLAFIN | C59: 1085.3 | D59: 1083.15 | E59: 1074.30 | F59: 1063.30 | G59: 1054.45 | H59: 1094.15 | I59: 1103.00 | J59: 1114.00 | K59: 1092 | L59: 1072.15 | M59: 15.62887
A60: 51 | B60: CIPLA | C60: 1209.75 | D60: 1206.48 | E60: 1174.27 | F60: 1138.78 | G60: 1106.57 | H60: 1241.97 | I60: 1274.18 | J60: 1309.67 | K60: 1238.7 | L60: 1171 | M60: 83.59856
A61: 52 | B61: COALINDIA | C61: 233.75 | D61: 233.58 | E61: 230.67 | F61: 227.58 | G61: 224.67 | H61: 236.67 | I61: 239.58 | J61: 242.67 | K61: 236.5 | L61: 230.5 | M61: 67.25977
A62: 53 | B62: COFORGE | C62: 4888.15 | D62: 4856.83 | E62: 4819.97 | F62: 4751.78 | G62: 4714.92 | H62: 4925.02 | I62: 4961.88 | J62: 5030.07 | K62: 4893.7 | L62: 4788.65 | M62: 2.46235
A63: 54 | B63: COLPAL | C63: 1995.45 | D63: 2009.25 | E63: 1967.05 | F63: 1938.65 | G63: 1896.45 | H63: 2037.65 | I63: 2079.85 | J63: 2108.25 | K63: 2051.45 | L63: 1980.85 | M63: 5.44208
A64: 55 | B64: CONCOR | C64: 695.15 | D64: 693.13 | E64: 689.27 | F64: 683.38 | G64: 679.52 | H64: 699.02 | I64: 702.88 | J64: 708.77 | K64: 697 | L64: 687.25 | M64: 4.68756
A65: 56 | B65: COROMANDEL | C65: 1042.7 | D65: 1041.17 | E65: 1032.33 | F65: 1021.97 | G65: 1013.13 | H65: 1051.53 | I65: 1060.37 | J65: 1070.73 | K65: 1050 | L65: 1030.8 | M65: 3.49206
A66: 57 | B66: CROMPTON | C66: 297.15 | D66: 296.85 | E66: 293.25 | F66: 289.35 | G66: 285.75 | H66: 300.75 | I66: 304.35 | J66: 308.25 | K66: 300.45 | L66: 292.95 | M66: 25.19248
A67: 58 | B67: CUMMINSIND | C67: 1796.1 | D67: 1815.00 | E67: 1726.15 | F67: 1656.20 | G67: 1567.35 | H67: 1884.95 | I67: 1973.80 | J67: 2043.75 | K67: 1903.85 | L67: 1745.05 | M67: 34.90486
A68: 59 | B68: DABUR | C68: 569.7 | D68: 575.75 | E68: 557.75 | F68: 545.80 | G68: 527.80 | H68: 587.70 | I68: 605.70 | J68: 617.65 | K68: 593.75 | L68: 563.8 | M68: 75.08691
A69: 60 | B69: DALBHARAT | C69: 1990.15 | D69: 1987.98 | E69: 1974.97 | F69: 1959.78 | G69: 1946.77 | H69: 2003.17 | I69: 2016.18 | J69: 2031.37 | K69: 2001 | L69: 1972.8 | M69: 1.2618
A70: 61 | B70: DEEPAKNTR | C70: 2041.35 | D70: 2009.87 | E70: 1969.73 | F70: 1898.12 | G70: 1857.98 | H70: 2081.48 | I70: 2121.62 | J70: 2193.23 | K70: 2050 | L70: 1938.25 | M70: 15.41713
A71: 62 | B71: DELHIVERY | C71: 420.75 | D71: 414.60 | E71: 405.25 | F71: 389.75 | G71: 380.40 | H71: 430.10 | I71: 439.45 | J71: 454.95 | K71: 423.95 | L71: 399.1 | M71: 35.86674
A72: 63 | B72: DEVYANI | C72: 188.85 | D72: 190.65 | E72: 183.30 | F72: 177.75 | G72: 170.40 | H72: 196.20 | I72: 203.55 | J72: 209.10 | K72: 198 | L72: 185.1 | M72: 42.66903
A73: 64 | B73: DIVISLAB | C73: 3745.4 | D73: 3742.78 | E73: 3725.62 | F73: 3705.83 | G73: 3688.67 | H73: 3762.57 | I73: 3779.73 | J73: 3799.52 | K73: 3759.95 | L73: 3723 | M73: 2.8024
A74: 65 | B74: DIXON | C74: 4616.25 | D74: 4632.70 | E74: 4448.55 | F74: 4280.85 | G74: 4096.70 | H74: 4800.40 | I74: 4984.55 | J74: 5152.25 | K74: 4816.85 | L74: 4465 | M74: 36.60506
A75: 66 | B75: DLF | C75: 489.65 | D75: 490.55 | E75: 487.10 | F75: 484.55 | G75: 481.10 | H75: 493.10 | I75: 496.55 | J75: 499.10 | K75: 494 | L75: 488 | M75: 25.09237
A76: 67 | B76: DMART | C76: 3652.1 | D76: 3664.03 | E76: 3628.07 | F76: 3604.03 | G76: 3568.07 | H76: 3688.07 | I76: 3724.03 | J76: 3748.07 | K76: 3700 | L76: 3640 | M76: 4.82851
A77: 68 | B77: DRREDDY | C77: 5649.55 | D77: 5666.85 | E77: 5622.70 | F77: 5595.85 | G77: 5551.70 | H77: 5693.70 | I77: 5737.85 | J77: 5764.70 | K77: 5711 | L77: 5640 | M77: 3.45304
A78: 69 | B78: EICHERMOT | C78: 3359.55 | D78: 3396.13 | E78: 3313.42 | F78: 3267.28 | G78: 3184.57 | H78: 3442.27 | I78: 3524.98 | J78: 3571.12 | K78: 3478.85 | L78: 3350 | M78: 12.35134
A79: 70 | B79: ESCORTS | C79: 2575.55 | D79: 2574.85 | E79: 2551.75 | F79: 2527.95 | G79: 2504.85 | H79: 2598.65 | I79: 2621.75 | J79: 2645.55 | K79: 2597.95 | L79: 2551.05 | M79: 1.85456
A80: 71 | B80: FEDERALBNK | C80: 134.6 | D80: 133.93 | E80: 132.37 | F80: 130.13 | G80: 128.57 | H80: 136.17 | I80: 137.73 | J80: 139.97 | K80: 135.5 | L80: 131.7 | M80: 166.63874
A81: 72 | B81: FLUOROCHEM | C81: 2805.7 | D81: 2799.83 | E81: 2786.67 | F81: 2767.63 | G81: 2754.47 | H81: 2818.87 | I81: 2832.03 | J81: 2851.07 | K81: 2813 | L81: 2780.8 | M81: 2.37773
A82: 73 | B82: FORTIS | C82: 338.5 | D82: 337.12 | E82: 334.73 | F82: 330.97 | G82: 328.58 | H82: 340.88 | I82: 343.27 | J82: 347.03 | K82: 339.5 | L82: 333.35 | M82: 20.9565
A83: 74 | B83: GAIL | C83: 115.3 | D83: 115.47 | E83: 114.03 | F83: 112.77 | G83: 111.33 | H83: 116.73 | I83: 118.17 | J83: 119.43 | K83: 116.9 | L83: 114.2 | M83: 112.30403
A84: 75 | B84: GLAND | C84: 1335.45 | D84: 1343.15 | E84: 1322.30 | F84: 1309.15 | G84: 1288.30 | H84: 1356.30 | I84: 1377.15 | J84: 1390.30 | K84: 1364 | L84: 1330 | M84: 6.3981
A85: 76 | B85: GODREJCP | C85: 1017.55 | D85: 1015.97 | E85: 1011.08 | F85: 1004.62 | G85: 999.73 | H85: 1022.43 | I85: 1027.32 | J85: 1033.78 | K85: 1020.85 | L85: 1009.5 | M85: 5.97861
A86: 77 | B86: GODREJPROP | C86: 1535.9 | D86: 1552.43 | E86: 1514.92 | F86: 1493.93 | G86: 1456.42 | H86: 1573.42 | I86: 1610.93 | J86: 1631.92 | K86: 1589.95 | L86: 1531.45 | M86: 10.27141
A87: 78 | B87: GRASIM | C87: 1825.45 | D87: 1830.52 | E87: 1815.08 | F87: 1804.72 | G87: 1789.28 | H87: 1840.88 | I87: 1856.32 | J87: 1866.68 | K87: 1845.95 | L87: 1820.15 | M87: 3.24658
A88: 79 | B88: GUJGASLTD | C88: 450.9 | D88: 452.68 | E88: 447.87 | F88: 444.83 | G88: 440.02 | H88: 455.72 | I88: 460.53 | J88: 463.57 | K88: 457.5 | L88: 449.65 | M88: 36.85903
A89: 80 | B89: HAL | C89: 3750 | D89: 3763.42 | E89: 3726.88 | F89: 3703.77 | G89: 3667.23 | H89: 3786.53 | I89: 3823.07 | J89: 3846.18 | K89: 3799.95 | L89: 3740.3 | M89: 5.06876
A90: 81 | B90: HAVELLS | C90: 1313.95 | D90: 1311.18 | E90: 1296.77 | F90: 1279.58 | G90: 1265.17 | H90: 1328.37 | I90: 1342.78 | J90: 1359.97 | K90: 1325.6 | L90: 1294 | M90: 5.88755
A91: 82 | B91: HCLTECH | C91: 1144.35 | D91: 1140.90 | E91: 1129.45 | F91: 1114.55 | G91: 1103.10 | H91: 1155.80 | I91: 1167.25 | J91: 1182.15 | K91: 1152.35 | L91: 1126 | M91: 33.15303
A92: 83 | B92: HDFCAMC | C92: 2406.3 | D92: 2405.27 | E92: 2372.58 | F92: 2338.87 | G92: 2306.18 | H92: 2438.98 | I92: 2471.67 | J92: 2505.38 | K92: 2437.95 | L92: 2371.55 | M92: 4.36828
A93: 84 | B93: HDFCBANK | C93: 1652.2 | D93: 1645.98 | E93: 1635.47 | F93: 1618.73 | G93: 1608.22 | H93: 1662.72 | I93: 1673.23 | J93: 1689.97 | K93: 1656.5 | L93: 1629.25 | M93: 186.94152
A94: 85 | B94: HDFCLIFE | C94: 642.2 | D94: 640.53 | E94: 636.82 | F94: 631.43 | G94: 627.72 | H94: 645.92 | I94: 649.63 | J94: 655.02 | K94: 644.25 | L94: 635.15 | M94: 20.32172
A95: 86 | B95: HEROMOTOCO | C95: 2944.7 | D95: 2950.38 | E95: 2915.77 | F95: 2886.83 | G95: 2852.22 | H95: 2979.32 | I95: 3013.93 | J95: 3042.87 | K95: 2985 | L95: 2921.45 | M95: 6.42027
A96: 87 | B96: HINDALCO | C96: 457 | D96: 458.97 | E96: 451.93 | F96: 446.87 | G96: 439.83 | H96: 464.03 | I96: 471.07 | J96: 476.13 | K96: 466 | L96: 453.9 | M96: 75.76934
A97: 88 | B97: HINDPETRO | C97: 266.7 | D97: 268.93 | E97: 263.97 | F97: 261.23 | G97: 256.27 | H97: 271.67 | I97: 276.63 | J97: 279.37 | K97: 273.9 | L97: 266.2 | M97: 33.33298
A98: 89 | B98: HINDUNILVR | C98: 2546 | D98: 2546.67 | E98: 2534.38 | F98: 2522.77 | G98: 2510.48 | H98: 2558.28 | I98: 2570.57 | J98: 2582.18 | K98: 2558.95 | L98: 2535.05 | M98: 13.59318
A99: 90 | B99: HINDZINC | C99: 318.2 | D99: 318.82 | E99: 316.13 | F99: 314.07 | G99: 311.38 | H99: 320.88 | I99: 323.57 | J99: 325.63 | K99: 321.5 | L99: 316.75 | M99: 3.62429
A100: 91 | B100: HONAUT | C100: 42327.75 | D100: 42309.18 | E100: 41819.37 | F100: 41310.98 | G100: 40821.17 | H100: 42817.57 | I100: 43307.38 | J100: 43815.77 | K100: 42799 | L100: 41800.8 | M100: 0.01416
A101: 92 | B101: ICICIBANK | C101: 970.5 | D101: 969.25 | E101: 962.50 | F101: 954.50 | G101: 947.75 | H101: 977.25 | I101: 984.00 | J101: 992.00 | K101: 976 | L101: 961.25 | M101: 205.82882
A102: 93 | B102: ICICIGI | C102: 1366.9 | D102: 1362.82 | E102: 1350.68 | F102: 1334.47 | G102: 1322.33 | H102: 1379.03 | I102: 1391.17 | J102: 1407.38 | K102: 1374.95 | L102: 1346.6 | M102: 2.8545
A103: 94 | B103: ICICIPRULI | C103: 579 | D103: 576.42 | E103: 570.83 | F103: 562.67 | G103: 557.08 | H103: 584.58 | I103: 590.17 | J103: 598.33 | K103: 582 | L103: 568.25 | M103: 11.43739
A104: 95 | B104: IDEA | C104: 8.25 | D104: 8.17 | E104: 7.93 | F104: 7.62 | G104: 7.38 | H104: 8.48 | I104: 8.72 | J104: 9.03 | K104: 8.4 | L104: 7.85 | M104: 1538.31069
A105: 96 | B105: IDFCFIRSTB | C105: 87.45 | D105: 87.38 | E105: 86.57 | F105: 85.68 | G105: 84.87 | H105: 88.27 | I105: 89.08 | J105: 89.97 | K105: 88.2 | L105: 86.5 | M105: 286.66645
A106: 97 | B106: IGL | C106: 455.35 | D106: 453.73 | E106: 450.62 | F106: 445.88 | G106: 442.77 | H106: 458.47 | I106: 461.58 | J106: 466.32 | K106: 456.85 | L106: 449 | M106: 12.74412
A107: 98 | B107: INDHOTEL | C107: 395.85 | D107: 397.25 | E107: 393.05 | F107: 390.25 | G107: 386.05 | H107: 400.05 | I107: 404.25 | J107: 407.05 | K107: 401.45 | L107: 394.45 | M107: 27.99723
A108: 99 | B108: INDIANB | C108: 343.35 | D108: 343.58 | E108: 338.82 | F108: 334.28 | G108: 329.52 | H108: 348.12 | I108: 352.88 | J108: 357.42 | K108: 348.35 | L108: 339.05 | M108: 6.66764
A109: 100 | B109: INDIGO | C109: 2512.9 | D109: 2494.63 | E109: 2469.27 | F109: 2425.63 | G109: 2400.27 | H109: 2538.27 | I109: 2563.63 | J109: 2607.27 | K109: 2520 | L109: 2451 | M109: 10.68401
A110: 101 | B110: INDUSINDBK | C110: 1409.6 | D110: 1396.93 | E110: 1378.97 | F110: 1348.33 | G110: 1330.37 | H110: 1427.57 | I110: 1445.53 | J110: 1476.17 | K110: 1414.9 | L110: 1366.3 | M110: 40.63355
A111: 102 | B111: INDUSTOWER | C111: 173 | D111: 172.92 | E111: 170.68 | F111: 168.37 | G111: 166.13 | H111: 175.23 | I111: 177.47 | J111: 179.78 | K111: 175.15 | L111: 170.6 | M111: 44.83074
A112: 103 | B112: INFY | C112: 1378.35 | D112: 1375.42 | E112: 1364.93 | F112: 1351.52 | G112: 1341.03 | H112: 1388.83 | I112: 1399.32 | J112: 1412.73 | K112: 1385.9 | L112: 1362 | M112: 57.12345
A113: 104 | B113: IOC | C113: 92.3 | D113: 92.75 | E113: 91.60 | F113: 90.90 | G113: 89.75 | H113: 93.45 | I113: 94.60 | J113: 95.30 | K113: 93.9 | L113: 92.05 | M113: 107.4367
A114: 105 | B114: IPCALAB | C114: 908.3 | D114: 902.77 | E114: 893.78 | F114: 879.27 | G114: 870.28 | H114: 917.28 | I114: 926.27 | J114: 940.78 | K114: 911.75 | L114: 888.25 | M114: 5.84186
A115: 106 | B115: IRCTC | C115: 653.55 | D115: 658.02 | E115: 647.13 | F115: 640.72 | G115: 629.83 | H115: 664.43 | I115: 675.32 | J115: 681.73 | K115: 668.9 | L115: 651.6 | M115: 23.64709
A116: 107 | B116: IRFC | C116: 45.05 | D116: 45.95 | E116: 43.60 | F116: 42.15 | G116: 39.80 | H116: 47.40 | I116: 49.75 | J116: 51.20 | K116: 48.3 | L116: 44.5 | M116: 2743.50314
A117: 108 | B117: ITC | C117: 454.95 | D117: 456.87 | E117: 452.33 | F117: 449.72 | G117: 445.18 | H117: 459.48 | I117: 464.02 | J117: 466.63 | K117: 461.4 | L117: 454.25 | M117: 68.34401
A118: 109 | B118: JINDALSTEL | C118: 652.7 | D118: 654.85 | E118: 645.40 | F118: 638.10 | G118: 628.65 | H118: 662.15 | I118: 671.60 | J118: 678.90 | K118: 664.3 | L118: 647.55 | M118: 17.91378
A119: 110 | B119: JSWENERGY | C119: 293.3 | D119: 292.47 | E119: 289.23 | F119: 285.17 | G119: 281.93 | H119: 296.53 | I119: 299.77 | J119: 303.83 | K119: 295.7 | L119: 288.4 | M119: 16.43906
A120: 111 | B120: JSWSTEEL | C120: 805.95 | D120: 807.85 | E120: 800.90 | F120: 795.85 | G120: 788.90 | H120: 812.90 | I120: 819.85 | J120: 824.90 | K120: 814.8 | L120: 802.8 | M120: 12.75614
A121: 112 | B121: JUBLFOOD | C121: 517.15 | D121: 509.72 | E121: 499.43 | F121: 481.72 | G121: 471.43 | H121: 527.43 | I121: 537.72 | J121: 555.43 | K121: 520 | L121: 492 | M121: 67.433
A122: 113 | B122: KOTAKBANK | C122: 1838.5 | D122: 1830.82 | E122: 1818.83 | F122: 1799.17 | G122: 1787.18 | H122: 1850.48 | I122: 1862.47 | J122: 1882.13 | K122: 1842.8 | L122: 1811.15 | M122: 54.43532
A123: 114 | B123: L&TFH | C123: 127.65 | D123: 127.02 | E123: 125.68 | F123: 123.72 | G123: 122.38 | H123: 128.98 | I123: 130.32 | J123: 132.28 | K123: 128.35 | L123: 125.05 | M123: 77.90543
A124: 115 | B124: LALPATHLAB | C124: 2349.95 | D124: 2341.03 | E124: 2320.07 | F124: 2290.18 | G124: 2269.22 | H124: 2370.92 | I124: 2391.88 | J124: 2421.77 | K124: 2362 | L124: 2311.15 | M124: 1.22269
A125: 116 | B125: LAURUSLABS | C125: 392.3 | D125: 389.77 | E125: 385.03 | F125: 377.77 | G125: 373.03 | H125: 397.03 | I125: 401.77 | J125: 409.03 | K125: 394.5 | L125: 382.5 | M125: 56.61603
A126: 117 | B126: LICHSGFIN | C126: 426.65 | D126: 416.80 | E126: 399.85 | F126: 373.05 | G126: 356.10 | H126: 443.60 | I126: 460.55 | J126: 487.35 | K126: 433.75 | L126: 390 | M126: 297.20946
A127: 118 | B127: LICI | C127: 658.5 | D127: 656.55 | E127: 648.10 | F127: 637.70 | G127: 629.25 | H127: 666.95 | I127: 675.40 | J127: 685.80 | K127: 665 | L127: 646.15 | M127: 25.93055
A128: 119 | B128: LT | C128: 2626.9 | D128: 2620.13 | E128: 2605.27 | F128: 2583.63 | G128: 2568.77 | H128: 2641.77 | I128: 2656.63 | J128: 2678.27 | K128: 2635 | L128: 2598.5 | M128: 11.01278
A129: 120 | B129: LTIM | C129: 4940.9 | D129: 4934.35 | E129: 4887.75 | F129: 4834.60 | G129: 4788.00 | H129: 4987.50 | I129: 5034.10 | J129: 5087.25 | K129: 4980.95 | L129: 4881.2 | M129: 2.38713
A130: 121 | B130: LTTS | C130: 4215.2 | D130: 4234.97 | E130: 4180.23 | F130: 4145.27 | G130: 4090.53 | H130: 4269.93 | I130: 4324.67 | J130: 4359.63 | K130: 4289.7 | L130: 4200 | M130: 3.48931
A131: 122 | B131: LUPIN | C131: 1064 | D131: 1051.18 | E131: 1023.92 | F131: 983.83 | G131: 956.57 | H131: 1091.27 | I131: 1118.53 | J131: 1158.62 | K131: 1078.45 | L131: 1011.1 | M131: 49.76674
A132: 123 | B132: M&M | C132: 1464.65 | D132: 1460.95 | E132: 1419.45 | F132: 1374.25 | G132: 1332.75 | H132: 1506.15 | I132: 1547.65 | J132: 1592.85 | K132: 1502.45 | L132: 1415.75 | M132: 80.66091
A133: 124 | B133: M&MFIN | C133: 290.15 | D133: 289.83 | E133: 286.42 | F133: 282.68 | G133: 279.27 | H133: 293.57 | I133: 296.98 | J133: 300.72 | K133: 293.25 | L133: 286.1 | M133: 36.91521
A134: 125 | B134: MANKIND | C134: 1880.6 | D134: 1895.98 | E134: 1846.97 | F134: 1813.33 | G134: 1764.32 | H134: 1929.62 | I134: 1978.63 | J134: 2012.27 | K134: 1945 | L134: 1862.35 | M134: 7.83444
A135: 126 | B135: MARICO | C135: 576.2 | D135: 576.55 | E135: 571.25 | F135: 566.30 | G135: 561.00 | H135: 581.50 | I135: 586.80 | J135: 591.75 | K135: 581.85 | L135: 571.6 | M135: 23.97608
A136: 127 | B136: MARUTI | C136: 9470.4 | D136: 9504.47 | E136: 9392.93 | F136: 9315.47 | G136: 9203.93 | H136: 9581.93 | I136: 9693.47 | J136: 9770.93 | K136: 9616 | L136: 9427 | M136: 5.4047
A137: 128 | B137: MAXHEALTH | C137: 538.3 | D137: 539.20 | E137: 526.10 | F137: 513.90 | G137: 500.80 | H137: 551.40 | I137: 564.50 | J137: 576.70 | K137: 552.3 | L137: 527 | M137: 49.48029
A138: 129 | B138: MCDOWELL-N | C138: 1005.95 | D138: 1003.80 | E138: 998.60 | F138: 991.25 | G138: 986.05 | H138: 1011.15 | I138: 1016.35 | J138: 1023.70 | K138: 1009 | L138: 996.45 | M138: 3.82504
A139: 130 | B139: MFSL | C139: 771.1 | D139: 776.17 | E139: 758.38 | F139: 745.67 | G139: 727.88 | H139: 788.88 | I139: 806.67 | J139: 819.38 | K139: 793.95 | L139: 763.45 | M139: 6.1738
A140: 131 | B140: MOTHERSON | C140: 96.7 | D140: 97.13 | E140: 95.37 | F140: 94.03 | G140: 92.27 | H140: 98.47 | I140: 100.23 | J140: 101.57 | K140: 98.9 | L140: 95.8 | M140: 69.92869
A141: 132 | B141: MPHASIS | C141: 2263.65 | D141: 2262.22 | E141: 2245.43 | F141: 2227.22 | G141: 2210.43 | H141: 2280.43 | I141: 2297.22 | J141: 2315.43 | K141: 2279 | L141: 2244 | M141: 2.33173
A142: 133 | B142: MRF | C142: 111296.5 | D142: 110022.95 | E142: 108048.90 | F142: 104801.30 | G142: 102827.25 | H142: 113270.55 | I142: 115244.60 | J142: 118492.20 | K142: 111997 | L142: 106775.35 | M142: 0.26665
A143: 134 | B143: MSUMI | C143: 60.5 | D143: 60.33 | E143: 59.67 | F143: 58.83 | G143: 58.17 | H143: 61.17 | I143: 61.83 | J143: 62.67 | K143: 61 | L143: 59.5 | M143: 62.74492
A144: 135 | B144: MUTHOOTFIN | C144: 1349.1 | D144: 1345.42 | E144: 1337.98 | F144: 1326.87 | G144: 1319.43 | H144: 1356.53 | I144: 1363.97 | J144: 1375.08 | K144: 1352.85 | L144: 1334.3 | M144: 3.21524
A145: 136 | B145: NAUKRI | C145: 4886.7 | D145: 4787.17 | E145: 4639.53 | F145: 4392.37 | G145: 4244.73 | H145: 5034.33 | I145: 5181.97 | J145: 5429.13 | K145: 4934.8 | L145: 4540 | M145: 11.38757
A146: 137 | B146: NAVINFLUOR | C146: 4505.85 | D146: 4507.12 | E146: 4465.23 | F146: 4424.62 | G146: 4382.73 | H146: 4547.73 | I146: 4589.62 | J146: 4630.23 | K146: 4549 | L146: 4466.5 | M146: 0.98925
A147: 138 | B147: NESTLEIND | C147: 22454.5 | D147: 22521.78 | E147: 22344.72 | F147: 22234.93 | G147: 22057.87 | H147: 22631.57 | I147: 22808.63 | J147: 22918.42 | K147: 22698.85 | L147: 22412 | M147: 0.4101
A148: 139 | B148: NHPC | C148: 49.45 | D148: 49.65 | E148: 48.90 | F148: 48.35 | G148: 47.60 | H148: 50.20 | I148: 50.95 | J148: 51.50 | K148: 50.4 | L148: 49.1 | M148: 115.63224
A149: 140 | B149: NMDC | C149: 113.25 | D149: 113.60 | E149: 112.75 | F149: 112.25 | G149: 111.40 | H149: 114.10 | I149: 114.95 | J149: 115.45 | K149: 114.45 | L149: 113.1 | M149: 55.58205
A150: 141 | B150: NTPC | C150: 217.95 | D150: 219.25 | E150: 216.30 | F150: 214.65 | G150: 211.70 | H150: 220.90 | I150: 223.85 | J150: 225.50 | K150: 222.2 | L150: 217.6 | M150: 128.79897
A151: 142 | B151: NYKAA | C151: 147.55 | D151: 147.20 | E151: 144.40 | F151: 141.25 | G151: 138.45 | H151: 150.35 | I151: 153.15 | J151: 156.30 | K151: 150 | L151: 144.05 | M151: 91.64577
A152: 143 | B152: OBEROIRLTY | C152: 1121.9 | D152: 1117.00 | E152: 1095.90 | F152: 1069.90 | G152: 1048.80 | H152: 1143.00 | I152: 1164.10 | J152: 1190.10 | K152: 1138.1 | L152: 1091 | M152: 10.34552
A153: 144 | B153: OFSS | C153: 3883.3 | D153: 3887.15 | E153: 3818.00 | F153: 3752.70 | G153: 3683.55 | H153: 3952.45 | I153: 4021.60 | J153: 4086.90 | K153: 3956.3 | L153: 3821.85 | M153: 0.80029
A154: 145 | B154: OIL | C154: 273.7 | D154: 273.55 | E154: 271.00 | F154: 268.30 | G154: 265.75 | H154: 276.25 | I154: 278.80 | J154: 281.50 | K154: 276.1 | L154: 270.85 | M154: 5.73061
A155: 146 | B155: ONGC | C155: 173.35 | D155: 173.30 | E155: 172.15 | F155: 170.95 | G155: 169.80 | H155: 174.50 | I155: 175.65 | J155: 176.85 | K155: 174.45 | L155: 172.1 | M155: 46.05271
A156: 147 | B156: PAGEIND | C156: 38910.3 | D156: 38870.58 | E156: 38669.72 | F156: 38429.13 | G156: 38228.27 | H156: 39111.17 | I156: 39312.03 | J156: 39552.62 | K156: 39071.45 | L156: 38630 | M156: 0.0926
A157: 148 | B157: PATANJALI | C157: 1375.2 | D157: 1348.13 | E157: 1321.07 | F157: 1266.93 | G157: 1239.87 | H157: 1402.27 | I157: 1429.33 | J157: 1483.47 | K157: 1375.2 | L157: 1294 | M157: 5.50799
A158: 149 | B158: PAYTM | C158: 796.6 | D158: 790.68 | E158: 781.92 | F158: 767.23 | G158: 758.47 | H158: 805.37 | I158: 814.13 | J158: 828.82 | K158: 799.45 | L158: 776 | M158: 37.23457
A159: 150 | B159: PEL | C159: 966.3 | D159: 970.15 | E159: 958.35 | F159: 950.40 | G159: 938.60 | H159: 978.10 | I159: 989.90 | J159: 997.85 | K159: 981.95 | L159: 962.2 | M159: 14.31066
A160: 151 | B160: PERSISTENT | C160: 4785.75 | D160: 4768.68 | E160: 4727.37 | F160: 4668.98 | G160: 4627.67 | H160: 4827.07 | I160: 4868.38 | J160: 4926.77 | K160: 4810 | L160: 4710.3 | M160: 3.25905
A161: 152 | B161: PETRONET | C161: 224.1 | D161: 224.75 | E161: 223.10 | F161: 222.10 | G161: 220.45 | H161: 225.75 | I161: 227.40 | J161: 228.40 | K161: 226.4 | L161: 223.75 | M161: 21.88122
A162: 153 | B162: PFC | C162: 258.6 | D162: 259.55 | E162: 256.20 | F162: 253.80 | G162: 250.45 | H162: 261.95 | I162: 265.30 | J162: 267.70 | K162: 262.9 | L162: 257.15 | M162: 81.95058
A163: 154 | B163: PGHH | C163: 15554.1 | D163: 15616.52 | E163: 15453.58 | F163: 15353.07 | G163: 15190.13 | H163: 15717.03 | I163: 15879.97 | J163: 15980.48 | K163: 15779.45 | L163: 15516 | M163: 0.01351
A164: 155 | B164: PIDILITIND | C164: 2609.8 | D164: 2604.33 | E164: 2590.02 | F164: 2570.23 | G164: 2555.92 | H164: 2624.12 | I164: 2638.43 | J164: 2658.22 | K164: 2618.65 | L164: 2584.55 | M164: 1.76758
A165: 156 | B165: PIIND | C165: 3701.75 | D165: 3706.17 | E165: 3678.33 | F165: 3654.92 | G165: 3627.08 | H165: 3729.58 | I165: 3757.42 | J165: 3780.83 | K165: 3734 | L165: 3682.75 | M165: 1.77255
A166: 157 | B166: PNB | C166: 59.95 | D166: 59.93 | E166: 59.27 | F166: 58.58 | G166: 57.92 | H166: 60.62 | I166: 61.28 | J166: 61.97 | K166: 60.6 | L166: 59.25 | M166: 426.77862
A167: 158 | B167: POLICYBZR | C167: 781 | D167: 765.98 | E167: 743.27 | F167: 705.53 | G167: 682.82 | H167: 803.72 | I167: 826.43 | J167: 864.17 | K167: 788.7 | L167: 728.25 | M167: 31.43664
A168: 159 | B168: POLYCAB | C168: 4614.9 | D168: 4622.70 | E168: 4581.70 | F168: 4548.50 | G168: 4507.50 | H168: 4655.90 | I168: 4696.90 | J168: 4730.10 | K168: 4663.7 | L168: 4589.5 | M168: 3.75403
A169: 160 | B169: POONAWALLA | C169: 419.6 | D169: 417.77 | E169: 412.93 | F169: 406.27 | G169: 401.43 | H169: 424.43 | I169: 429.27 | J169: 435.93 | K169: 422.6 | L169: 411.1 | M169: 23.11369
A170: 161 | B170: POWERGRID | C170: 247.35 | D170: 247.67 | E170: 246.28 | F170: 245.22 | G170: 243.83 | H170: 248.73 | I170: 250.12 | J170: 251.18 | K170: 249.05 | L170: 246.6 | M170: 55.54793
A171: 162 | B171: PRESTIGE | C171: 573.95 | D171: 574.17 | E171: 568.33 | F171: 562.72 | G171: 556.88 | H171: 579.78 | I171: 585.62 | J171: 591.23 | K171: 580 | L171: 568.55 | M171: 2.0879
A172: 163 | B172: RAMCOCEM | C172: 876.6 | D172: 871.30 | E172: 860.60 | F172: 844.60 | G172: 833.90 | H172: 887.30 | I172: 898.00 | J172: 914.00 | K172: 882 | L172: 855.3 | M172: 6.92816
A173: 164 | B173: RECLTD | C173: 199.4 | D173: 199.75 | E173: 197.05 | F173: 194.70 | G173: 192.00 | H173: 202.10 | I173: 204.80 | J173: 207.15 | K173: 202.45 | L173: 197.4 | M173: 87.19652
A174: 165 | B174: RELIANCE | C174: 2509.55 | D174: 2499.05 | E174: 2482.10 | F174: 2454.65 | G174: 2437.70 | H174: 2526.50 | I174: 2543.45 | J174: 2570.90 | K174: 2516 | L174: 2471.6 | M174: 114.42805
A175: 166 | B175: SAIL | C175: 94 | D175: 93.78 | E175: 93.32 | F175: 92.63 | G175: 92.17 | H175: 94.47 | I175: 94.93 | J175: 95.62 | K175: 94.25 | L175: 93.1 | M175: 75.94563
A176: 167 | B176: SBICARD | C176: 881.3 | D176: 878.08 | E176: 867.22 | F176: 853.13 | G176: 842.27 | H176: 892.17 | I176: 903.03 | J176: 917.12 | K176: 888.95 | L176: 864 | M176: 14.06495
A177: 168 | B177: SBILIFE | C177: 1267.9 | D177: 1269.68 | E177: 1252.22 | F177: 1236.53 | G177: 1219.07 | H177: 1285.37 | I177: 1302.83 | J177: 1318.52 | K177: 1287.15 | L177: 1254 | M177: 16.0914
A178: 169 | B178: SBIN | C178: 573.3 | D178: 581.13 | E178: 563.57 | F178: 553.83 | G178: 536.27 | H178: 590.87 | I178: 608.43 | J178: 618.17 | K178: 598.7 | L178: 571.4 | M178: 527.25616
A179: 170 | B179: SHREECEM | C179: 24224.2 | D179: 24204.23 | E179: 24122.47 | F179: 24020.73 | G179: 23938.97 | H179: 24305.97 | I179: 24387.73 | J179: 24489.47 | K179: 24286 | L179: 24102.5 | M179: 0.18589
A180: 171 | B180: SHRIRAMFIN | C180: 1837 | D180: 1827.58 | E180: 1811.47 | F180: 1785.93 | G180: 1769.82 | H180: 1853.12 | I180: 1869.23 | J180: 1894.77 | K180: 1843.7 | L180: 1802.05 | M180: 10.9112
A181: 172 | B181: SIEMENS | C181: 3776 | D181: 3789.40 | E181: 3750.05 | F181: 3724.10 | G181: 3684.75 | H181: 3815.35 | I181: 3854.70 | J181: 3880.65 | K181: 3828.75 | L181: 3763.45 | M181: 2.62969
A182: 173 | B182: SONACOMS | C182: 557.75 | D182: 557.78 | E182: 549.07 | F182: 540.38 | G182: 531.67 | H182: 566.47 | I182: 575.18 | J182: 583.87 | K182: 566.5 | L182: 549.1 | M182: 6.38424
A183: 174 | B183: SRF | C183: 2266.8 | D183: 2268.93 | E183: 2257.87 | F183: 2248.93 | G183: 2237.87 | H183: 2277.87 | I183: 2288.93 | J183: 2297.87 | K183: 2280 | L183: 2260 | M183: 3.05218
A184: 175 | B184: SUNPHARMA | C184: 1138.95 | D184: 1135.00 | E184: 1125.00 | F184: 1111.05 | G184: 1101.05 | H184: 1148.95 | I184: 1158.95 | J184: 1172.90 | K184: 1145 | L184: 1121.05 | M184: 35.27805
A185: 176 | B185: SUNTV | C185: 533.2 | D185: 531.03 | E185: 522.42 | F185: 511.63 | G185: 503.02 | H185: 541.82 | I185: 550.43 | J185: 561.22 | K185: 539.65 | L185: 520.25 | M185: 6.64391
A186: 177 | B186: SYNGENE | C186: 810.85 | D186: 808.60 | E186: 802.25 | F186: 793.65 | G186: 787.30 | H186: 817.20 | I186: 823.55 | J186: 832.15 | K186: 814.95 | L186: 800 | M186: 2.3949
A187: 178 | B187: TATACHEM | C187: 1047.45 | D187: 1049.52 | E187: 1040.23 | F187: 1033.02 | G187: 1023.73 | H187: 1056.73 | I187: 1066.02 | J187: 1073.23 | K187: 1058.8 | L187: 1042.3 | M187: 9.05449
A188: 179 | B188: TATACOMM | C188: 1686.3 | D188: 1692.98 | E188: 1676.02 | F188: 1665.73 | G188: 1648.77 | H188: 1703.27 | I188: 1720.23 | J188: 1730.52 | K188: 1709.95 | L188: 1682.7 | M188: 5.17698
A189: 180 | B189: TATACONSUM | C189: 834.8 | D189: 836.23 | E189: 830.87 | F189: 826.93 | G189: 821.57 | H189: 840.17 | I189: 845.53 | J189: 849.47 | K189: 841.6 | L189: 832.3 | M189: 8.87582
A190: 181 | B190: TATAELXSI | C190: 7182.45 | D190: 7189.75 | E190: 7162.50 | F190: 7142.55 | G190: 7115.30 | H190: 7209.70 | I190: 7236.95 | J190: 7256.90 | K190: 7217 | L190: 7169.8 | M190: 0.76182
A191: 182 | B191: TATAMOTORS | C191: 615 | D191: 617.77 | E191: 610.53 | F191: 606.07 | G191: 598.83 | H191: 622.23 | I191: 629.47 | J191: 633.93 | K191: 625 | L191: 613.3 | M191: 118.06739
A192: 183 | B192: TATAPOWER | C192: 235.65 | D192: 235.83 | E192: 234.32 | F192: 232.98 | G192: 231.47 | H192: 237.17 | I192: 238.68 | J192: 240.02 | K192: 237.35 | L192: 234.5 | M192: 77.10303
A193: 184 | B193: TATASTEEL | C193: 119 | D193: 118.92 | E193: 118.08 | F193: 117.17 | G193: 116.33 | H193: 119.83 | I193: 120.67 | J193: 121.58 | K193: 119.75 | L193: 118 | M193: 223.03966
A194: 185 | B194: TCS | C194: 3443.55 | D194: 3438.60 | E194: 3406.20 | F194: 3368.85 | G194: 3336.45 | H194: 3475.95 | I194: 3508.35 | J194: 3545.70 | K194: 3471 | L194: 3401.25 | M194: 22.48493
A195: 186 | B195: TECHM | C195: 1175.2 | D195: 1166.62 | E195: 1151.38 | F195: 1127.57 | G195: 1112.33 | H195: 1190.43 | I195: 1205.67 | J195: 1229.48 | K195: 1181.85 | L195: 1142.8 | M195: 35.80506
A196: 187 | B196: TIINDIA | C196: 3102.45 | D196: 3089.85 | E196: 3017.70 | F196: 2932.95 | G196: 2860.80 | H196: 3174.60 | I196: 3246.75 | J196: 3331.50 | K196: 3162 | L196: 3005.1 | M196: 2.1249
A197: 188 | B197: TITAN | C197: 2904.4 | D197: 2912.73 | E197: 2889.67 | F197: 2874.93 | G197: 2851.87 | H197: 2927.47 | I197: 2950.53 | J197: 2965.27 | K197: 2935.8 | L197: 2898 | M197: 7.09334
A198: 189 | B198: TORNTPHARM | C198: 2062.15 | D198: 2049.22 | E198: 2017.43 | F198: 1972.72 | G198: 1940.93 | H198: 2093.93 | I198: 2125.72 | J198: 2170.43 | K198: 2081 | L198: 2004.5 | M198: 8.17028
A199: 190 | B199: TORNTPOWER | C199: 666 | D199: 669.45 | E199: 657.90 | F199: 649.80 | G199: 638.25 | H199: 677.55 | I199: 689.10 | J199: 697.20 | K199: 681 | L199: 661.35 | M199: 2.73954
A200: 191 | B200: TRENT | C200: 1700.95 | D200: 1703.00 | E200: 1687.95 | F200: 1674.95 | G200: 1659.90 | H200: 1716.00 | I200: 1731.05 | J200: 1744.05 | K200: 1718.05 | L200: 1690 | M200: 3.96908
A201: 192 | B201: TRIDENT | C201: 31.9 | D201: 31.93 | E201: 31.62 | F201: 31.33 | G201: 31.02 | H201: 32.22 | I201: 32.53 | J201: 32.82 | K201: 32.25 | L201: 31.65 | M201: 49.98299
A202: 193 | B202: TTML | C202: 79.65 | D202: 79.68 | E202: 78.67 | F202: 77.68 | G202: 76.67 | H202: 80.67 | I202: 81.68 | J202: 82.67 | K202: 80.7 | L202: 78.7 | M202: 35.12993
A203: 194 | B203: TVSMOTOR | C203: 1358.8 | D203: 1363.40 | E203: 1341.85 | F203: 1324.90 | G203: 1303.35 | H203: 1380.35 | I203: 1401.90 | J203: 1418.85 | K203: 1384.95 | L203: 1346.45 | M203: 5.39333
A204: 195 | B204: UBL | C204: 1580 | D204: 1575.97 | E204: 1568.03 | F204: 1556.07 | G204: 1548.13 | H204: 1587.93 | I204: 1595.87 | J204: 1607.83 | K204: 1583.9 | L204: 1564 | M204: 3.20229
A205: 196 | B205: ULTRACEMCO | C205: 8158.15 | D205: 8179.58 | E205: 8127.32 | F205: 8096.48 | G205: 8044.22 | H205: 8210.42 | I205: 8262.68 | J205: 8293.52 | K205: 8231.85 | L205: 8148.75 | M205: 2.48048
... 29 more rows

Sheet MidCap Intra
L5: Back To Main Page
A6: FOR INTRA DAY TRADING | K6: =Main!B10 -> 2023-08-07
A9: Sr.no | B9: Scrip | C9: CLOSE RATE | D9: Pivot Point | E9: Supports | H9: Resistances
E10: S1 | F10: S2 | G10: S3 | H10: R1 | I10: R2 | J10: R3 | K10: HIGH | L10: LOW | M10: Total Trade Quanity in Lakhs
A11: 1 | B11: 360ONE | C11: 507.8 | D11: 504.38 | E11: 499.37 | F11: 490.93 | G11: 485.92 | H11: 512.82 | I11: 517.83 | J11: 526.27 | K11: 509.4 | L11: 495.95 | M11: 0.57906
A12: 2 | B12: 3MINDIA | C12: 28165.5 | D12: 28165.78 | E12: 27554.72 | F12: 26943.93 | G12: 26332.87 | H12: 28776.57 | I12: 29387.63 | J12: 29998.42 | K12: 28776.85 | L12: 27555 | M12: 0.01338
A13: 3 | B13: AARTIDRUGS | C13: 573.55 | D13: 578.18 | E13: 566.37 | F13: 559.18 | G13: 547.37 | H13: 585.37 | I13: 597.18 | J13: 604.37 | K13: 590 | L13: 571 | M13: 6.19971
A14: 4 | B14: AARTIIND | C14: 472.7 | D14: 473.80 | E14: 470.65 | F14: 468.60 | G14: 465.45 | H14: 475.85 | I14: 479.00 | J14: 481.05 | K14: 476.95 | L14: 471.75 | M14: 9.78868
A15: 5 | B15: AAVAS | C15: 1559.75 | D15: 1557.23 | E15: 1534.72 | F15: 1509.68 | G15: 1487.17 | H15: 1582.27 | I15: 1604.78 | J15: 1629.82 | K15: 1579.75 | L15: 1532.2 | M15: 2.74076
A16: 6 | B16: ABB | C16: 4438.05 | D16: 4399.35 | E16: 4349.70 | F16: 4261.35 | G16: 4211.70 | H16: 4487.70 | I16: 4537.35 | J16: 4625.70 | K16: 4449 | L16: 4311 | M16: 1.9949
A17: 7 | B17: ABBOTINDIA | C17: 23864 | D17: 24107.15 | E17: 23556.85 | F17: 23249.70 | G17: 22699.40 | H17: 24414.30 | I17: 24964.60 | J17: 25271.75 | K17: 24657.45 | L17: 23800 | M17: 0.12946
A18: 8 | B18: ACC | C18: 2042.75 | D18: 2037.02 | E18: 2021.53 | F18: 2000.32 | G18: 1984.83 | H18: 2058.23 | I18: 2073.72 | J18: 2094.93 | K18: 2052.5 | L18: 2015.8 | M18: 5.25513
A19: 9 | B19: ADANIENT | C19: 2541.8 | D19: 2533.90 | E19: 2509.90 | F19: 2478.00 | G19: 2454.00 | H19: 2565.80 | I19: 2589.80 | J19: 2621.70 | K19: 2557.9 | L19: 2502 | M19: 32.94056
A20: 10 | B20: ADANIGREEN | C20: 1012.55 | D20: 1027.65 | E20: 993.05 | F20: 973.55 | G20: 938.95 | H20: 1047.15 | I20: 1081.75 | J20: 1101.25 | K20: 1062.25 | L20: 1008.15 | M20: 9.24378
A21: 11 | B21: ADANIPORTS | C21: 775.25 | D21: 774.63 | E21: 769.37 | F21: 763.48 | G21: 758.22 | H21: 780.52 | I21: 785.78 | J21: 791.67 | K21: 779.9 | L21: 768.75 | M21: 27.58619
A22: 12 | B22: ADANIPOWER | C22: 278.5 | D22: 279.40 | E22: 274.30 | F22: 270.10 | G22: 265.00 | H22: 283.60 | I22: 288.70 | J22: 292.90 | K22: 284.5 | L22: 275.2 | M22: 102.93961
A23: 13 | B23: ATGL | C23: 649.65 | D23: 651.87 | E23: 641.78 | F23: 633.92 | G23: 623.83 | H23: 659.73 | I23: 669.82 | J23: 677.68 | K23: 661.95 | L23: 644 | M23: 4.47631
A24: 14 | B24: ADANITRANS | C24: 796.65 | D24: 796.48 | E24: 788.52 | F24: 780.38 | G24: 772.42 | H24: 804.62 | I24: 812.58 | J24: 820.72 | K24: 804.45 | L24: 788.35 | M24: 54.54846
A25: 15 | B25: AWL | C25: 398.1 | D25: 399.00 | E25: 396.00 | F25: 393.90 | G25: 390.90 | H25: 401.10 | I25: 404.10 | J25: 406.20 | K25: 402 | L25: 396.9 | M25: 8.12495
A26: 16 | B26: ABCAPITAL | C26: 188.5 | D26: 189.97 | E26: 185.03 | F26: 181.57 | G26: 176.63 | H26: 193.43 | I26: 198.37 | J26: 201.83 | K26: 194.9 | L26: 186.5 | M26: 43.1251
A27: 17 | B27: ABFRL | C27: 209.8 | D27: 212.90 | E27: 200.90 | F27: 192.00 | G27: 180.00 | H27: 221.80 | I27: 233.80 | J27: 242.70 | K27: 224.9 | L27: 204 | M27: 84.5763
A28: 18 | B28: AEGISCHEM | C28: 381.1 | D28: 382.35 | E28: 378.25 | F28: 375.40 | G28: 371.30 | H28: 385.20 | I28: 389.30 | J28: 392.15 | K28: 386.45 | L28: 379.5 | M28: 1.46552
A29: 19 | B29: AETHER | C29: 1039.5 | D29: 1041.95 | E29: 1027.20 | F29: 1014.90 | G29: 1000.15 | H29: 1054.25 | I29: 1069.00 | J29: 1081.30 | K29: 1056.7 | L29: 1029.65 | M29: 0.46183
A30: 20 | B30: AFFLE | C30: 1109.35 | D30: 1119.08 | E30: 1095.27 | F30: 1081.18 | G30: 1057.37 | H30: 1133.17 | I30: 1156.98 | J30: 1171.07 | K30: 1142.9 | L30: 1105 | M30: 2.77201
A31: 21 | B31: AIAENG | C31: 3412.65 | D31: 3424.95 | E31: 3385.10 | F31: 3357.55 | G31: 3317.70 | H31: 3452.50 | I31: 3492.35 | J31: 3519.90 | K31: 3464.8 | L31: 3397.4 | M31: 0.49908
A32: 22 | B32: AJANTPHARM | C32: 1747 | D32: 1744.08 | E32: 1724.47 | F32: 1701.93 | G32: 1682.32 | H32: 1766.62 | I32: 1786.23 | J32: 1808.77 | K32: 1763.7 | L32: 1721.55 | M32: 2.7887
A33: 23 | B33: APLLTD | C33: 780.4 | D33: 776.48 | E33: 756.67 | F33: 732.93 | G33: 713.12 | H33: 800.22 | I33: 820.03 | J33: 843.77 | K33: 796.3 | L33: 752.75 | M33: 5.37919
A34: 24 | B34: ALKEM | C34: 4099 | D34: 4071.07 | E34: 4032.13 | F34: 3965.27 | G34: 3926.33 | H34: 4137.93 | I34: 4176.87 | J34: 4243.73 | K34: 4110 | L34: 4004.2 | M34: 2.98023
A35: 25 | B35: ALKYLAMINE | C35: 2422.6 | D35: 2419.52 | E35: 2403.08 | F35: 2383.57 | G35: 2367.13 | H35: 2439.03 | I35: 2455.47 | J35: 2474.98 | K35: 2435.95 | L35: 2400 | M35: 0.17359
A36: 26 | B36: AMARAJABAT | C36: 626.15 | D36: 627.10 | E36: 622.45 | F36: 618.75 | G36: 614.10 | H36: 630.80 | I36: 635.45 | J36: 639.15 | K36: 631.75 | L36: 623.4 | M36: 8.59182
A37: 27 | B37: AMBER | C37: 2504.25 | D37: 2519.72 | E37: 2404.53 | F37: 2304.82 | G37: 2189.63 | H37: 2619.43 | I37: 2734.62 | J37: 2834.33 | K37: 2634.9 | L37: 2420 | M37: 8.51932
A38: 28 | B38: AMBUJACEM | C38: 471.75 | D38: 473.12 | E38: 468.73 | F38: 465.72 | G38: 461.33 | H38: 476.13 | I38: 480.52 | J38: 483.53 | K38: 477.5 | L38: 470.1 | M38: 29.94518
A39: 29 | B39: ANGELONE | C39: 1503.95 | D39: 1505.87 | E39: 1493.78 | F39: 1483.62 | G39: 1471.53 | H39: 1516.03 | I39: 1528.12 | J39: 1538.28 | K39: 1517.95 | L39: 1495.7 | M39: 2.03558
A40: 30 | B40: ANURAS | C40: 930.15 | D40: 931.40 | E40: 922.80 | F40: 915.45 | G40: 906.85 | H40: 938.75 | I40: 947.35 | J40: 954.70 | K40: 940 | L40: 924.05 | M40: 0.34001
A41: 31 | B41: APARINDS | C41: 3655.9 | D41: 3661.70 | E41: 3613.40 | F41: 3570.90 | G41: 3522.60 | H41: 3704.20 | I41: 3752.50 | J41: 3795.00 | K41: 3710 | L41: 3619.2 | M41: 0.65769
A42: 32 | B42: APLAPOLLO | C42: 1528.05 | D42: 1527.85 | E42: 1514.70 | F42: 1501.35 | G42: 1488.20 | H42: 1541.20 | I42: 1554.35 | J42: 1567.70 | K42: 1541 | L42: 1514.5 | M42: 2.80966
A43: 33 | B43: APOLLOHOSP | C43: 4980.3 | D43: 4993.58 | E43: 4950.72 | F43: 4921.13 | G43: 4878.27 | H43: 5023.17 | I43: 5066.03 | J43: 5095.62 | K43: 5036.45 | L43: 4964 | M43: 3.58846
A44: 34 | B44: APOLLOTYRE | C44: 437.3 | D44: 435.43 | E44: 429.97 | F44: 422.63 | G44: 417.17 | H44: 442.77 | I44: 448.23 | J44: 455.57 | K44: 440.9 | L44: 428.1 | M44: 22.11786
A45: 35 | B45: APTUS | C45: 266.4 | D45: 267.40 | E45: 264.30 | F45: 262.20 | G45: 259.10 | H45: 269.50 | I45: 272.60 | J45: 274.70 | K45: 270.5 | L45: 265.3 | M45: 3.054
A46: 36 | B46: ACI | C46: 515.55 | D46: 515.68 | E46: 509.42 | F46: 503.28 | G46: 497.02 | H46: 521.82 | I46: 528.08 | J46: 534.22 | K46: 521.95 | L46: 509.55 | M46: 2.19478
A47: 37 | B47: ASAHIINDIA | C47: 533.8 | D47: 534.75 | E47: 529.85 | F47: 525.90 | G47: 521.00 | H47: 538.70 | I47: 543.60 | J47: 547.55 | K47: 539.65 | L47: 530.8 | M47: 0.75521
A48: 38 | B48: ASHOKLEY | C48: 182.5 | D48: 182.42 | E48: 180.63 | F48: 178.77 | G48: 176.98 | H48: 184.28 | I48: 186.07 | J48: 187.93 | K48: 184.2 | L48: 180.55 | M48: 86.4958
A49: 39 | B49: ASIANPAINT | C49: 3339.65 | D49: 3345.32 | E49: 3317.33 | F49: 3295.02 | G49: 3267.03 | H49: 3367.63 | I49: 3395.62 | J49: 3417.93 | K49: 3373.3 | L49: 3323 | M49: 5.19248
A50: 40 | B50: ASTERDM | C50: 319.8 | D50: 318.95 | E50: 315.60 | F50: 311.40 | G50: 308.05 | H50: 323.15 | I50: 326.50 | J50: 330.70 | K50: 322.3 | L50: 314.75 | M50: 1.64087
A51: 41 | B51: ASTRAL | C51: 2025.65 | D51: 2028.88 | E51: 1999.77 | F51: 1973.88 | G51: 1944.77 | H51: 2054.77 | I51: 2083.88 | J51: 2109.77 | K51: 2058 | L51: 2003 | M51: 11.41954
A52: 42 | B52: ATUL | C52: 7078.05 | D52: 7065.38 | E52: 7012.67 | F52: 6947.28 | G52: 6894.57 | H52: 7130.77 | I52: 7183.48 | J52: 7248.87 | K52: 7118.1 | L52: 7000 | M52: 0.36149
A53: 43 | B53: AUBANK | C53: 738.9 | D53: 737.12 | E53: 731.18 | F53: 723.47 | G53: 717.53 | H53: 744.83 | I53: 750.77 | J53: 758.48 | K53: 743.05 | L53: 729.4 | M53: 12.94794
A54: 44 | B54: AUROPHARMA | C54: 841.55 | D54: 842.98 | E54: 830.57 | F54: 819.58 | G54: 807.17 | H54: 853.97 | I54: 866.38 | J54: 877.37 | K54: 855.4 | L54: 832 | M54: 19.20051
A55: 45 | B55: AVANTIFEED | C55: 401.25 | D55: 403.75 | E55: 395.95 | F55: 390.65 | G55: 382.85 | H55: 409.05 | I55: 416.85 | J55: 422.15 | K55: 411.55 | L55: 398.45 | M55: 1.22786
A56: 46 | B56: DMART | C56: 3652.1 | D56: 3664.03 | E56: 3628.07 | F56: 3604.03 | G56: 3568.07 | H56: 3688.07 | I56: 3724.03 | J56: 3748.07 | K56: 3700 | L56: 3640 | M56: 4.82851
A57: 47 | B57: AXISBANK | C57: 952.25 | D57: 947.25 | E57: 939.65 | F57: 927.05 | G57: 919.45 | H57: 959.85 | I57: 967.45 | J57: 980.05 | K57: 954.85 | L57: 934.65 | M57: 123.76086
A58: 48 | B58: BAJAJ-AUTO | C58: 4712 | D58: 4758.73 | E58: 4653.27 | F58: 4594.53 | G58: 4489.07 | H58: 4817.47 | I58: 4922.93 | J58: 4981.67 | K58: 4864.2 | L58: 4700 | M58: 4.51353
A59: 49 | B59: BAJFINANCE | C59: 7148.7 | D59: 7141.67 | E59: 7078.33 | F59: 7007.97 | G59: 6944.63 | H59: 7212.03 | I59: 7275.37 | J59: 7345.73 | K59: 7205 | L59: 7071.3 | M59: 7.31349
A60: 50 | B60: BAJAJFINSV | C60: 1486.3 | D60: 1488.13 | E60: 1468.92 | F60: 1451.53 | G60: 1432.32 | H60: 1505.52 | I60: 1524.73 | J60: 1542.12 | K60: 1507.35 | L60: 1470.75 | M60: 27.03607
A61: 51 | B61: BAJAJHLDNG | C61: 7394.55 | D61: 7421.18 | E61: 7343.37 | F61: 7292.18 | G61: 7214.37 | H61: 7472.37 | I61: 7550.18 | J61: 7601.37 | K61: 7499 | L61: 7370 | M61: 0.11767
A62: 52 | B62: BALAMINES | C62: 2233.2 | D62: 2239.93 | E62: 2215.22 | F62: 2197.23 | G62: 2172.52 | H62: 2257.92 | I62: 2282.63 | J62: 2300.62 | K62: 2264.65 | L62: 2221.95 | M62: 0.42901
A63: 53 | B63: BALKRISIND | C63: 2482.55 | D63: 2488.17 | E63: 2465.38 | F63: 2448.22 | G63: 2425.43 | H63: 2505.33 | I63: 2528.12 | J63: 2545.28 | K63: 2510.95 | L63: 2471 | M63: 1.49437
A64: 54 | B64: BALRAMCHIN | C64: 412.7 | D64: 411.45 | E64: 407.90 | F64: 403.10 | G64: 399.55 | H64: 416.25 | I64: 419.80 | J64: 424.60 | K64: 415 | L64: 406.65 | M64: 20.48706
A65: 55 | B65: BANDHANBNK | C65: 228.1 | D65: 228.00 | E65: 226.00 | F65: 223.90 | G65: 221.90 | H65: 230.10 | I65: 232.10 | J65: 234.20 | K65: 230 | L65: 225.9 | M65: 92.0117
A66: 56 | B66: BANKBARODA | C66: 191.35 | D66: 192.37 | E66: 188.58 | F66: 185.82 | G66: 182.03 | H66: 195.13 | I66: 198.92 | J66: 201.68 | K66: 196.15 | L66: 189.6 | M66: 327.81495
A67: 57 | B67: BANKINDIA | C67: 84.2 | D67: 84.42 | E67: 83.43 | F67: 82.67 | G67: 81.68 | H67: 85.18 | I67: 86.17 | J67: 86.93 | K67: 85.4 | L67: 83.65 | M67: 76.55878
A68: 58 | B68: MAHABANK | C68: 33.85 | D68: 34.02 | E68: 33.53 | F68: 33.22 | G68: 32.73 | H68: 34.33 | I68: 34.82 | J68: 35.13 | K68: 34.5 | L68: 33.7 | M68: 197.93627
A69: 59 | B69: BASF | C69: 2619.4 | D69: 2630.77 | E69: 2588.63 | F69: 2557.87 | G69: 2515.73 | H69: 2661.53 | I69: 2703.67 | J69: 2734.43 | K69: 2672.9 | L69: 2600 | M69: 0.18609
A70: 60 | B70: BATAINDIA | C70: 1759.15 | D70: 1753.00 | E70: 1742.30 | F70: 1725.45 | G70: 1714.75 | H70: 1769.85 | I70: 1780.55 | J70: 1797.40 | K70: 1763.7 | L70: 1736.15 | M70: 1.74206
A71: 61 | B71: BAYERCROP | C71: 4570.25 | D71: 4554.92 | E71: 4516.13 | F71: 4462.02 | G71: 4423.23 | H71: 4609.03 | I71: 4647.82 | J71: 4701.93 | K71: 4593.7 | L71: 4500.8 | M71: 0.11867
A72: 62 | B72: BEML | C72: 2005.3 | D72: 2021.75 | E72: 1968.55 | F72: 1931.80 | G72: 1878.60 | H72: 2058.50 | I72: 2111.70 | J72: 2148.45 | K72: 2074.95 | L72: 1985 | M72: 2.81046
A73: 63 | B73: BERGEPAINT | C73: 704.65 | D73: 702.88 | E73: 696.77 | F73: 688.88 | G73: 682.77 | H73: 710.77 | I73: 716.88 | J73: 724.77 | K73: 709 | L73: 695 | M73: 6.67507
A74: 64 | B74: BDL | C74: 1164.3 | D74: 1157.47 | E74: 1118.83 | F74: 1073.37 | G74: 1034.73 | H74: 1202.93 | I74: 1241.57 | J74: 1287.03 | K74: 1196.1 | L74: 1112 | M74: 13.03468
A75: 65 | B75: BEL | C75: 127.6 | D75: 127.05 | E75: 126.05 | F75: 124.50 | G75: 123.50 | H75: 128.60 | I75: 129.60 | J75: 131.15 | K75: 128.05 | L75: 125.5 | M75: 105.89274
A76: 66 | B76: BHARATFORG | C76: 912.55 | D76: 911.95 | E76: 904.80 | F76: 897.05 | G76: 889.90 | H76: 919.70 | I76: 926.85 | J76: 934.60 | K76: 919.1 | L76: 904.2 | M76: 7.0977
A77: 67 | B77: BHEL | C77: 98.95 | D77: 100.23 | E77: 97.32 | F77: 95.68 | G77: 92.77 | H77: 101.87 | I77: 104.78 | J77: 106.42 | K77: 103.15 | L77: 98.6 | M77: 313.96068
A78: 68 | B78: BPCL | C78: 360.4 | D78: 363.77 | E78: 356.68 | F78: 352.97 | G78: 345.88 | H78: 367.48 | I78: 374.57 | J78: 378.28 | K78: 370.85 | L78: 360.05 | M78: 32.78751
A79: 69 | B79: BHARTIARTL | C79: 889.65 | D79: 882.93 | E79: 872.92 | F79: 856.18 | G79: 846.17 | H79: 899.67 | I79: 909.68 | J79: 926.42 | K79: 892.95 | L79: 866.2 | M79: 70.66276
A80: 70 | B80: BIKAJI | C80: 476.05 | D80: 478.77 | E80: 473.03 | F80: 470.02 | G80: 464.28 | H80: 481.78 | I80: 487.52 | J80: 490.53 | K80: 484.5 | L80: 475.75 | M80: 2.72241
A81: 71 | B81: BIOCON | C81: 253.55 | D81: 254.93 | E81: 251.67 | F81: 249.78 | G81: 246.52 | H81: 256.82 | I81: 260.08 | J81: 261.97 | K81: 258.2 | L81: 253.05 | M81: 19.88139
A82: 72 | B82: BIRLACORPN | C82: 1228.95 | D82: 1230.42 | E82: 1212.63 | F82: 1196.32 | G82: 1178.53 | H82: 1246.73 | I82: 1264.52 | J82: 1280.83 | K82: 1248.2 | L82: 1214.1 | M82: 0.60668
A83: 73 | B83: BSOFT | C83: 438.8 | D83: 438.35 | E83: 433.90 | F83: 429.00 | G83: 424.55 | H83: 443.25 | I83: 447.70 | J83: 452.60 | K83: 442.8 | L83: 433.45 | M83: 26.14983
A84: 74 | B84: BLS | C84: 241.95 | D84: 243.05 | E84: 239.40 | F84: 236.85 | G84: 233.20 | H84: 245.60 | I84: 249.25 | J84: 251.80 | K84: 246.7 | L84: 240.5 | M84: 25.12975
A85: 75 | B85: BLUEDART | C85: 6294.45 | D85: 6332.15 | E85: 6214.30 | F85: 6134.15 | G85: 6016.30 | H85: 6412.30 | I85: 6530.15 | J85: 6610.30 | K85: 6450 | L85: 6252 | M85: 0.33761
A86: 76 | B86: BLUESTARCO | C86: 762.45 | D86: 763.68 | E86: 757.97 | F86: 753.48 | G86: 747.77 | H86: 768.17 | I86: 773.88 | J86: 778.37 | K86: 769.4 | L86: 759.2 | M86: 2.80046
A87: 77 | B87: BBTC | C87: 1055.3 | D87: 1050.83 | E87: 1035.72 | F87: 1016.13 | G87: 1001.02 | H87: 1070.42 | I87: 1085.53 | J87: 1105.12 | K87: 1065.95 | L87: 1031.25 | M87: 0.56544
A88: 78 | B88: BORORENEW | C88: 497.75 | D88: 500.27 | E88: 493.48 | F88: 489.22 | G88: 482.43 | H88: 504.53 | I88: 511.32 | J88: 515.58 | K88: 507.05 | L88: 496 | M88: 1.49041
A89: 79 | B89: BOSCHLTD | C89: 18256.7 | D89: 18252.60 | E89: 18115.20 | F89: 17973.70 | G89: 17836.30 | H89: 18394.10 | I89: 18531.50 | J89: 18673.00 | K89: 18390 | L89: 18111.1 | M89: 0.22731
A90: 80 | B90: BRIGADE | C90: 597.3 | D90: 592.37 | E90: 581.83 | F90: 566.37 | G90: 555.83 | H90: 607.83 | I90: 618.37 | J90: 633.83 | K90: 602.9 | L90: 576.9 | M90: 1.42047
A91: 81 | B91: BCG | C91: 25.25 | D91: 25.30 | E91: 24.50 | F91: 23.75 | G91: 22.95 | H91: 26.05 | I91: 26.85 | J91: 27.60 | K91: 26.1 | L91: 24.55 | M91: 217.10599
A92: 82 | B92: BRITANNIA | C92: 4798.5 | D92: 4799.05 | E92: 4766.10 | F92: 4733.70 | G92: 4700.75 | H92: 4831.45 | I92: 4864.40 | J92: 4896.80 | K92: 4832 | L92: 4766.65 | M92: 4.01478
A93: 83 | B93: BSE | C93: 861.3 | D93: 854.77 | E93: 845.58 | F93: 829.87 | G93: 820.68 | H93: 870.48 | I93: 879.67 | J93: 895.38 | K93: 863.95 | L93: 839.05 | M93: 20.57571
A94: 84 | B94: MAPMYINDIA | C94: 1537.15 | D94: 1542.37 | E94: 1519.78 | F94: 1502.42 | G94: 1479.83 | H94: 1559.73 | I94: 1582.32 | J94: 1599.68 | K94: 1564.95 | L94: 1525 | M94: 0.75691
A95: 85 | B95: CAMPUS | C95: 291.8 | D95: 293.45 | E95: 289.60 | F95: 287.40 | G95: 283.55 | H95: 295.65 | I95: 299.50 | J95: 301.70 | K95: 297.3 | L95: 291.25 | M95: 11.20024
A96: 86 | B96: CANFINHOME | C96: 733.1 | D96: 732.87 | E96: 726.33 | F96: 719.57 | G96: 713.03 | H96: 739.63 | I96: 746.17 | J96: 752.93 | K96: 739.4 | L96: 726.1 | M96: 5.17243
A97: 87 | B97: CANBK | C97: 328.75 | D97: 330.05 | E97: 325.40 | F97: 322.05 | G97: 317.40 | H97: 333.40 | I97: 338.05 | J97: 341.40 | K97: 334.7 | L97: 326.7 | M97: 71.54048
A98: 88 | B98: CGCL | C98: 783.55 | D98: 784.30 | E98: 772.65 | F98: 761.75 | G98: 750.10 | H98: 795.20 | I98: 806.85 | J98: 817.75 | K98: 795.95 | L98: 773.4 | M98: 1.06107
A99: 89 | B99: CARBORUNIV | C99: 1259.25 | D99: 1257.95 | E99: 1246.30 | F99: 1233.35 | G99: 1221.70 | H99: 1270.90 | I99: 1282.55 | J99: 1295.50 | K99: 1269.6 | L99: 1245 | M99: 2.0681
A100: 90 | B100: CASTROLIND | C100: 151.85 | D100: 149.00 | E100: 145.00 | F100: 138.15 | G100: 134.15 | H100: 155.85 | I100: 159.85 | J100: 166.70 | K100: 153 | L100: 142.15 | M100: 72.41711
A101: 91 | B101: CCL | C101: 616.75 | D101: 618.58 | E101: 612.17 | F101: 607.58 | G101: 601.17 | H101: 623.17 | I101: 629.58 | J101: 634.17 | K101: 625 | L101: 614 | M101: 0.74953
A102: 92 | B102: CEATLTD | C102: 2461.95 | D102: 2459.15 | E102: 2420.30 | F102: 2378.65 | G102: 2339.80 | H102: 2500.80 | I102: 2539.65 | J102: 2581.30 | K102: 2498 | L102: 2417.5 | M102: 2.01264
A103: 93 | B103: CENTRALBK | C103: 30.05 | D103: 30.15 | E103: 29.90 | F103: 29.75 | G103: 29.50 | H103: 30.30 | I103: 30.55 | J103: 30.70 | K103: 30.4 | L103: 30 | M103: 49.37043
A104: 94 | B104: CDSL | C104: 1215.5 | D104: 1216.85 | E104: 1200.65 | F104: 1185.80 | G104: 1169.60 | H104: 1231.70 | I104: 1247.90 | J104: 1262.75 | K104: 1233.05 | L104: 1202 | M104: 4.58475
A105: 95 | B105: CENTURYPLY | C105: 651.05 | D105: 652.60 | E105: 638.60 | F105: 626.15 | G105: 612.15 | H105: 665.05 | I105: 679.05 | J105: 691.50 | K105: 666.6 | L105: 640.15 | M105: 2.48537
A106: 96 | B106: CENTURYTEX | C106: 1026.7 | D106: 1032.57 | E106: 1015.13 | F106: 1003.57 | G106: 986.13 | H106: 1044.13 | I106: 1061.57 | J106: 1073.13 | K106: 1050 | L106: 1021 | M106: 2.40389
A107: 97 | B107: CERA | C107: 7917.1 | D107: 7920.87 | E107: 7809.33 | F107: 7701.57 | G107: 7590.03 | H107: 8028.63 | I107: 8140.17 | J107: 8247.93 | K107: 8032.4 | L107: 7813.1 | M107: 0.34504
A108: 98 | B108: CESC | C108: 78.8 | D108: 78.83 | E108: 77.32 | F108: 75.83 | G108: 74.32 | H108: 80.32 | I108: 81.83 | J108: 83.32 | K108: 80.35 | L108: 77.35 | M108: 80.62523
A109: 99 | B109: CGPOWER | C109: 408.05 | D109: 408.03 | E109: 403.62 | F109: 399.18 | G109: 394.77 | H109: 412.47 | I109: 416.88 | J109: 421.32 | K109: 412.45 | L109: 403.6 | M109: 8.4684
A110: 100 | B110: CHALET | C110: 486.9 | D110: 482.90 | E110: 475.95 | F110: 465.00 | G110: 458.05 | H110: 493.85 | I110: 500.80 | J110: 511.75 | K110: 489.85 | L110: 471.95 | M110: 1.17236
A111: 101 | B111: CHAMBLFERT | C111: 271.5 | D111: 271.73 | E111: 268.97 | F111: 266.43 | G111: 263.67 | H111: 274.27 | I111: 277.03 | J111: 279.57 | K111: 274.5 | L111: 269.2 | M111: 20.40307
A112: 102 | B112: CHEMPLASTS | C112: 446.45 | D112: 445.58 | E112: 441.17 | F112: 435.88 | G112: 431.47 | H112: 450.87 | I112: 455.28 | J112: 460.57 | K112: 450 | L112: 440.3 | M112: 0.79722
A113: 103 | B113: CHOLAHLDNG | C113: 932.05 | D113: 933.07 | E113: 917.33 | F113: 902.62 | G113: 886.88 | H113: 947.78 | I113: 963.52 | J113: 978.23 | K113: 948.8 | L113: 918.35 | M113: 0.93505
A114: 104 | B114: CHOLAFIN | C114: 1085.3 | D114: 1083.15 | E114: 1074.30 | F114: 1063.30 | G114: 1054.45 | H114: 1094.15 | I114: 1103.00 | J114: 1114.00 | K114: 1092 | L114: 1072.15 | M114: 15.62887
A115: 105 | B115: CIEINDIA | C115: 495.85 | D115: 498.67 | E115: 491.93 | F115: 488.02 | G115: 481.28 | H115: 502.58 | I115: 509.32 | J115: 513.23 | K115: 505.4 | L115: 494.75 | M115: 3.33744
A116: 106 | B116: CIPLA | C116: 1209.75 | D116: 1206.48 | E116: 1174.27 | F116: 1138.78 | G116: 1106.57 | H116: 1241.97 | I116: 1274.18 | J116: 1309.67 | K116: 1238.7 | L116: 1171 | M116: 83.59856
A117: 107 | B117: CUB | C117: 132.75 | D117: 132.60 | E117: 131.55 | F117: 130.35 | G117: 129.30 | H117: 133.80 | I117: 134.85 | J117: 136.05 | K117: 133.65 | L117: 131.4 | M117: 32.36137
A118: 108 | B118: CLEAN | C118: 1309.55 | D118: 1302.82 | E118: 1286.73 | F118: 1263.92 | G118: 1247.83 | H118: 1325.63 | I118: 1341.72 | J118: 1364.53 | K118: 1318.9 | L118: 1280 | M118: 1.31606
A119: 109 | B119: COALINDIA | C119: 233.75 | D119: 233.58 | E119: 230.67 | F119: 227.58 | G119: 224.67 | H119: 236.67 | I119: 239.58 | J119: 242.67 | K119: 236.5 | L119: 230.5 | M119: 67.25977
A120: 110 | B120: COCHINSHIP | C120: 670.65 | D120: 669.82 | E120: 664.33 | F120: 658.02 | G120: 652.53 | H120: 676.13 | I120: 681.62 | J120: 687.93 | K120: 675.3 | L120: 663.5 | M120: 6.43667
A121: 111 | B121: COFORGE | C121: 4888.15 | D121: 4856.83 | E121: 4819.97 | F121: 4751.78 | G121: 4714.92 | H121: 4925.02 | I121: 4961.88 | J121: 5030.07 | K121: 4893.7 | L121: 4788.65 | M121: 2.46235
A122: 112 | B122: COLPAL | C122: 1995.45 | D122: 2009.25 | E122: 1967.05 | F122: 1938.65 | G122: 1896.45 | H122: 2037.65 | I122: 2079.85 | J122: 2108.25 | K122: 2051.45 | L122: 1980.85 | M122: 5.44208
A123: 113 | B123: CAMS | C123: 2310.25 | D123: 2331.37 | E123: 2283.88 | F123: 2257.52 | G123: 2210.03 | H123: 2357.73 | I123: 2405.22 | J123: 2431.58 | K123: 2378.85 | L123: 2305 | M123: 0.75554
A124: 114 | B124: CONCOR | C124: 695.15 | D124: 693.13 | E124: 689.27 | F124: 683.38 | G124: 679.52 | H124: 699.02 | I124: 702.88 | J124: 708.77 | K124: 697 | L124: 687.25 | M124: 4.68756
A125: 115 | B125: COROMANDEL | C125: 1042.7 | D125: 1041.17 | E125: 1032.33 | F125: 1021.97 | G125: 1013.13 | H125: 1051.53 | I125: 1060.37 | J125: 1070.73 | K125: 1050 | L125: 1030.8 | M125: 3.49206
A126: 116 | B126: CRAFTSMAN | C126: 4637.5 | D126: 4618.17 | E126: 4587.33 | F126: 4537.17 | G126: 4506.33 | H126: 4668.33 | I126: 4699.17 | J126: 4749.33 | K126: 4649 | L126: 4568 | M126: 0.15205
A127: 117 | B127: CREDITACC | C127: 1452.3 | D127: 1455.30 | E127: 1439.30 | F127: 1426.30 | G127: 1410.30 | H127: 1468.30 | I127: 1484.30 | J127: 1497.30 | K127: 1471.3 | L127: 1442.3 | M127: 0.84768
A128: 118 | B128: CRISIL | C128: 3815.25 | D128: 3828.95 | E128: 3786.30 | F128: 3757.35 | G128: 3714.70 | H128: 3857.90 | I128: 3900.55 | J128: 3929.50 | K128: 3871.6 | L128: 3800 | M128: 0.09252
A129: 119 | B129: CROMPTON | C129: 297.15 | D129: 296.85 | E129: 293.25 | F129: 289.35 | G129: 285.75 | H129: 300.75 | I129: 304.35 | J129: 308.25 | K129: 300.45 | L129: 292.95 | M129: 25.19248
A130: 120 | B130: CSBBANK | C130: 297 | D130: 296.82 | E130: 293.63 | F130: 290.27 | G130: 287.08 | H130: 300.18 | I130: 303.37 | J130: 306.73 | K130: 300 | L130: 293.45 | M130: 1.77239
A131: 121 | B131: CUMMINSIND | C131: 1796.1 | D131: 1815.00 | E131: 1726.15 | F131: 1656.20 | G131: 1567.35 | H131: 1884.95 | I131: 1973.80 | J131: 2043.75 | K131: 1903.85 | L131: 1745.05 | M131: 34.90486
A132: 122 | B132: CYIENT | C132: 1561.75 | D132: 1544.67 | E132: 1516.08 | F132: 1470.42 | G132: 1441.83 | H132: 1590.33 | I132: 1618.92 | J132: 1664.58 | K132: 1573.25 | L132: 1499 | M132: 9.33404
A133: 123 | B133: DABUR | C133: 569.7 | D133: 575.75 | E133: 557.75 | F133: 545.80 | G133: 527.80 | H133: 587.70 | I133: 605.70 | J133: 617.65 | K133: 593.75 | L133: 563.8 | M133: 75.08691
A134: 124 | B134: DALBHARAT | C134: 1990.15 | D134: 1987.98 | E134: 1974.97 | F134: 1959.78 | G134: 1946.77 | H134: 2003.17 | I134: 2016.18 | J134: 2031.37 | K134: 2001 | L134: 1972.8 | M134: 1.2618
A135: 125 | B135: DATAPATTNS | C135: 1978.75 | D135: 1979.78 | E135: 1963.97 | F135: 1949.18 | G135: 1933.37 | H135: 1994.57 | I135: 2010.38 | J135: 2025.17 | K135: 1995.6 | L135: 1965 | M135: 0.5434
A136: 126 | B136: DCMSHRIRAM | C136: 854.65 | D136: 853.53 | E136: 847.12 | F136: 839.58 | G136: 833.17 | H136: 861.07 | I136: 867.48 | J136: 875.02 | K136: 859.95 | L136: 846 | M136: 0.42356
A137: 127 | B137: DEEPAKFERT | C137: 549.45 | D137: 551.62 | E137: 545.93 | F137: 542.42 | G137: 536.73 | H137: 555.13 | I137: 560.82 | J137: 564.33 | K137: 557.3 | L137: 548.1 | M137: 2.72756
A138: 128 | B138: DEEPAKNTR | C138: 2041.35 | D138: 2009.87 | E138: 1969.73 | F138: 1898.12 | G138: 1857.98 | H138: 2081.48 | I138: 2121.62 | J138: 2193.23 | K138: 2050 | L138: 1938.25 | M138: 15.41713
A139: 129 | B139: DELHIVERY | C139: 420.75 | D139: 414.60 | E139: 405.25 | F139: 389.75 | G139: 380.40 | H139: 430.10 | I139: 439.45 | J139: 454.95 | K139: 423.95 | L139: 399.1 | M139: 35.86674
A140: 130 | B140: DELTACORP | C140: 186.65 | D140: 187.82 | E140: 184.68 | F140: 182.72 | G140: 179.58 | H140: 189.78 | I140: 192.92 | J140: 194.88 | K140: 190.95 | L140: 185.85 | M140: 54.44792
A141: 131 | B141: DEVYANI | C141: 188.85 | D141: 190.65 | E141: 183.30 | F141: 177.75 | G141: 170.40 | H141: 196.20 | I141: 203.55 | J141: 209.10 | K141: 198 | L141: 185.1 | M141: 42.66903
A142: 132 | B142: DIVISLAB | C142: 3745.4 | D142: 3742.78 | E142: 3725.62 | F142: 3705.83 | G142: 3688.67 | H142: 3762.57 | I142: 3779.73 | J142: 3799.52 | K142: 3759.95 | L142: 3723 | M142: 2.8024
A143: 133 | B143: DIXON | C143: 4616.25 | D143: 4632.70 | E143: 4448.55 | F143: 4280.85 | G143: 4096.70 | H143: 4800.40 | I143: 4984.55 | J143: 5152.25 | K143: 4816.85 | L143: 4465 | M143: 36.60506
A144: 134 | B144: DLF | C144: 489.65 | D144: 490.55 | E144: 487.10 | F144: 484.55 | G144: 481.10 | H144: 493.10 | I144: 496.55 | J144: 499.10 | K144: 494 | L144: 488 | M144: 25.09237
A145: 135 | B145: LALPATHLAB | C145: 2349.95 | D145: 2341.03 | E145: 2320.07 | F145: 2290.18 | G145: 2269.22 | H145: 2370.92 | I145: 2391.88 | J145: 2421.77 | K145: 2362 | L145: 2311.15 | M145: 1.22269
A146: 136 | B146: DRREDDY | C146: 5649.55 | D146: 5666.85 | E146: 5622.70 | F146: 5595.85 | G146: 5551.70 | H146: 5693.70 | I146: 5737.85 | J146: 5764.70 | K146: 5711 | L146: 5640 | M146: 3.45304
A147: 137 | B147: EIDPARRY | C147: 498.35 | D147: 500.80 | E147: 494.30 | F147: 490.25 | G147: 483.75 | H147: 504.85 | I147: 511.35 | J147: 515.40 | K147: 507.3 | L147: 496.75 | M147: 2.97303
A148: 138 | B148: EASEMYTRIP | C148: 40.45 | D148: 40.57 | E148: 40.23 | F148: 40.02 | G148: 39.68 | H148: 40.78 | I148: 41.12 | J148: 41.33 | K148: 40.9 | L148: 40.35 | M148: 105.42352
A149: 139 | B149: ECLERX | C149: 1701.95 | D149: 1712.90 | E149: 1681.30 | F149: 1660.65 | G149: 1629.05 | H149: 1733.55 | I149: 1765.15 | J149: 1785.80 | K149: 1744.5 | L149: 1692.25 | M149: 0.32011
A150: 140 | B150: EICHERMOT | C150: 3359.55 | D150: 3396.13 | E150: 3313.42 | F150: 3267.28 | G150: 3184.57 | H150: 3442.27 | I150: 3524.98 | J150: 3571.12 | K150: 3478.85 | L150: 3350 | M150: 12.35134
A151: 141 | B151: EIHOTEL | C151: 209.35 | D151: 210.30 | E151: 207.40 | F151: 205.45 | G151: 202.55 | H151: 212.25 | I151: 215.15 | J151: 217.10 | K151: 213.2 | L151: 208.35 | M151: 4.83961
A152: 142 | B152: ELGIEQUIP | C152: 510.7 | D152: 513.82 | E152: 505.73 | F152: 500.77 | G152: 492.68 | H152: 518.78 | I152: 526.87 | J152: 531.83 | K152: 521.9 | L152: 508.85 | M152: 1.69276
A153: 143 | B153: EMAMILTD | C153: 450.2 | D153: 450.60 | E153: 447.65 | F153: 445.10 | G153: 442.15 | H153: 453.15 | I153: 456.10 | J153: 458.65 | K153: 453.55 | L153: 448.05 | M153: 2.19626
A154: 144 | B154: ENDURANCE | C154: 1680.85 | D154: 1694.23 | E154: 1659.17 | F154: 1637.48 | G154: 1602.42 | H154: 1715.92 | I154: 1750.98 | J154: 1772.67 | K154: 1729.3 | L154: 1672.55 | M154: 0.33478
A155: 145 | B155: ENGINERSIN | C155: 147.2 | D155: 147.92 | E155: 144.48 | F155: 141.77 | G155: 138.33 | H155: 150.63 | I155: 154.07 | J155: 156.78 | K155: 151.35 | L155: 145.2 | M155: 34.3288
A156: 146 | B156: EPL | C156: 216.4 | D156: 217.80 | E156: 213.60 | F156: 210.80 | G156: 206.60 | H156: 220.60 | I156: 224.80 | J156: 227.60 | K156: 222 | L156: 215 | M156: 8.52561
A157: 147 | B157: EQUITASBNK | C157: 87.95 | D157: 88.58 | E157: 86.87 | F157: 85.78 | G157: 84.07 | H157: 89.67 | I157: 91.38 | J157: 92.47 | K157: 90.3 | L157: 87.5 | M157: 54.14054
A158: 148 | B158: ERIS | C158: 800.55 | D158: 810.52 | E158: 783.03 | F158: 765.52 | G158: 738.03 | H158: 828.03 | I158: 855.52 | J158: 873.03 | K158: 838 | L158: 793 | M158: 4.5996
A159: 149 | B159: ESCORTS | C159: 2575.55 | D159: 2574.85 | E159: 2551.75 | F159: 2527.95 | G159: 2504.85 | H159: 2598.65 | I159: 2621.75 | J159: 2645.55 | K159: 2597.95 | L159: 2551.05 | M159: 1.85456
A160: 150 | B160: EXIDEIND | C160: 256.65 | D160: 257.53 | E160: 254.62 | F160: 252.58 | G160: 249.67 | H160: 259.57 | I160: 262.48 | J160: 264.52 | K160: 260.45 | L160: 255.5 | M160: 26.86418
A161: 151 | B161: FDC | C161: 377.4 | D161: 376.23 | E161: 367.72 | F161: 358.03 | G161: 349.52 | H161: 385.92 | I161: 394.43 | J161: 404.12 | K161: 384.75 | L161: 366.55 | M161: 13.58646
A162: 152 | B162: FEDERALBNK | C162: 134.6 | D162: 133.93 | E162: 132.37 | F162: 130.13 | G162: 128.57 | H162: 136.17 | I162: 137.73 | J162: 139.97 | K162: 135.5 | L162: 131.7 | M162: 166.63874
A163: 153 | B163: FACT | C163: 476.15 | D163: 476.07 | E163: 469.43 | F163: 462.72 | G163: 456.08 | H163: 482.78 | I163: 489.42 | J163: 496.13 | K163: 482.7 | L163: 469.35 | M163: 4.95128
A164: 154 | B164: FINEORG | C164: 4601.75 | D164: 4602.60 | E164: 4571.25 | F164: 4540.75 | G164: 4509.40 | H164: 4633.10 | I164: 4664.45 | J164: 4694.95 | K164: 4633.95 | L164: 4572.1 | M164: 0.14939
A165: 155 | B165: FINCABLES | C165: 1006.5 | D165: 1007.03 | E165: 1000.52 | F165: 994.53 | G165: 988.02 | H165: 1013.02 | I165: 1019.53 | J165: 1025.52 | K165: 1013.55 | L165: 1001.05 | M165: 1.10111
A166: 156 | B166: FINPIPE | C166: 205.2 | D166: 205.52 | E166: 202.98 | F166: 200.77 | G166: 198.23 | H166: 207.73 | I166: 210.27 | J166: 212.48 | K166: 208.05 | L166: 203.3 | M166: 7.79232
A167: 157 | B167: FSL | C167: 149.1 | D167: 148.28 | E167: 144.67 | F167: 140.23 | G167: 136.62 | H167: 152.72 | I167: 156.33 | J167: 160.77 | K167: 151.9 | L167: 143.85 | M167: 68.31921
A168: 158 | B168: FIVESTAR | C168: 739.85 | D168: 737.77 | E168: 725.63 | F168: 711.42 | G168: 699.28 | H168: 751.98 | I168: 764.12 | J168: 778.33 | K168: 749.9 | L168: 723.55 | M168: 2.61571
A169: 159 | B169: FORTIS | C169: 338.5 | D169: 337.12 | E169: 334.73 | F169: 330.97 | G169: 328.58 | H169: 340.88 | I169: 343.27 | J169: 347.03 | K169: 339.5 | L169: 333.35 | M169: 20.9565
A170: 160 | B170: NYKAA | C170: 147.55 | D170: 147.20 | E170: 144.40 | F170: 141.25 | G170: 138.45 | H170: 150.35 | I170: 153.15 | J170: 156.30 | K170: 150 | L170: 144.05 | M170: 91.64577
A171: 161 | B171: GRINFRA | C171: 1317.35 | D171: 1316.30 | E171: 1305.60 | F171: 1293.85 | G171: 1283.15 | H171: 1328.05 | I171: 1338.75 | J171: 1350.50 | K171: 1327 | L171: 1304.55 | M171: 0.10837
A172: 162 | B172: GAIL | C172: 115.3 | D172: 115.47 | E172: 114.03 | F172: 112.77 | G172: 111.33 | H172: 116.73 | I172: 118.17 | J172: 119.43 | K172: 116.9 | L172: 114.2 | M172: 112.30403
A173: 163 | B173: GALAXYSURF | C173: 2623.75 | D173: 2630.37 | E173: 2604.38 | F173: 2585.02 | G173: 2559.03 | H173: 2649.73 | I173: 2675.72 | J173: 2695.08 | K173: 2656.35 | L173: 2611 | M173: 0.07501
A174: 164 | B174: GARFIBRES | C174: 3300.25 | D174: 3306.07 | E174: 3246.18 | F174: 3192.12 | G174: 3132.23 | H174: 3360.13 | I174: 3420.02 | J174: 3474.08 | K174: 3365.95 | L174: 3252 | M174: 0.22957
A175: 165 | B175: GICRE | C175: 206.25 | D175: 207.80 | E175: 203.85 | F175: 201.45 | G175: 197.50 | H175: 210.20 | I175: 214.15 | J175: 216.55 | K175: 211.75 | L175: 205.4 | M175: 12.34719
A176: 166 | B176: GLAND | C176: 1335.45 | D176: 1343.15 | E176: 1322.30 | F176: 1309.15 | G176: 1288.30 | H176: 1356.30 | I176: 1377.15 | J176: 1390.30 | K176: 1364 | L176: 1330 | M176: 6.3981
A177: 167 | B177: GLAXO | C177: 1401.6 | D177: 1402.62 | E177: 1395.23 | F177: 1388.87 | G177: 1381.48 | H177: 1408.98 | I177: 1416.37 | J177: 1422.73 | K177: 1410 | L177: 1396.25 | M177: 0.13284
A178: 168 | B178: GLENMARK | C178: 803.55 | D178: 797.47 | E178: 789.93 | F178: 776.32 | G178: 768.78 | H178: 811.08 | I178: 818.62 | J178: 832.23 | K178: 805 | L178: 783.85 | M178: 5.82633
A179: 169 | B179: MEDANTA | C179: 666.5 | D179: 669.97 | E179: 657.63 | F179: 648.77 | G179: 636.43 | H179: 678.83 | I179: 691.17 | J179: 700.03 | K179: 682.3 | L179: 661.1 | M179: 2.5767
A180: 170 | B180: GMMPFAUDLR | C180: 1452.7 | D180: 1451.57 | E180: 1443.13 | F180: 1433.57 | G180: 1425.13 | H180: 1461.13 | I180: 1469.57 | J180: 1479.13 | K180: 1460 | L180: 1442 | M180: 0.44111
A181: 171 | B181: GMRINFRA | C181: 51.45 | D181: 51.27 | E181: 50.88 | F181: 50.32 | G181: 49.93 | H181: 51.83 | I181: 52.22 | J181: 52.78 | K181: 51.65 | L181: 50.7 | M181: 72.72861
A182: 172 | B182: GOCOLORS | C182: 1238.6 | D182: 1235.20 | E182: 1223.40 | F182: 1208.20 | G182: 1196.40 | H182: 1250.40 | I182: 1262.20 | J182: 1277.40 | K182: 1247 | L182: 1220 | M182: 0.36013
A183: 173 | B183: GODFRYPHLP | C183: 2003 | D183: 2017.70 | E183: 1975.50 | F183: 1948.00 | G183: 1905.80 | H183: 2045.20 | I183: 2087.40 | J183: 2114.90 | K183: 2059.9 | L183: 1990.2 | M183: 0.59011
A184: 174 | B184: GODREJAGRO | C184: 482.6 | D184: 485.40 | E184: 477.75 | F184: 472.90 | G184: 465.25 | H184: 490.25 | I184: 497.90 | J184: 502.75 | K184: 493.05 | L184: 480.55 | M184: 1.76713
A185: 175 | B185: GODREJCP | C185: 1017.55 | D185: 1015.97 | E185: 1011.08 | F185: 1004.62 | G185: 999.73 | H185: 1022.43 | I185: 1027.32 | J185: 1033.78 | K185: 1020.85 | L185: 1009.5 | M185: 5.97861
A186: 176 | B186: GODREJIND | C186: 475.5 | D186: 475.18 | E186: 471.87 | F186: 468.23 | G186: 464.92 | H186: 478.82 | I186: 482.13 | J186: 485.77 | K186: 478.5 | L186: 471.55 | M186: 0.58856
A187: 177 | B187: GODREJPROP | C187: 1535.9 | D187: 1552.43 | E187: 1514.92 | F187: 1493.93 | G187: 1456.42 | H187: 1573.42 | I187: 1610.93 | J187: 1631.92 | K187: 1589.95 | L187: 1531.45 | M187: 10.27141
A188: 178 | B188: GRANULES | C188: 318.3 | D188: 320.33 | E188: 315.27 | F188: 312.23 | G188: 307.17 | H188: 323.37 | I188: 328.43 | J188: 331.47 | K188: 325.4 | L188: 317.3 | M188: 19.42284
A189: 179 | B189: GRAPHITE | C189: 443.45 | D189: 436.55 | E189: 426.10 | F189: 408.75 | G189: 398.30 | H189: 453.90 | I189: 464.35 | J189: 481.70 | K189: 447 | L189: 419.2 | M189: 25.40356
A190: 180 | B190: GRASIM | C190: 1825.45 | D190: 1830.52 | E190: 1815.08 | F190: 1804.72 | G190: 1789.28 | H190: 1840.88 | I190: 1856.32 | J190: 1866.68 | K190: 1845.95 | L190: 1820.15 | M190: 3.24658
A191: 181 | B191: GESHIP | C191: 800.5 | D191: 808.88 | E191: 783.47 | F191: 766.43 | G191: 741.02 | H191: 825.92 | I191: 851.33 | J191: 868.37 | K191: 834.3 | L191: 791.85 | M191: 7.81697
A192: 182 | B192: GREENPANEL | C192: 334.3 | D192: 335.88 | E192: 331.77 | F192: 329.23 | G192: 325.12 | H192: 338.42 | I192: 342.53 | J192: 345.07 | K192: 340 | L192: 333.35 | M192: 1.72259
A193: 183 | B193: GRINDWELL | C193: 2282.95 | D193: 2294.68 | E193: 2251.12 | F193: 2219.28 | G193: 2175.72 | H193: 2326.52 | I193: 2370.08 | J193: 2401.92 | K193: 2338.25 | L193: 2262.85 | M193: 0.58112
A194: 184 | B194: GUJALKALI | C194: 675.15 | D194: 671.72 | E194: 666.43 | F194: 657.72 | G194: 652.43 | H194: 680.43 | I194: 685.72 | J194: 694.43 | K194: 677 | L194: 663 | M194: 0.87216
A195: 185 | B195: GAEL | C195: 256.05 | D195: 256.53 | E195: 252.07 | F195: 248.08 | G195: 243.62 | H195: 260.52 | I195: 264.98 | J195: 268.97 | K195: 261 | L195: 252.55 | M195: 2.83141
A196: 186 | B196: FLUOROCHEM | C196: 2805.7 | D196: 2799.83 | E196: 2786.67 | F196: 2767.63 | G196: 2754.47 | H196: 2818.87 | I196: 2832.03 | J196: 2851.07 | K196: 2813 | L196: 2780.8 | M196: 2.37773
A197: 187 | B197: GUJGASLTD | C197: 450.9 | D197: 452.68 | E197: 447.87 | F197: 444.83 | G197: 440.02 | H197: 455.72 | I197: 460.53 | J197: 463.57 | K197: 457.5 | L197: 449.65 | M197: 36.85903
A198: 188 | B198: GNFC | C198: 585.75 | D198: 586.23 | E198: 582.97 | F198: 580.18 | G198: 576.92 | H198: 589.02 | I198: 592.28 | J198: 595.07 | K198: 589.5 | L198: 583.45 | M198: 4.72191
A199: 189 | B199: GPPL | C199: 120.65 | D199: 120.92 | E199: 119.43 | F199: 118.22 | G199: 116.73 | H199: 122.13 | I199: 123.62 | J199: 124.83 | K199: 122.4 | L199: 119.7 | M199: 5.68853
A200: 190 | B200: GSFC | C200: 164.05 | D200: 164.13 | E200: 163.02 | F200: 161.98 | G200: 160.87 | H200: 165.17 | I200: 166.28 | J200: 167.32 | K200: 165.25 | L200: 163.1 | M200: 9.70627
A201: 191 | B201: GSPL | C201: 275.9 | D201: 275.00 | E201: 269.35 | F201: 262.80 | G201: 257.15 | H201: 281.55 | I201: 287.20 | J201: 293.75 | K201: 280.65 | L201: 268.45 | M201: 10.92358
A202: 192 | B202: HEG | C202: 1789.55 | D202: 1776.98 | E202: 1754.07 | F202: 1718.58 | G202: 1695.67 | H202: 1812.47 | I202: 1835.38 | J202: 1870.87 | K202: 1799.9 | L202: 1741.5 | M202: 4.15525
A203: 193 | B203: HAPPSTMNDS | C203: 919.25 | D203: 921.58 | E203: 913.92 | F203: 908.58 | G203: 900.92 | H203: 926.92 | I203: 934.58 | J203: 939.92 | K203: 929.25 | L203: 916.25 | M203: 2.31567
A204: 194 | B204: HAVELLS | C204: 1313.95 | D204: 1311.18 | E204: 1296.77 | F204: 1279.58 | G204: 1265.17 | H204: 1328.37 | I204: 1342.78 | J204: 1359.97 | K204: 1325.6 | L204: 1294 | M204: 5.88755
A205: 195 | B205: HCLTECH | C205: 1144.35 | D205: 1140.90 | E205: 1129.45 | F205: 1114.55 | G205: 1103.10 | H205: 1155.80 | I205: 1167.25 | J205: 1182.15 | K205: 1152.35 | L205: 1126 | M205: 33.15303
A206: 196 | B206: HDFCAMC | C206: 2406.3 | D206: 2405.27 | E206: 2372.58 | F206: 2338.87 | G206: 2306.18 | H206: 2438.98 | I206: 2471.67 | J206: 2505.38 | K206: 2437.95 | L206: 2371.55 | M206: 4.36828
... 320 more rows

Sheet Bulk Deals
E6: Back To Main Page
A7: Subject : | B7: BULK DEAL | D7: =Main!B10 -> 2023-08-07
A9: Date | B9: Scrip code | C9: Scrip Name | D9: Client Name | E9: Buy / Sell | F9: Quantity Traded | G9: Trade Price / Wt.Avg.trade price | H9: Exchange
A10: 2023-08-04 | B10: 543319 | C10: AAPLUSTRAD | D10: AJAY SALVI | E10: SELL | F10: 64,000 | G10: 10.95 | H10: BSE
A11: 2023-08-04 | B11: 543941 | C11: AHASOLAR | D11: WORLD FOODS LLP | E11: SELL | F11: 16,800 | G11: 363.3 | H11: BSE
A12: 2023-08-04 | B12: 543941 | C12: AHASOLAR | D12: YUGA STOCKS AND COMMODITIES PRIVATE LIMITED . | E12: BUY | F12: 16,000 | G12: 363.3 | H12: BSE
A13: 2023-08-04 | B13: 543453 | C13: ALKOSIGN | D13: GOVINDARAJAN | E13: BUY | F13: 39,000 | G13: 120 | H13: BSE
A14: 2023-08-04 | B14: 512149 | C14: AVANCE | D14: MULTIPLIER SHARE & STOCK ADVISORS PRIVATE LIMITED | E14: BUY | F14: 3,073,143 | G14: 1.49 | H14: BSE
A15: 2023-08-04 | B15: 543926 | C15: BIZOTIC | D15: AJAY SALVI | E15: SELL | F15: 80,000 | G15: 52.67 | H15: BSE
A16: 2023-08-04 | B16: 543926 | C16: BIZOTIC | D16: AJAY SALVI | E16: BUY | F16: 80,000 | G16: 54.09 | H16: BSE
A17: 2023-08-04 | B17: 522001 | C17: CRANEX | D17: AJAY SALVI | E17: BUY | F17: 40,000 | G17: 51.22 | H17: BSE
A18: 2023-08-04 | B18: 538715 | C18: DHABRIYA | D18: MERU INVESTMENT FUND PCC- CELL 1 | E18: SELL | F18: 120,000 | G18: 269.7 | H18: BSE
A19: 2023-08-04 | B19: 538715 | C19: DHABRIYA | D19: MAHALAXMI BROKERAGE (INDIA) PRIVATE LIMITED | E19: SELL | F19: 67,653 | G19: 269.7 | H19: BSE
A20: 2023-08-04 | B20: 538715 | C20: DHABRIYA | D20: MAVEN INDIA FUND | E20: SELL | F20: 165,557 | G20: 269.7 | H20: BSE
A21: 2023-08-04 | B21: 538715 | C21: DHABRIYA | D21: INDU JAIN | E21: BUY | F21: 58,000 | G21: 269.7 | H21: BSE
A22: 2023-08-04 | B22: 542724 | C22: EARUM | D22: SAUMIL ARVINDBHAI BHAVNAGARI | E22: SELL | F22: 4,715,362 | G22: 1.28 | H22: BSE
A23: 2023-08-04 | B23: 542802 | C23: GALACTICO | D23: MULTIPLIER SHARE & STOCK ADVISORS PRIVATE LIMITED | E23: SELL | F23: 762,088 | G23: 6.02 | H23: BSE
A24: 2023-08-04 | B24: 535431 | C24: GCMSECU | D24: INDRAWATI ENTERPRISES PRIVATE LIMITED | E24: SELL | F24: 1,436,330 | G24: 2.16 | H24: BSE
A25: 2023-08-04 | B25: 535431 | C25: GCMSECU | D25: SANDARV TRADING PRIVATE LIMITED | E25: SELL | F25: 1,450,000 | G25: 2.17 | H25: BSE
A26: 2023-08-04 | B26: 540936 | C26: GGL | D26: MEENA WASAN | E26: BUY | F26: 64,939 | G26: 11.7 | H26: BSE
A27: 2023-08-04 | B27: 540936 | C27: GGL | D27: MEENA WASAN | E27: SELL | F27: 21,411 | G27: 11.8 | H27: BSE
A28: 2023-08-04 | B28: 517288 | C28: GUJARATPOLY | D28: AJAY SALVI | E28: BUY | F28: 50,000 | G28: 60.32 | H28: BSE
A29: 2023-08-04 | B29: 530315 | C29: HINDTIN | D29: BHAVNA RAJIV DADLANI | E29: BUY | F29: 65,000 | G29: 135.18 | H29: BSE
A30: 2023-08-04 | B30: 543951 | C30: INNOVATUS | D30: PURE BROKING PRIVATE LIMITED | E30: SELL | F30: 78,000 | G30: 47.87 | H30: BSE
A31: 2023-08-04 | B31: 543951 | C31: INNOVATUS | D31: PURE BROKING PRIVATE LIMITED | E31: BUY | F31: 3,000 | G31: 47.5 | H31: BSE
A32: 2023-08-04 | B32: 543951 | C32: INNOVATUS | D32: MULTIPLIER SHARE & STOCK ADVISORS PRIVATE LIMITED | E32: BUY | F32: 51,000 | G32: 50 | H32: BSE
A33: 2023-08-04 | B33: 543951 | C33: INNOVATUS | D33: EPITOME TRADING AND INVESTMENTS | E33: BUY | F33: 30,000 | G33: 50 | H33: BSE
A34: 2023-08-04 | B34: 543951 | C34: INNOVATUS | D34: SANJAY POPATLAL JAIN | E34: BUY | F34: 30,000 | G34: 50 | H34: BSE
A35: 2023-08-04 | B35: 543951 | C35: INNOVATUS | D35: MANSI SHARE & STOCK ADVISORS PRIVATE LIMITED | E35: BUY | F35: 54,000 | G35: 49.23 | H35: BSE
A36: 2023-08-04 | B36: 543951 | C36: INNOVATUS | D36: ANANT WEALTH CONSULTANTS PRIVATE LIMITED | E36: BUY | F36: 33,000 | G36: 50 | H36: BSE
A37: 2023-08-04 | B37: 543951 | C37: INNOVATUS | D37: RAJASTHAN GLOBAL SECURITIES PRIVATE LIMITED | E37: SELL | F37: 27,000 | G37: 50 | H37: BSE
A38: 2023-08-04 | B38: 543951 | C38: INNOVATUS | D38: LATIN MANHARLAL SECURITIES PVT LTD | E38: BUY | F38: 36,000 | G38: 48.01 | H38: BSE
A39: 2023-08-04 | B39: 543951 | C39: INNOVATUS | D39: POOJA KAMAL ASRANI | E39: BUY | F39: 30,000 | G39: 50 | H39: BSE
A40: 2023-08-04 | B40: 513721 | C40: MFSINTRCRP | D40: SHEELUBEN JIGISHKUMAR VASA | E40: SELL | F40: 23,382 | G40: 13.3 | H40: BSE
A41: 2023-08-04 | B41: 509196 | C41: MMRUBBR-B | D41: MANJU SINGHI | E41: BUY | F41: 35,327 | G41: 120.25 | H41: BSE
A42: 2023-08-04 | B42: 538860 | C42: PANAFIC | D42: ALGOQUANT FINTECH LIMITED . | E42: SELL | F42: 1,137,914 | G42: 0.85 | H42: BSE
A43: 2023-08-04 | B43: 538860 | C43: PANAFIC | D43: THANGAVEL KANNAN | E43: BUY | F43: 450,000 | G43: 0.85 | H43: BSE
A44: 2023-08-04 | B44: 526747 | C44: PGFOILQ | D44: MANISH SATYANARAYAN NUWAL | E44: SELL | F44: 125,506 | G44: 244.08 | H44: BSE
A45: 2023-08-04 | B45: 526747 | C45: PGFOILQ | D45: VICCO PRODUCTS BOMBAY PVT LTD | E45: SELL | F45: 70,000 | G45: 241.92 | H45: BSE
A46: 2023-08-04 | B46: 526747 | C46: PGFOILQ | D46: EQUITYINTELLIGENCEINDIA PRIVATELIMITED | E46: BUY | F46: 119,766 | G46: 241.8 | H46: BSE
A47: 2023-08-04 | B47: 540709 | C47: RELHOME | D47: RELIANCE CAPITAL LTD | E47: SELL | F47: 4,997,123 | G47: 2.8 | H47: BSE
A48: 2023-08-04 | B48: 543366 | C48: SBLI | D48: SKSE SECURITIES LIMITED CORP CM/TM PROP A/C | E48: SELL | F48: 8,400 | G48: 80.14 | H48: BSE
A49: 2023-08-04 | B49: 543366 | C49: SBLI | D49: SKSE SECURITIES LIMITED CORP CM/TM PROP A/C | E49: BUY | F49: 3,600 | G49: 78.1 | H49: BSE
A50: 2023-08-04 | B50: 543366 | C50: SBLI | D50: EKLINGJI TRADELINK PRIVATE LIMITED | E50: BUY | F50: 9,600 | G50: 80.18 | H50: BSE
A51: 2023-08-04 | B51: 543366 | C51: SBLI | D51: PRAGNYABEN MAHENDRASINH CHAUHAN | E51: SELL | F51: 6,000 | G51: 80.58 | H51: BSE
A52: 2023-08-04 | B52: 543366 | C52: SBLI | D52: PRAGNYABEN MAHENDRASINH CHAUHAN | E52: BUY | F52: 6,000 | G52: 80.6 | H52: BSE
A53: 2023-08-04 | B53: 530525 | C53: SHEETAL | D53: SONU LAL SAHEB CHAUDHARY | E53: BUY | F53: 51,000 | G53: 30.17 | H53: BSE
A54: 2023-08-04 | B54: 530525 | C54: SHEETAL | D54: PARESH DHIRAJLAL SHAH | E54: SELL | F54: 52,922 | G54: 30.17 | H54: BSE
A55: 2023-08-04 | B55: 530439 | C55: SIDDHA | D55: TARACHAND KOTHARI HUF | E55: SELL | F55: 50,000 | G55: 6.05 | H55: BSE
A56: 2023-08-04 | B56: 543924 | C56: SONALIS | D56: NIRMLABEN SANJAYBHAI PARMAR | E56: SELL | F56: 12,000 | G56: 77.5 | H56: BSE
A57: 2023-08-04 | B57: 543924 | C57: SONALIS | D57: NIRMLABEN SANJAYBHAI PARMAR | E57: BUY | F57: 8,000 | G57: 72.4 | H57: BSE
A58: 2023-08-04 | B58: 543924 | C58: SONALIS | D58: CHINTAN DINESH SHAH | E58: BUY | F58: 12,000 | G58: 77.16 | H58: BSE
A59: 2023-08-04 | B59: 543799 | C59: SVJ | D59: CAPITAL TRADE LINKS LIMITED | E59: BUY | F59: 51,000 | G59: 62.79 | H59: BSE
A60: 2023-08-04 | B60: 543799 | C60: SVJ | D60: DUES MANAGER PRIVATE LIMITED | E60: BUY | F60: 6,000 | G60: 62.79 | H60: BSE
A61: 2023-08-04 | B61: 543799 | C61: SVJ | D61: DUES MANAGER PRIVATE LIMITED | E61: SELL | F61: 45,000 | G61: 62.79 | H61: BSE
A62: 2023-08-04 | B62: 543799 | C62: SVJ | D62: SAROJ GUPTA | E62: SELL | F62: 54,000 | G62: 62.79 | H62: BSE
A63: 2023-08-04 | B63: 511447 | C63: SYLPH | D63: SRESTHA FINVEST LIMITED | E63: SELL | F63: 25,627 | G63: 3.18 | H63: BSE
A64: 2023-08-04 | B64: 511447 | C64: SYLPH | D64: SRESTHA FINVEST LIMITED | E64: SELL | F64: 909,789 | G64: 3.17 | H64: BSE
A65: 2023-08-04 | B65: 539310 | C65: THINKINK | D65: B B COMMERCIAL LTD | E65: SELL | F65: 117,518 | G65: 88.11 | H65: BSE
A66: 2023-08-04 | B66: 539310 | C66: THINKINK | D66: B B COMMERCIAL LTD | E66: SELL | F66: 158,331 | G66: 86.52 | H66: BSE
A67: 2023-08-04 | B67: 524717 | C67: TITANBIO | D67: ANKITGOYAL | E67: SELL | F67: 47,050 | G67: 307.61 | H67: BSE
A68: 2023-08-04 | B68: 531025 | C68: VISAGAR | D68: NIMIT JAYENDRA SHAH | E68: SELL | F68: 8,564,126 | G68: 1.03 | H68: BSE
A69: 2023-08-04 | B69: 531025 | C69: VISAGAR | D69: MALTI SALVI | E69: SELL | F69: 3,995,949 | G69: 1.13 | H69: BSE
A70: 2023-08-04 | B70: 531025 | C70: VISAGAR | D70: MALTI SALVI | E70: SELL | F70: 3,995,949 | G70: 1.03 | H70: BSE
A71: 2023-08-04 | B71: 533427 | C71: VMS | D71: PANDHARI YADAV (HUF) | E71: SELL | F71: 90,364 | G71: 17.59 | H71: BSE
A72: 2023-08-04 | B72: AGRITECH | C72: Agri-Tech (India) Limited | D72: BYTES AND PIXELS FINSOFT LLP . | E72: BUY | F72: 52,122 | G72: 139.82 | H72: NSE
A73: 2023-08-04 | B73: AGRITECH | C73: Agri-Tech (India) Limited | D73: SILVER LINE VENTURES PRIVATE LIMITED | E73: BUY | F73: 66,876 | G73: 138.58 | H73: NSE
A74: 2023-08-04 | B74: AGRITECH | C74: Agri-Tech (India) Limited | D74: RAVIRAJ DEVELOPERS LTD | E74: BUY | F74: 41,024 | G74: 141.67 | H74: NSE
A75: 2023-08-04 | B75: ANTGRAPHIC | C75: Antarctica Graphics Ltd | D75: RAMESH CHEPURI | E75: BUY | F75: 900,004 | G75: 0.65 | H75: NSE
A76: 2023-08-04 | B76: BURNPUR | C76: Burnpur Cement Limited | D76: PRITHVI FINMART PRIVATE LIMITED | E76: BUY | F76: 378,676 | G76: 5.32 | H76: NSE
A77: 2023-08-04 | B77: DIL | C77: Debock Industries Limited | D77: A S CONFIN PRIVATE LIMITED | E77: BUY | F77: 622,314 | G77: 11.68 | H77: NSE
A78: 2023-08-04 | B78: DIXON | C78: Dixon Techno (India) Ltd | D78: GRAVITON RESEARCH CAPITAL LLP | E78: BUY | F78: 322,666 | G78: 4673.66 | H78: NSE
A79: 2023-08-04 | B79: DRONE | C79: Drone Destination Limited | D79: BHAVESHKUMAR NATVARLAL SHETH | E79: BUY | F79: 200,000 | G79: 138.73 | H79: NSE
A80: 2023-08-04 | B80: DRONE | C80: Drone Destination Limited | D80: YUGA STOCKS AND COMMODITIES PRIVATE LIMITED . | E80: BUY | F80: 754,000 | G80: 145.7 | H80: NSE
A81: 2023-08-04 | B81: HCC | C81: Hindustan Construc Co. | D81: HRTI PRIVATE LIMITED | E81: BUY | F81: 9,242,772 | G81: 21.04 | H81: NSE
A82: 2023-08-04 | B82: IBULHSGFIN | C82: Indiabulls Hsg Fin Ltd | D82: HRTI PRIVATE LIMITED | E82: BUY | F82: 4,282,160 | G82: 165.34 | H82: NSE
A83: 2023-08-04 | B83: IBULHSGFIN | C83: Indiabulls Hsg Fin Ltd | D83: GRAVITON RESEARCH CAPITAL LLP | E83: BUY | F83: 3,744,077 | G83: 165.57 | H83: NSE
A84: 2023-08-04 | B84: NARMADA | C84: Narmada Agrobase Limited | D84: PINALBEN PRAKASHBHAI PATEL | E84: BUY | F84: 159,841 | G84: 21.49 | H84: NSE
A85: 2023-08-04 | B85: PPL | C85: Prakash Pipes Limited | D85: NK SECURITIES RESEARCH PRIVATE LIMITED | E85: BUY | F85: 126,339 | G85: 238.58 | H85: NSE
A86: 2023-08-04 | B86: PPL | C86: Prakash Pipes Limited | D86: GRAVITON RESEARCH CAPITAL LLP | E86: BUY | F86: 495,084 | G86: 238.69 | H86: NSE
A87: 2023-08-04 | B87: PPL | C87: Prakash Pipes Limited | D87: QE SECURITIES | E87: BUY | F87: 127,423 | G87: 238.75 | H87: NSE
A88: 2023-08-04 | B88: RADIANTCMS | C88: Radiant Cash Mgmt Ser Ltd | D88: GRAVITON RESEARCH CAPITAL LLP | E88: BUY | F88: 956,620 | G88: 107.86 | H88: NSE
A89: 2023-08-04 | B89: RADIANTCMS | C89: Radiant Cash Mgmt Ser Ltd | D89: JAINAM BROKING LIMITED | E89: BUY | F89: 1,328,328 | G89: 105.13 | H89: NSE
A90: 2023-08-04 | B90: RHFL | C90: Reliance Home Finance Ltd | D90: TOPGAIN FINANCE PRIVATE LIMITED | E90: BUY | F90: 2,440,000 | G90: 2.8 | H90: NSE
A91: 2023-08-04 | B91: RHFL | C91: Reliance Home Finance Ltd | D91: CITADEL SECURITIES INDIA MARKETS PRIVATE LIMITED | E91: BUY | F91: 4,391,640 | G91: 2.88 | H91: NSE
A92: 2023-08-04 | B92: RHFL | C92: Reliance Home Finance Ltd | D92: HI GROWTH CORPORATE SERVICES PVT LTD | E92: BUY | F92: 5,355,000 | G92: 2.82 | H92: NSE
A93: 2023-08-04 | B93: RHFL | C93: Reliance Home Finance Ltd | D93: MULTIPLIER SHARE & STOCK ADVISORS PRIVATE LIMITED | E93: BUY | F93: 5,000,000 | G93: 2.8 | H93: NSE
A94: 2023-08-04 | B94: RHFL | C94: Reliance Home Finance Ltd | D94: SAHASTRAA ADVISORS PRIVATE LIMITED | E94: BUY | F94: 10,581,843 | G94: 2.81 | H94: NSE
A95: 2023-08-04 | B95: RHFL | C95: Reliance Home Finance Ltd | D95: TRANSGLOBAL SECURITIES LTD | E95: BUY | F95: 2,652,595 | G95: 2.92 | H95: NSE
A96: 2023-08-04 | B96: RPOWER | C96: Reliance Power Limited | D96: QE SECURITIES | E96: BUY | F96: 19,460,344 | G96: 18.78 | H96: NSE
A97: 2023-08-04 | B97: RPOWER | C97: Reliance Power Limited | D97: HRTI PRIVATE LIMITED | E97: BUY | F97: 37,648,999 | G97: 18.82 | H97: NSE
A98: 2023-08-04 | B98: RPOWER | C98: Reliance Power Limited | D98: CITADEL SECURITIES INDIA MARKETS PRIVATE LIMITED | E98: BUY | F98: 18,754,502 | G98: 18.8 | H98: NSE
A99: 2023-08-04 | B99: SAHANA | C99: Sahana System Limited | D99: ANKIT MAHENDRABHAI PARLESHA | E99: BUY | F99: 100,000 | G99: 171.35 | H99: NSE
A100: 2023-08-04 | B100: SARVESHWAR | C100: Sarveshwar Foods Limited | D100: SAWARNBHUMI VANIJYA PRIVATE LIMITED | E100: BUY | F100: 102 | G100: 135.55 | H100: NSE
A101: 2023-08-04 | B101: SMLISUZU | C101: SML Isuzu Limited | D101: NK SECURITIES RESEARCH PRIVATE LIMITED | E101: BUY | F101: 73,785 | G101: 1223.67 | H101: NSE
A102: 2023-08-04 | B102: SMLISUZU | C102: SML Isuzu Limited | D102: GRAVITON RESEARCH CAPITAL LLP | E102: BUY | F102: 125,931 | G102: 1219.91 | H102: NSE
A103: 2023-08-04 | B103: SRPL-RE | C103: Shree Ram Proteins Ltd | D103: GOPAL SABHAPATHY REDDY | E103: BUY | F103: 3,943,675 | G103: 0.1 | H103: NSE
A104: 2023-08-04 | B104: VETO | C104: Veto Switchgear Cable Ltd | D104: KRONE INVESTMENTS | E104: BUY | F104: 107,860 | G104: 120.32 | H104: NSE
A105: 2023-08-04 | B105: VIKASECO | C105: Vikas EcoTech Limited | D105: VISHWAS FINCAP SERVICES PRIVATE LIMITED | E105: BUY | F105: 6,556,984 | G105: 3.1 | H105: NSE
A106: 2023-08-04 | B106: ZIMLAB | C106: Zim Laboratories Limited | D106: GRAVITON RESEARCH CAPITAL LLP | E106: BUY | F106: 300,211 | G106: 143.98 | H106: NSE
A107: 2023-08-04 | B107: AGRITECH | C107: Agri-Tech (India) Limited | D107: BYTES AND PIXELS FINSOFT LLP . | E107: SELL | F107: 52,122 | G107: 140.21 | H107: NSE
A108: 2023-08-04 | B108: AGRITECH | C108: Agri-Tech (India) Limited | D108: SILVER LINE VENTURES PRIVATE LIMITED | E108: SELL | F108: 81,876 | G108: 139.86 | H108: NSE
A109: 2023-08-04 | B109: BURNPUR | C109: Burnpur Cement Limited | D109: PRITHVI FINMART PRIVATE LIMITED | E109: SELL | F109: 440,389 | G109: 5.36 | H109: NSE
A110: 2023-08-04 | B110: CYBERMEDIA | C110: Cyber Media (India) Limit | D110: AGARWAL RAVINDER KUMAR | E110: SELL | F110: 79,033 | G110: 15.14 | H110: NSE
A111: 2023-08-04 | B111: DIL | C111: Debock Industries Limited | D111: A S CONFIN PRIVATE LIMITED | E111: SELL | F111: 469,233 | G111: 11.54 | H111: NSE
A112: 2023-08-04 | B112: DIL | C112: Debock Industries Limited | D112: CORE4 MARCOM PRIVATE LIMITED | E112: SELL | F112: 1,400,000 | G112: 11.75 | H112: NSE
A113: 2023-08-04 | B113: DIXON | C113: Dixon Techno (India) Ltd | D113: GRAVITON RESEARCH CAPITAL LLP | E113: SELL | F113: 322,866 | G113: 4675.11 | H113: NSE
A114: 2023-08-04 | B114: DRONE | C114: Drone Destination Limited | D114: BHAVESHKUMAR NATVARLAL SHETH | E114: SELL | F114: 200,000 | G114: 138.73 | H114: NSE
A115: 2023-08-04 | B115: DRONE | C115: Drone Destination Limited | D115: YUGA STOCKS AND COMMODITIES PRIVATE LIMITED . | E115: SELL | F115: 690,000 | G115: 143.49 | H115: NSE
A116: 2023-08-04 | B116: ELGIRUBCO | C116: Elgi Rubber Co. Ltd | D116: DAMODAR PRASAD AGARWAL | E116: SELL | F116: 260,665 | G116: 50.34 | H116: NSE
A117: 2023-08-04 | B117: HCC | C117: Hindustan Construc Co. | D117: HRTI PRIVATE LIMITED | E117: SELL | F117: 8,745,615 | G117: 21.1 | H117: NSE
A118: 2023-08-04 | B118: IBULHSGFIN | C118: Indiabulls Hsg Fin Ltd | D118: HRTI PRIVATE LIMITED | E118: SELL | F118: 4,274,155 | G118: 165.55 | H118: NSE
A119: 2023-08-04 | B119: IBULHSGFIN | C119: Indiabulls Hsg Fin Ltd | D119: GRAVITON RESEARCH CAPITAL LLP | E119: SELL | F119: 3,769,212 | G119: 165.64 | H119: NSE
A120: 2023-08-04 | B120: NARMADA | C120: Narmada Agrobase Limited | D120: PINALBEN PRAKASHBHAI PATEL | E120: SELL | F120: 56,303 | G120: 21.99 | H120: NSE
A121: 2023-08-04 | B121: PPL | C121: Prakash Pipes Limited | D121: NK SECURITIES RESEARCH PRIVATE LIMITED | E121: SELL | F121: 126,339 | G121: 238.72 | H121: NSE
A122: 2023-08-04 | B122: PPL | C122: Prakash Pipes Limited | D122: GRAVITON RESEARCH CAPITAL LLP | E122: SELL | F122: 495,084 | G122: 238.7 | H122: NSE
A123: 2023-08-04 | B123: PPL | C123: Prakash Pipes Limited | D123: QE SECURITIES | E123: SELL | F123: 128,211 | G123: 238.71 | H123: NSE
A124: 2023-08-04 | B124: RADIANTCMS | C124: Radiant Cash Mgmt Ser Ltd | D124: GRAVITON RESEARCH CAPITAL LLP | E124: SELL | F124: 956,620 | G124: 107.99 | H124: NSE
A125: 2023-08-04 | B125: RADIANTCMS | C125: Radiant Cash Mgmt Ser Ltd | D125: SOCIETE GENERALE | E125: SELL | F125: 1,961,045 | G125: 105.27 | H125: NSE
A126: 2023-08-04 | B126: RADIANTCMS | C126: Radiant Cash Mgmt Ser Ltd | D126: JAINAM BROKING LIMITED | E126: SELL | F126: 267,106 | G126: 110.28 | H126: NSE
A127: 2023-08-04 | B127: RHFL | C127: Reliance Home Finance Ltd | D127: TRANSGLOBAL SECURITIES LTD | E127: SELL | F127: 1,762,595 | G127: 2.86 | H127: NSE
A128: 2023-08-04 | B128: RHFL | C128: Reliance Home Finance Ltd | D128: RELIANCE CAPITAL LTD | E128: SELL | F128: 24,200,000 | G128: 2.82 | H128: NSE
A129: 2023-08-04 | B129: RHFL | C129: Reliance Home Finance Ltd | D129: SAHASTRAA ADVISORS PRIVATE LIMITED | E129: SELL | F129: 10,581,843 | G129: 2.81 | H129: NSE
A130: 2023-08-04 | B130: RHFL | C130: Reliance Home Finance Ltd | D130: HI GROWTH CORPORATE SERVICES PVT LTD | E130: SELL | F130: 5,562,000 | G130: 2.85 | H130: NSE
A131: 2023-08-04 | B131: RHFL | C131: Reliance Home Finance Ltd | D131: TOPGAIN FINANCE PRIVATE LIMITED | E131: SELL | F131: 500,000 | G131: 2.8 | H131: NSE
A132: 2023-08-04 | B132: RHFL | C132: Reliance Home Finance Ltd | D132: MULTIPLIER SHARE & STOCK ADVISORS PRIVATE LIMITED | E132: SELL | F132: 3,659 | G132: 2.8 | H132: NSE
A133: 2023-08-04 | B133: RHFL | C133: Reliance Home Finance Ltd | D133: CITADEL SECURITIES INDIA MARKETS PRIVATE LIMITED | E133: SELL | F133: 306,102 | G133: 3 | H133: NSE
A134: 2023-08-04 | B134: RHL | C134: Robust Hotels Limited | D134: ENNDEE STOCKS PRIVATE LIMITED | E134: SELL | F134: 158,405 | G134: 109.34 | H134: NSE
A135: 2023-08-04 | B135: RPOWER | C135: Reliance Power Limited | D135: QE SECURITIES | E135: SELL | F135: 20,478,378 | G135: 18.81 | H135: NSE
A136: 2023-08-04 | B136: RPOWER | C136: Reliance Power Limited | D136: HRTI PRIVATE LIMITED | E136: SELL | F136: 36,113,270 | G136: 18.8 | H136: NSE
A137: 2023-08-04 | B137: RPOWER | C137: Reliance Power Limited | D137: CITADEL SECURITIES INDIA MARKETS PRIVATE LIMITED | E137: SELL | F137: 9,356,041 | G137: 18.75 | H137: NSE
A138: 2023-08-04 | B138: SAHANA | C138: Sahana System Limited | D138: BSEL INFRASTRUCTURE REALTY LTD | E138: SELL | F138: 50,000 | G138: 154.66 | H138: NSE
A139: 2023-08-04 | B139: SAHANA | C139: Sahana System Limited | D139: SHREEJI CAPITAL AND FINANCE LIMITED | E139: SELL | F139: 55,000 | G139: 172 | H139: NSE
A140: 2023-08-04 | B140: SAHANA | C140: Sahana System Limited | D140: ARUNIS ABODE LIMITED | E140: SELL | F140: 51,000 | G140: 173 | H140: NSE
A141: 2023-08-04 | B141: SARVESHWAR | C141: Sarveshwar Foods Limited | D141: SAWARNBHUMI VANIJYA PRIVATE LIMITED | E141: SELL | F141: 242,006 | G141: 135.55 | H141: NSE
A142: 2023-08-04 | B142: SHRITECH | C142: Shri Techtex Limited | D142: SUNFLOWER BROKING PRIVATE LIMITED | E142: SELL | F142: 372,000 | G142: 85.2 | H142: NSE
A143: 2023-08-04 | B143: SMLISUZU | C143: SML Isuzu Limited | D143: NK SECURITIES RESEARCH PRIVATE LIMITED | E143: SELL | F143: 73,785 | G143: 1224.78 | H143: NSE
A144: 2023-08-04 | B144: SMLISUZU | C144: SML Isuzu Limited | D144: GRAVITON RESEARCH CAPITAL LLP | E144: SELL | F144: 125,931 | G144: 1221.97 | H144: NSE
A145: 2023-08-04 | B145: SRPL-RE | C145: Shree Ram Proteins Ltd | D145: TARA CAPITAL PARTNERS INDIA PRIVATE LIMITED | E145: SELL | F145: 4,637,003 | G145: 0.1 | H145: NSE
A146: 2023-08-04 | B146: VETO | C146: Veto Switchgear Cable Ltd | D146: KRONE INVESTMENTS | E146: SELL | F146: 72,408 | G146: 119.57 | H146: NSE
A147: 2023-08-04 | B147: VIKASECO | C147: Vikas EcoTech Limited | D147: VISHWAS FINCAP SERVICES PRIVATE LIMITED | E147: SELL | F147: 5,208,748 | G147: 3.13 | H147: NSE
A148: 2023-08-04 | B148: ZIMLAB | C148: Zim Laboratories Limited | D148: GRAVITON RESEARCH CAPITAL LLP | E148: SELL | F148: 300,211 | G148: 143.7 | H148: NSE

Sheet Call Tracker (Equity & F&O)
M5: Back To Main Page
A6: Retail Research Technical Calls & Fundamental Performance Report for the month of August-2023
M7: =Main!B10 -> 2023-08-07
B8: Positional Call
A9: Sr.no | B9: Date | D9: Company | E9: Rec | F9: Rec Price | G9: Stop Loss*** | H9: Call Closed At | I9: Target | J9: Remark | K9: Profit / Loss per Share | L9: All charges | M9: Net Gain / Loss % | N9: Status | O9: Closed Date | P9: Market Closing Price
A10: 1 | B10: 2023-06-15 | D10: ATUL | E10: Accu | F10: 6800 | G10: 6400 | H10: 7150 | I10: 7400-7600 | J10: Profit of Rs.350/- | K10: =H10-F10 -> 350 | L10: =(F10*-0.3)/100 -> -20.40 | M10: =(K10+L10)/F10 -> 4.85% | N10: Successful | O10: 2023-08-01 | R10: H
A11: 2 | B11: 2023-07-04 | D11: BIOCON | E11: Accu | F11: 250-260 | G11: 234 | I11: 300-320 | J11: Open | P11: =VLOOKUP(D11,'MidCap Intra'!B58:C557,2,0) -> 253.55 | R11: H
A12: 3 | B12: 2023-07-05 | D12: GMMPFAUDLR | E12: Accu | F12: 1445-1485 | G12: 1395 | I12: 1580-1640 | J12: Open | P12: =VLOOKUP(D12,'MidCap Intra'!B59:C558,2,0) -> 1452.70 | R12: N
A13: 4 | B13: 2023-07-12 | D13: HDFCBANK | E13: Accu | F13: 1595-1655 | G13: 1540 | I13: 1800-1900 | J13: Open | P13: =VLOOKUP(D13,'MidCap Intra'!B63:C562,2,0) -> 1652.20 | R13: H
A14: 5 | B14: 2023-07-13 | D14: JAMNAAUTO | E14: Accu | F14: 105.5-109.5 | G14: 102 | I14: 118-122 | J14: Open | P14: =VLOOKUP(D14,'MidCap Intra'!B64:C563,2,0) -> 111.10 | R14: H
A15: 6 | B15: 2023-07-18 | D15: SBIN | E15: Accu | F15: 564-594 | G15: 548 | I15: 640-660 | J15: Open | P15: =VLOOKUP(D15,'MidCap Intra'!B67:C566,2,0) -> 573.30 | R15: H
A16: 7 | B16: 2023-07-18 | D16: REDINGTON | E16: Accu | F16: 178 | G16: 168 | H16: 170 | I16: 195-205 | J16: Loss of Rs.8/- | K16: =H16-F16 -> -8 | L16: =(F16*-0.3)/100 -> -0.53 | M16: =(K16+L16)/F16 -> -4.79% | N16: Unsuccessful | O16: 2023-08-02 | R16: H
A17: 8 | B17: 2023-07-26 | D17: JKPAPER | E17: Accu | F17: 326 | G17: 299 | H17: 345.5 | I17: 350-370 | J17: Profit of Rs.19.5/- | K17: =H17-F17 -> 19.5 | L17: =(F17*-0.3)/100 -> -0.98 | M17: =(K17+L17)/F17 -> 5.68% | N17: Successful | O17: 2023-08-02 | R17: H
A18: 9 | B18: 2023-07-26 | D18: BANKBARODA | E18: Accu | F18: 191-197 | G18: 185 | I18: 215-225 | J18: Open | P18: =VLOOKUP(D18,'MidCap Intra'!B70:C569,2,0) ->  | R18: H
A19: 10 | B19: 2023-07-26 | D19: RVNL | E19: Accu | F19: 121-134 | G19: 118 | I19: 145-150 | J19: Open | P19: =VLOOKUP(D19,'MidCap Intra'!B71:C570,2,0) -> 122.65 | R19: H
A20: 11 | B20: 2023-07-27 | D20: INDUSTOWER | E20: Accu | F20: 170-177 | G20: 164 | I20: 190-200 | J20: Open | P20: =VLOOKUP(D20,'MidCap Intra'!B72:C571,2,0) -> 173.00 | R20: H
A21: 12 | B21: 2023-07-28 | D21: MASTEK | E21: Accu | F21: 1945-2045 | G21: 1840 | I21: 2400-2500 | J21: Open | P21: =VLOOKUP(D21,'MidCap Intra'!B73:C572,2,0) -> 1972.55 | R21: H
A22: 13 | B22: 2023-08-01 | D22: TIINDIA | E22: Accu | F22: 2970-3100 | G22: 2880 | I22: 3400-3500 | J22: Open | P22: =VLOOKUP(D22,'MidCap Intra'!B74:C573,2,0) -> 3102.45
A23: 14 | B23: 2023-08-04 | D23: VINATIORGA | E23: Accu | F23: 1805-1855 | G23: 1745 | I23: 2000-2050 | J23: Open | P23: =VLOOKUP(D23,'MidCap Intra'!B75:C574,2,0) -> 1857.35
A31: CLBS = Closing Basis ***
A32: Dividend adjusted <> | F32: Reinitiated $
A33: Part book {} | D33: s | F33: Revised stoploss #
B35: Momentum Call
A36: Sr.no | B36: Date | D36: Company | E36: Rec | F36: Rec Price | G36: Stop Loss | H36: Call Closed At | I36: Target | J36: Remark | K36: Profit / Loss per Share/Lot | L36: All charges | M36: Net Gain / Loss % | N36: Status | O36: Closed Date
A37: 1 | B37: 2023-07-21 | D37: FEDERALBNK | E37: Buy | F37: 134 | G37: 129.9 | H37: 134.75 | I37: 140-142 | J37: Profit of Rs.0.75/- | K37: =H37-F37 -> 0.75 | L37: =(F37*-0.3)/100 -> -0.40 | M37: =(K37+L37)/F37 -> 0.26% | N37: Neutral | O37: 2023-08-04 | R37: H
A38: 2 | B38: 2023-07-28 | D38: MARUTI | E38: Buy | F38: 9650-9700 | G38: 9390 | I38: 10100-10300 | J38: Open | R38: H
A39: 3 | B39: 2023-07-28 | D39: VINATIORGA | E39: Buy | F39: 1807.5 | G39: 1750 | H39: 1882.5 | I39: 1880-1920 | J39: Profit of Rs.75/- | K39: =H39-F39 -> 75 | L39: =(F39*-0.3)/100 -> -5.42 | M39: =(K39+L39)/F39 -> 3.85% | N39: Successful | O39: 2023-08-01 | R39: H
A40: 4 | B40: 2023-08-01 | D40: AMBUJACEM | E40: Buy | F40: 453 | G40: 440 | H40: 462.5 | I40: 475-485 | J40: Profit of Rs.9.5/- | K40: =H40-F40 -> 9.5 | L40: =(F40*-0.3)/100 -> -1.36 | M40: =(K40+L40)/F40 -> 1.80% | N40: Successful | O40: 2023-08-01
A41: 5 | B41: 2023-08-01 | D41: UPL | E41: Buy<> | F41: 615 | G41: 594 | H41: 601 | I41: 640-650 | J41: Loss of Rs.14/- | K41: =H41-F41 -> -14 | L41: =(F41*-0.015)/100 -> -0.09 | M41: =(K41+L41)/F41 -> -2.29% | N41: Unsuccessful | O41: 2023-08-03
A45: CLBS = Closing Basis *** | H45: *
A46: Dividend adjusted <> | F46: Reinitiated $
F47: Revised stoploss #
A49: Master Trade High Risk
A50: Sr.no | B50: Date | D50: Company | E50: Rec | F50: Rec Price | G50: Stop Loss | H50: Call Closed At | I50: Target | J50: Remark | K50: Profit / Loss per share | L50: All charges | M50: Gain / Loss per Lot | N50: Lot | O50: Status | P50: Closed Date
A51: 1 | B51: 2023-07-31 | D51: TORNTPHARM AUG FUT | E51: Buy | F51: 2015.5 | G51: 1990 | H51: 1990 | I51: 2050-2070 | J51: Loss of Rs.25.5/- | K51: =H51-F51 -> -25.5 | L51: =(H51*N51)*0.03% -> 298.50 | M51: =(K51*N51)-L51 -> -13048.5 | N51: 500 | O51: Unsuccessful | P51: 2023-08-02 | R51: N
A52: 2 | B52: 2023-07-31 | D52: INDUSTOWER AUG FUT | E52: Buy | F52: 174.5 | G52: 171 | H52: 175.25 | I52: 180-182 | J52: Profit of Rs.0.75/- | K52: =H52-F52 -> 0.75 | L52: =(H52*N52)*0.03% -> 178.76 | M52: =(K52*N52)-L52 -> 2371.2 | N52: 3400 | O52: Successful | P52: 2023-08-01 | R52: H
A53: 3 | B53: 2023-07-31 | D53: RELIANCE AUG FUT | E53: Buy | F53: 2545 | G53: 2495 | H53: 2495 | I53: 2600-2640 | J53: Loss of Rs.50/- | K53: -50 | L53: =(H53*N53)*0.03% -> 187.13 | M53: -12687.1 | N53: 250 | O53: Unsuccessful | P53: 2023-08-02 | R53: N
A54: 4 | B54: 2023-08-03 | D54: GRANULES AUG FUT | E54: Buy | F54: 319 | G54: 313 | H54: 320.5 | I54: 327-329 | J54: Profit of Rs.1.5/- | K54: =H54-F54 -> 1.5 | L54: =(H54*N54)*0.03% -> 192.30 | M54: =(K54*N54)-L54 -> 2807.7 | N54: 2000 | O54: Successful | P54: 2023-08-03
A55: 5 | B55: 2023-08-04 | D55: COLPAL AUG FUT | E55: Buy | F55: 2025-2030 | G55: 1990 | I55: 2095-2105 | J55: Open
A56: 6 | B56: 2023-08-04 | D56: AMBUJACEM AUG FUT | E56: Buy | F56: 474 | G56: 468 | H56: 478.5 | I56: 480-485 | J56: Profit of Rs.4.5/- | K56: =H56-F56 -> 4.5 | L56: =(H56*N56)*0.03% -> 258.39 | M56: =(K56*N56)-L56 -> 7841.6 | N56: 1800 | O56: Successful | P56: 2023-08-04
A57: 7 | B57: 2023-08-04 | D57: GRANULES AUG FUT | E57: Buy | F57: 320-321 | G57: 313 | I57: 327-330 | J57: Open
A61: Master Trade Medium Risk
A62: Sr.no | B62: Date | D62: Company | E62: Rec | F62: Rec Price | G62: Stop Loss | H62: Call Closed At | I62: Target | J62: Remark | K62: Profit/ Loss per lot | L62: All charges | M62: Gain / Loss per Lot | N62: Lot | O62: Status | P62: Closed Date
A63: 1 | B63: 2023-08-01 | D63: HDFCBANK 1700 CE 31-AUG | E63: Buy | F63: 17 | G63: 8 | H63: 10 | I63: 30-35 | J63: Loss of Rs.7/- | K63: =H63-F63 -> -7 | L63: 50.00 | M63: =(K63*N63)-50 -> -3900.0 | N63: 550 | O63: Unsuccessful | P63: 2023-08-03
A64: 2 | B64: 2023-08-01 | D64: FINNIFTY 20400 CE 01-AUG | E64: Buy | F64: 29 | G64: 0 | H64: 6 | I64: 60-80 | J64: Loss of Rs.23/- | K64: =H64-F64 -> -23 | L64: 50.00 | M64: =(K64*N64)-50 -> -970.0 | N64: 40 | O64: Unsuccessful | P64: 2023-08-01
A65: 3 | B65: 2023-08-01 | D65: SBIN 660 CE 31-AUG | E65: Buy | F65: 4.85 | G65: 2.8 | H65: 2.8 | I65: 10-12 | J65: Loss of Rs.2.05/- | K65: =H65-F65 -> -2.05 | L65: 50.00 | M65: -3125.0 | N65: 1500 | O65: Unsuccessful | P65: 2023-08-02
A66: 4 | B66: 2023-08-01 | D66: RELIANCE 2540 CE 31-AUG | E66: Buy | F66: 48 | G66: 27 | H66: 29 | I66: 80-100 | J66: Loss of Rs.19/- | K66: -19 | L66: 50.00 | M66: -4800.0 | N66: 250 | O66: Unsuccessful | P66: 2023-08-03
A67: 5 | B67: 2023-08-02 | D67: NIFTY 19500 CE 3-AUG | E67: Buy | F67: 50 | G67: 18 | H67: 59 | I67: 90-110 | J67: Profit of Rs.9/- | K67: =H67-F67 -> 9 | L67: 50 | M67: =(K67*N67)-50 -> 400.0 | N67: 50 | O67: Neutral | P67: 2023-08-02
A68: 6 | B68: 2023-08-03 | D68: FINNIFTY 20050 CE 08-AUG | E68: Buy | F68: 117.5 | G68: 70 | H68: 137.5 | I68: 170-200 | J68: Profit of Rs.20/- | K68: =H68-F68 -> 20 | L68: 50 | M68: =(K68*N68)-50 -> 750.0 | N68: 40 | O68: Successful | P68: 2023-08-03
A69: 7 | B69: 2023-08-03 | D69: FINNIFTY 20050 CE 08-AUG | E69: Buy | F69: 102.5 | G69: 55 | H69: 55 | I69: 150-180 | J69: Loss of Rs.47.5/- | K69: -47.5 | L69: 50.00 | M69: =(K69*N69)-50 -> -1950.0 | N69: 40 | O69: Unsuccessful | P69: 2023-08-03
A70: 8 | B70: 2023-08-03 | D70: NIFTY 19450 CE 3-AUG | E70: Buy | F70: 31 | G70: 0 | H70: 0 | I70: 70-100 | J70: Loss of Rs.31/- | K70: =H70-F70 -> -31 | L70: 50.00 | M70: =(K70*N70)-50 -> -1600.0 | N70: 50 | O70: Unsuccessful | P70: 2023-08-03
A73: Techno -Funda (positional)
A74: Sr.no | B74: Date | D74: Company | E74: Rec | F74: Rec Price | G74: Stop Loss*** | H74: Call Closed At | I74: Target | J74: Remark | K74: Profit / Loss per Share/Lot | L74: All charges | M74: Net Gain / Loss % | N74: Status | O74: Closed Date | P74: Market Closing Price
A75: 1 | B75: 2022-10-06 | D75: AMBIKCO | E75: Buy | F75: 1420-1620 | G75: 1220 | I75: 2000-2300 | J75: Open | R75: H
A76: 2 | B76: 2023-05-25 | D76: GSPL | E76: Buy | F76: 276-296 | G76: 267 | I76: 330-350 | J76: Open | R76: H
A79: CLBS = Closing Basis *** | F79: Reinitiated $
A80: Dividend adjusted <> | F80: Revised stoploss # | H80: .................
B89: Investment Idea
A90: Sr.no | B90: Date | D90: Company | E90: Rec | F90: Rec Price | G90: Point of Review | H90: Close Rate | I90: Target | J90: Remark | K90: Profit / Loss per Share | L90: Gain / Loss % | M90: Status | N90: Closed Date
A91: 1 | B91: 2013-11-01 | D91: L&T Finance Holding | E91: Accu | F91: 82.00 | G91: - | H91: 100 | I91: 100.00 | J91: Target Achieved | K91: =H91-F91 -> 18.00 | L91: =K91/F91 -> 21.95% | M91: Successful | N91: 2016-10-14
A92: 2 | B92: 2014-06-04 | D92: Finolex Inds | E92: Buy | F92: 257.00 | G92: - | H92: 300 | I92: 300.00 | J92: Target Achieved | K92: 43.00 | L92: 16.73% | M92: Successful | N92: 2014-07-02
A93: 3 | B93: 2014-07-08 | D93: JK Cement | E93: Buy | F93: 393.00 | G93: - | H93: 468 | I93: 468.00 | J93: Target Achieved | K93: 75.00 | L93: 19.08% | M93: Successful | N93: 2014-08-12
A94: 4 | B94: 2014-08-06 | D94: Finolex Cables | E94: Buy | F94: 205.00 | G94: - | H94: 275 | I94: 250.00 | J94: Target Achieved | K94: 70.00 | L94: 34.15% | M94: Successful | N94: 2014-11-19
A95: 5 | B95: 2014-09-04 | D95: Exide Inds | E95: Buy | F95: 162.00 | G95: - | H95: 190 | I95: 190.00 | J95: Target Achieved | K95: 28.00 | L95: 17.28% | M95: Successful | N95: 2015-01-02
A96: 6 | B96: 2014-09-04 | D96: Deepak Nitrite | E96: Buy | F96: 75.00 | G96: - | H96: 91.5 | I96: 95-100 | J96: Profit of Rs.16.50/- | K96: 16.50 | L96: 22.00% | M96: Successful | N96: 2014-11-11
A97: 7 | B97: 2014-10-01 | D97: Mercks | E97: Buy | F97: 850.00 | G97: - | H97: 982.5 | I97: 1050.00 | J97: Profit of Rs.132.50/- | K97: 132.50 | L97: 15.59% | M97: Successful | N97: 2015-02-04
A98: 8 | B98: 2014-10-01 | D98: Grindwell Norton | E98: Buy | F98: 475.00 | G98: - | H98: 515 | I98: 600.00 | J98: Profit of Rs.40/- | K98: 40.00 | L98: 8.42% | M98: Successful | N98: 2014-10-27
A99: 9 | B99: 2014-10-01 | D99: Snowman Logistics | E99: Buy | F99: 86.00 | G99: - | H99: 99 | I99: 140.00 | J99: Profit of Rs.13.00/- | K99: 13.00 | L99: 15.12% | M99: Successful | N99: 2014-10-27
A100: 10 | B100: 2014-10-14 | D100: Birla Corp | E100: Buy | F100: 496.60 | G100: - | H100: 621 | I100: 580.00 | J100: Target Achieved | K100: 124.40 | L100: 25.05% | M100: Successful | N100: 2016-08-23
A101: 11 | B101: 2014-10-14 | D101: Ultratech Cem | E101: Buy | F101: 2481.90 | G101: - | H101: 2840 | I101: 2870.00 | J101: Profit of Rs.358.10/- | K101: 358.10 | L101: 14.43% | M101: Successful | N101: 2015-01-13
A102: 12 | B102: 2014-10-16 | D102: Sintex Inds | E102: Buy | F102: 84.50 | G102: - | H102: 93 | I102: 110.00 | J102: Profit of Rs.8.50/- | K102: 8.50 | L102: 10.06% | M102: Successful | N102: 2014-10-27
A103: 13 | B103: 2014-10-16 | D103: HSIL | E103: Buy | F103: 401.00 | G103: - | H103: 428 | I103: 450.00 | J103: Profit of Rs.27.00/- | K103: 27.00 | L103: 6.73% | M103: Successful | N103: 2015-01-16
A104: 14 | B104: 2014-10-16 | D104: Eveready Inds | E104: Buy | F104: 101.00 | G104: - | H104: 112 | I104: 120.00 | J104: Profit of Rs.11.00/- | K104: 11.00 | L104: 10.89% | M104: Successful | N104: 2014-10-27
A105: 15 | B105: 2014-11-11 | D105: Pennar Inds | E105: Buy | F105: 59.00 | G105: - | H105: 76 | I105: 76.00 | J105: Target Achieved | K105: 17.00 | L105: 28.81% | M105: Successful | N105: 2017-10-24
A106: 16 | B106: 2014-11-11 | D106: Snowman Logistics | E106: Buy | F106: 99.00 | G106: - | H106: 120 | I106: 120.00 | J106: Profit of Rs.21/- | K106: 21.00 | L106: 21.21% | M106: Successful | N106: 2014-11-17
A107: 17 | B107: 2014-11-13 | D107: Dharamsi Morarji Chem | E107: Buy | F107: 22.00 | G107: - | H107: 33.55 | I107: 32.00 | J107: Profit of Rs 11.55/- | K107: 11.55 | L107: 52.50% | M107: Successful | N107: 2015-07-03
A108: 18 | B108: 2014-12-03 | D108: Tatachem | E108: Buy | F108: 440.00 | G108: - | H108: 520 | I108: 520.00 | J108: Profit of Rs 80.00/- | K108: 80.00 | L108: 18.18% | M108: Successful | N108: 2015-07-23
A109: 19 | B109: 2014-12-03 | D109: Advanta | E109: Buy | F109: 360.00 | G109: - | H109: 427 | I109: 425.00 | J109: Profit of Rs.67.00/- | K109: 67.00 | L109: 18.61% | M109: Successful | N109: 2015-02-23
A110: 20 | B110: 2015-01-08 | D110: GDL | E110: Buy | F110: 360.00 | G110: - | H110: 455 | I110: 420.00 | J110: Profit of Rs.95.00/- | K110: 95.00 | L110: 26.39% | M110: Successful | N110: 2015-01-20
A111: 21 | B111: 2015-01-08 | D111: NRB Bearing | E111: Buy | F111: 130.00 | H111: 175.5 | I111: 165.00 | J111: Profit of Rs 45.50/- | K111: 45.50 | L111: 35.00% | M111: Successful | N111: 2017-12-19
A112: 22 | B112: 2015-02-05 | D112: GSFC | E112: Accu | F112: 98.00 | H112: 120 | I112: 120.00 | J112: Target Achieved | K112: 22.00 | L112: 22.45% | M112: Successful | N112: 2017-01-18
A113: 23 | B113: 2015-02-05 | D113: Sundrmfast | E113: Accu | F113: 196.00 | H113: 262 | I113: 255.00 | J113: Target Achieved | K113: 66.00 | L113: 33.67% | M113: Successful | N113: 2016-08-17
A114: 24 | B114: 2015-03-04 | D114: GPPL | E114: Accu | F114: 235 | H114: 77.00 | I114: 280-285 | J114: Loss of Rs.158/- | K114: -158.00 | L114: -67.23% | M114: Unsuccessful | N114: 2019-02-26
A115: 25 | B115: 2015-03-04 | D115: ORIENTCEM | E115: Accu | F115: 185.00 | H115: 224 | I115: 220-225 | J115: Target Achieved | K115: 39.00 | L115: 21.08% | M115: Successful | N115: 2016-10-04
A116: 26 | B116: 2015-03-27 | D116: PFS | E116: Accu | F116: 49.5 | H116: 15.85 | I116: 67.00 | J116: Loss of Rs.33.65/- | K116: -33.65 | L116: -68% | M116: Unsuccessful | N116: 2019-06-11
A117: 27 | B117: 2015-03-30 | D117: Walchandnagar Ind Ltd | E117: Accu | F117: 183.50 | H117: 219 | I117: 218.00 | J117: Profit of Rs.35.50/- | K117: 35.50 | L117: 19.35% | M117: Successful | N117: 2015-04-09
A118: 28 | B118: 2015-04-20 | D118: Kalpataru Power Transmission Ltd | E118: Accu | F118: =(227+237)/2 -> 232.00 | H118: 298 | I118: 298.00 | J118: Target Achieved | K118: 66.00 | L118: 28.45% | M118: Successful | N118: 2017-03-29
A119: 29 | B119: 2015-05-04 | D119: Mastek Ltd | E119: Buy | F119: 385.00 | H119: =212.5+331 -> 543.5 | I119: 510.00 | J119: Profit of Rs 158.50/- | K119: 158.50 | L119: 41.17% | M119: Successful | N119: 2015-08-19
A120: 30 | B120: 2015-05-04 | D120: Suprajit Eng | E120: Buy | F120: 115.50 | H120: 146 | I120: 142.00 | J120: Profit of Rs 30.50/- | K120: 30.50 | L120: 26.41% | M120: Successful | N120: 2015-07-17
A121: 31 | B121: 2015-05-27 | D121: TCI | E121: Buy | F121: 237.50 | H121: 279.5 | I121: 278.00 | J121: Target Achieved | K121: 42.00 | L121: 17.68% | M121: Successful | N121: 2015-08-06
A122: 32 | B122: 2015-06-19 | D122: HSIL | E122: Accu | F122: 340.00 | H122: 448 | I122: 448.00 | J122: Target Achieved | K122: 108.00 | L122: 31.76% | M122: Successful | N122: 2017-10-10
A123: 33 | B123: 2015-07-06 | D123: Capital First | E123: Accu | F123: 390.00 | H123: 460 | I123: 460.00 | J123: Target Achieved | K123: 70.00 | L123: 17.95% | M123: Successful | N123: 2016-04-18
A124: 34 | B124: 2015-07-10 | D124: Dolphin OffShore | E124: Accu | F124: 122.5 | H124: 61.00 | I124: 172.00 | J124: Loss of Rs.61.50/- | K124: -61.50 | L124: -50.20% | M124: Unsuccessful | N124: 2018-08-21
A125: 35 | B125: 2015-08-03 | D125: Allcargo logistics | E125: Accu | F125: 297.50 | H125: 350 | I125: 360.00 | J125: Profit of Rs 52.50/- | K125: 52.50 | L125: 17.65% | M125: Successful | N125: 2015-08-16
A126: 36 | B126: 2015-08-03 | D126: Camline Fine | E126: Accu | F126: 115.50 | H126: 149 | I126: 140.00 | J126: Profit of Rs 33.50/- | K126: 33.50 | L126: 29.00% | M126: Successful | N126: 2017-01-05
A127: 37 | B127: 2015-09-04 | D127: TCI | E127: Accu | F127: 226.00 | H127: 292 | I127: 292.00 | J127: Target Achieved | K127: 66.00 | L127: 29.20% | M127: Successful | N127: 2015-10-09
A128: 38 | B128: 2015-09-07 | D128: Kalpataru Power Transmission Ltd | E128: Accu | F128: 232.50 | H128: 312.5 | I128: 310.00 | J128: Target Achieved | K128: 80.00 | L128: 34.41% | M128: Successful | N128: 2017-03-29
A129: 39 | B129: 2015-09-21 | D129: LLOYD ELECTRIC & ENG LTD | E129: Accu | F129: 196.50 | H129: 238 | I129: 238.00 | J129: Target Achieved | K129: 41.50 | L129: 21.12% | M129: Successful | N129: 2015-10-14
A130: 40 | B130: 2015-09-24 | D130: L&T Finance Holding | E130: Accu | F130: 65.00 | H130: 82 | I130: 82.00 | J130: Target Achieved | K130: 17.00 | L130: 26.15% | M130: Successful | N130: 2016-07-27
A131: 41 | B131: 2015-10-14 | D131: KEC International ltd | E131: Accu | F131: 144.00 | H131: 182.5 | I131: 181.00 | J131: Target Achieved | K131: 38.50 | L131: 26.74% | M131: Successful | N131: 2017-03-23
A132: 42 | B132: 2015-10-14 | D132: Gruh Finance | E132: Accu | F132: 264.00 | H132: 311 | I132: 311.00 | J132: Target Achieved | K132: 47.00 | L132: 17.80% | M132: Successful | N132: 2016-08-22
A133: 43 | B133: 2015-11-10 | D133: Pidilitind | E133: Buy | F133: 549.50 | H133: 630 | I133: 630.00 | J133: Target Achieved | K133: 80.50 | L133: 14.65% | M133: Successful | N133: 2016-02-19
A134: 44 | B134: 2015-12-04 | D134: Zensar Technology | E134: Accu | F134: 1027.50 | H134: 1315 | I134: 1250.00 | J134: Target Achieved | K134: 287.50 | L134: 27.98% | M134: Successful | N134: 2018-05-24
A135: 45 | B135: 2015-12-29 | D135: Vinati Organics Ltd | E135: Accu | F135: 465.00 | H135: 540 | I135: 540.00 | J135: Target Achieved | K135: 75.00 | L135: 16.13% | M135: Successful | N135: 2016-06-09
A136: 46 | B136: 2016-01-11 | D136: GSFC | E136: Buy | F136: 81.00 | H136: 110 | I136: 110.00 | J136: Target Achieved | K136: 29.00 | L136: 35.80% | M136: Successful | N136: 2017-01-10
A137: 47 | B137: 2016-01-13 | D137: SSWL | E137: Buy | F137: 417.50 | H137: 547 | I137: 535.00 | J137: Target Achieved | K137: 129.50 | L137: 31.02% | M137: Successful | N137: 2016-07-27
A138: 48 | B138: 2016-02-08 | D138: Persistent System Ltd | E138: Accu | F138: 650.00 | H138: 800 | I138: 800.00 | J138: Target Achieved | K138: 150.00 | L138: 23.08% | M138: Successful | N138: 2018-02-23
A139: 49 | B139: 2016-03-04 | D139: UPL | E139: Accu | F139: 437.50 | H139: 504.5 | I139: 522.00 | J139: Profit of Rs.67/- | K139: 67.00 | L139: 15.31% | M139: Successful | N139: 2016-04-20
A140: 50 | B140: 2016-03-09 | D140: Ashoka Buildcon Ltd | E140: Accu | F140: 189.50 | H140: 218 | I140: 218.00 | J140: Target Achieved | K140: 28.50 | L140: 15.04% | M140: Successful | N140: 2017-10-26
A141: 51 | B141: 2016-04-11 | D141: PTC INDIA FIN SERV LTD | E141: Accu | F141: 36.5 | H141: 15.85 | I141: 60.00 | J141: Loss of Rs.20.65/- | K141: -20.65 | L141: -56.58% | M141: Unsuccessful | N141: 2019-06-11
A142: 52 | B142: 2016-04-12 | D142: CAMLINFINE $ | E142: Accu | F142: 93.00 | H142: 149 | I142: 140.00 | J142: Profit of Rs 56/- | K142: 56.00 | L142: 60.22% | M142: Successful | N142: 2017-01-05
A143: 53 | B143: 2016-04-12 | D143: Greaves Cotton Ltd. | E143: Accu | F143: 130.00 | H143: 150 | I143: 150-155 | J143: Target Achieved | K143: 20.00 | L143: 15.38% | M143: Successful | N143: 2016-07-13
A144: 54 | B144: 2016-04-13 | D144: DHFL | E144: Accu | F144: 196.00 | H144: 299 | I144: 299.00 | J144: Target Achieved | K144: 103.00 | L144: 52.55% | M144: Successful | N144: 2016-09-07
A145: 55 | B145: 2016-04-13 | D145: Magma | E145: Accu | F145: 88.00 | H145: 103 | I145: 103.00 | J145: Target Achieved | K145: 15.00 | L145: 17.05% | M145: Successful | N145: 2016-06-09
A146: 56 | B146: 2016-05-02 | D146: KEC International ltd $ | E146: Accu | F146: 127.50 | H146: 148 | I146: 148-150 | J146: Target Achieved | K146: =H146-F146 -> 20.50 | L146: =K146/F146 -> 16.08% | M146: Successful | N146: 2016-07-13
A147: 57 | B147: 2016-05-03 | D147: Mindtree | E147: Accu | F147: 675.00 | H147: 815 | I147: 790-800 | J147: Target Achieved | K147: 140.00 | L147: 20.74% | M147: Successful | N147: 2018-02-23
A148: 58 | B148: 2016-06-01 | D148: Atulauto | E148: Accu | F148: 500 | H148: 232.50 | I148: 565-570 | J148: Loss of Rs.267.50 /- | K148: -267.50 | L148: -53.50% | M148: Unsuccessful | N148: 2019-09-27
A149: 59 | B149: 2016-06-06 | D149: TRITURBINE | E149: Accu | F149: 110.00 | H149: 126.5 | I149: 125.00 | J149: Profit of Rs.16.50/- | K149: 16.50 | L149: 15.00% | M149: Successful | N149: 2016-07-01
A150: 60 | B150: 2016-06-17 | D150: Pennar Industries Ltd | E150: Accu | F150: 44.00 | H150: 69.5 | I150: 69.50 | J150: Profit of Rs.25.50/- | K150: 25.50 | L150: 57.95% | M150: Successful | N150: 2017-08-30
A151: 61 | B151: 2016-06-28 | D151: EVEREADY | E151: Accu | F151: 262.50 | H151: 340 | I151: 333.00 | J151: Profit of Rs.77.50/- | K151: 77.50 | L151: 29.52% | M151: Successful | N151: 2017-10-09
A152: 62 | B152: 2016-06-28 | D152: FIEMIND | E152: Accu | F152: 840.00 | H152: 1230 | I152: 1230.00 | J152: Target Achieved | K152: 390.00 | L152: 46.43% | M152: Successful | N152: 2016-10-06
A153: 63 | B153: 2016-07-05 | D153: Bajaj Corp Ltd | E153: Accu | F153: 395 | H153: =(468.5+342.5)/2 -> 405.50 | I153: 510.00 | J153: Profit of Rs.10.50/- | K153: =H153-F153 -> 10.50 | L153: =K153/F153 -> 3% | M153: Neutral | N153: 2019-05-21
A154: 64 | B154: 2016-08-02 | D154: GPPL $ | E154: Buy | F154: =169.5-12.8 -> 156.7 | H154: 77.00 | I154: 198-200 | J154: Loss of Rs.79.7/- | K154: -79.70 | L154: -50.86% | M154: Unsuccessful | N154: 2019-02-26
A155: 65 | B155: 2016-08-04 | D155: WONDERLA HOLIDAYS LTD | E155: Accu | F155: 400 | H155: 305.00 | I155: 475.00 | J155: Loss of Rs.95/- | K155: -95.00 | L155: -23.75% | M155: Unsuccessful | N155: 2019-05-21
A156: 66 | B156: 2016-08-11 | D156: CAMLINFINE | E156: Accu | F156: 86.50 | H156: 130 | I156: 130.00 | J156: Profit of Rs.43.50/- | K156: 43.50 | L156: 50.29% | M156: Successful | N156: 2017-12-22
A157: 67 | B157: 2016-08-18 | D157: GRANULES | E157: Accu | F157: 133.5 | H157: 126.50 | I157: 178.00 | J157: Exit | K157: -7.00 | L157: -5.24% | M157: Unsuccessful | N157: 2016-09-02
A158: 68 | B158: 2016-08-31 | D158: VA TECH WABAG | E158: Accu | F158: 560.00 | H158: 725 | I158: 725.00 | J158: Target Achieved | K158: 165.00 | L158: 29.46% | M158: Successful | N158: 2016-03-27
A159: 69 | B159: 2016-09-01 | D159: SKIPPER LIMITED | E159: Accu | F159: 160.50 | H159: 210 | I159: 210.00 | J159: Target Achieved | K159: 49.50 | L159: 30.84% | M159: Successful | N159: 2017-05-16
A160: 70 | B160: 2016-10-03 | D160: IFBIND | E160: Accu | F160: 430.00 | H160: 596 | I160: 575.00 | J160: Profit of Rs.166/- | K160: 166.00 | L160: 38.60% | M160: Successful | N160: 2017-02-03
A161: 71 | B161: 2016-10-14 | D161: ASIANTILES | E161: Accu | F161: 280.00 | H161: 345 | I161: 345.00 | J161: Target Achieved | K161: =H161-F161 -> 65.00 | L161: =K161/F161 -> 23.21% | M161: Successful | N161: 2017-03-20
A162: 72 | B162: 2016-10-14 | D162: DEEPIND | E162: Accu | F162: 245.00 | H162: 325.5 | I162: 330.00 | J162: Profit of Rs.80.5/- | K162: 80.50 | L162: 32.86% | M162: Successful | N162: 2017-02-03
A163: 73 | B163: 2016-10-17 | D163: DCBBANK | E163: Accu | F163: 125.00 | H163: 160 | I163: 160.00 | J163: Target Achieved | K163: 35.00 | L163: 28.00% | M163: Successful | N163: 2017-03-09
A164: 74 | B164: 2016-10-17 | D164: ORIENTREF | E164: Accu | F164: 114.00 | H164: 145 | I164: 145.00 | J164: Target Achieved | K164: 31.00 | L164: =K164/F164 -> 27.19% | M164: Successful | N164: 2017-05-04
A165: 75 | B165: 2016-10-17 | D165: GANECOS | E165: Accu | F165: 212.00 | H165: 280 | I165: 276.00 | J165: Profit of Rs.68/- | K165: 68.00 | L165: 32.08% | M165: Successful | N165: 2017-05-03
A166: 76 | B166: 2016-11-04 | D166: NBCC | E166: Accu | F166: 155.00 | H166: 210 | I166: 210.00 | J166: Profit of Rs.55/- | K166: 55.00 | L166: 35.48% | M166: Successful | N166: 2017-07-28
A167: 77 | B167: 2016-12-06 | D167: PRECAM | E167: Accu | F167: 150.5 | H167: 72.50 | I167: 174.00 | J167: Loss of Rs.78/- | K167: -78.00 | L167: -51.83% | M167: Unsuccessful | N167: 2018-08-21
A168: 78 | B168: 2016-12-08 | D168: INFRATEL | E168: Accu | F168: 380.00 | H168: 478 | I168: 468.00 | J168: Target Achieved | K168: =H168-F168 -> 98.00 | L168: =K168/F168 -> 25.79% | M168: Successful | N168: 2017-10-17
A169: 79 | B169: 2016-12-30 | D169: GODREJPROP | E169: Accu | F169: 305.00 | H169: 375 | I169: 375.00 | J169: Target Achieved | K169: 70.00 | L169: 22.95% | M169: Successful | N169: 2017-02-02
A170: 80 | B170: 2017-01-04 | D170: DEEPAKNTR | E170: Accu | F170: 99.50 | H170: 158 | I170: 158.00 | J170: Target Achieved | K170: 58.50 | L170: 58.79% | M170: Successful | N170: 2017-06-12
A171: 81 | B171: 2017-01-04 | D171: DEEPAKNTR | E171: Accu | F171: 99.50 | H171: 158 | I171: 158.00 | J171: Target Achieved | K171: 58.50 | L171: 58.79% | M171: Successful | N171: 2017-06-12
A172: 82 | B172: 2017-02-20 | D172: RECLTD | E172: Accu | F172: 140.50 | H172: 220 | I172: 220.00 | J172: Target Achieved | K172: =H172-F172 -> 79.50 | L172: =K172/F172 -> 56.58% | M172: Successful | N172: 2017-05-09
A173: 83 | B173: 2017-02-20 | D173: SUBROS | E173: Accu | F173: 202.50 | H173: 234 | I173: 234.00 | J173: Target Achieved | K173: 31.50 | L173: 15.56% | M173: Successful | N173: 2017-04-11
A174: 84 | B174: 2017-03-24 | D174: VRLLOG | E174: Accu | F174: 300.50 | H174: 417.5 | I174: 420.00 | J174: Profit of Rs.117/- | K174: =H174-F174 -> 117.00 | L174: =K174/F174 -> 38.94% | M174: Successful | N174: 2017-12-01
A175: 85 | B175: 2017-03-24 | D175: FIEMIND | E175: Accu | F175: 850.00 | H175: 1042.5 | I175: 1023.00 | J175: Profit of Rs 192.50/- | K175: 192.50 | L175: 22.65% | M175: Successful | N175: 2017-04-05
A176: 86 | B176: 2017-04-05 | D176: RATNAMANI | E176: Accu | F176: 785.00 | H176: 930 | I176: 920.00 | J176: Profit of Rs.145/- | K176: =H176-F176 -> 145.00 | L176: =K176/F176 -> 18.47% | M176: Successful | N176: 2017-08-29
A177: 87 | B177: 2017-04-06 | D177: ZEEMEDIA | E177: Accu | F177: 40 | H177: 13.10 | I177: 60.00 | J177: Loss of Rs.26.9/- | K177: -26.90 | L177: -67.25% | M177: Unsuccessful | N177: 2018-02-07
A178: 88 | B178: 2017-04-12 | D178: DABUR | E178: Accu | F178: 289.50 | H178: 354 | I178: 360.00 | J178: Profit of Rs.64.5/- | K178: =H178-F178 -> 64.50 | L178: =K178/F178 -> 22.28% | M178: Successful | N178: 2017-11-01
A179: 89 | B179: 2017-04-20 | D179: KPRMILL | E179: Accu | F179: 700.00 | H179: 840 | I179: 840.00 | J179: Profit of Rs.140/- | K179: 140.00 | L179: 20.00% | M179: Successful | N179: 2017-06-07
A180: 90 | B180: 2017-06-01 | D180: ESSELPACK | E180: Accu | F180: 130.00 | H180: 144.25 | I180: 170.00 | J180: Profit of Rs.14.25/- | K180: 14.25 | L180: 10.96% | M180: Successful | N180: 2019-07-29
A181: 91 | B181: 2017-06-15 | D181: KEI | E181: Accu | F181: 214.50 | H181: 262 | I181: 262.00 | J181: Profit of Rs.47.5/- | K181: 47.50 | L181: 22.14% | M181: Successful | N181: 2017-08-30
A182: 92 | B182: 2017-07-17 | D182: MAYURUNIQ | E182: Accu | F182: 370.00 | H182: 447.5 | I182: 450.00 | J182: Target Achieved | K182: 77.50 | L182: 20.95% | M182: Successful | N182: 2017-10-27
A183: 93 | B183: 2017-07-27 | D183: RAMCOCEM | E183: Accu | F183: 657.50 | H183: 825 | I183: 820.00 | J183: Target Achieved | K183: 167.50 | L183: 25.48% | M183: Successful | N183: 2017-12-21
A184: 94 | B184: 2017-08-17 | D184: FINPIPE | E184: Accu | F184: 605.00 | H184: 750 | I184: 750.00 | J184: Profit of Rs.145/- | K184: 145.00 | L184: 23.97% | M184: Successful | N184: 2017-10-19
A185: 95 | B185: 2017-09-01 | D185: SHK | E185: Accu | F185: 255 | H185: 217.25 | I185: 320.00 | J185: Loss of Rs.37.75/- | K185: -37.75 | L185: -15% | M185: Unsuccessful | N185: 2019-07-15
A186: 96 | B186: 2017-09-19 | D186: SKIPPER | E186: Accu | F186: 215.00 | H186: 258 | I186: 258.00 | J186: Target Achieved | K186: 43.00 | L186: 20.00% | M186: Successful | N186: 2017-11-01
A187: 97 | B187: 2017-09-19 | D187: SKIPPER | E187: Accu | F187: 215.00 | H187: 258 | I187: 258.00 | J187: Target Achieved | K187: 43.00 | L187: 20.00% | M187: Successful | N187: 2017-11-01
A188: 98 | B188: 2017-09-20 | D188: CAMLINFINE$ | E188: Accu | F188: 75.00 | H188: 90 | I188: 90.00 | J188: Profit of Rs.15.00/- | K188: =H188-F188 -> 15.00 | L188: =K188/F188 -> 20.00% | M188: Successful | N188: 2017-10-11
A189: 99 | B189: 2017-10-03 | D189: GNA | E189: Accu | F189: 315.00 | H189: 392 | I189: 384.00 | J189: Profit of Rs.77/- | K189: 77.00 | L189: 24.44% | M189: Successful | N189: 2017-10-09
A190: 100 | B190: 2017-10-05 | D190: NOCIL | E190: Accu | F190: 145.00 | H190: 179 | I190: 180.00 | J190: Profit of Rs.34/- | K190: 34.00 | L190: 23.45% | M190: Successful | N190: 2017-10-17
A191: 101 | B191: 2017-10-06 | D191: CENTURYPLY | E191: Accu | F191: 256.00 | H191: 323 | I191: 320.00 | J191: Target Achieved | K191: 67.00 | L191: 26.17% | M191: Successful | N191: 2017-11-28
A192: 102 | B192: 2017-10-09 | D192: EIHOTEL | E192: Accu | F192: 137.50 | H192: 184 | I192: 183.00 | J192: Profit of Rs.46.5/- | K192: 46.50 | L192: 33.82% | M192: Successful | N192: 2018-01-08
A193: 103 | B193: 2017-10-10 | D193: NRBBEARING | E193: Accu | F193: 125.50 | H193: 158 | I193: 155.00 | J193: Profit of Rs.32.5/- | K193: 32.50 | L193: 25.90% | M193: Successful | N193: 2017-11-28
A194: 104 | B194: 2017-10-10 | D194: BOROSIL | E194: Accu | F194: 895.00 | H194: 1122.5 | I194: 1078.00 | J194: Profit of Rs.227.5/- | K194: 227.50 | L194: 25.42% | M194: Successful | N194: 2018-01-17
A195: 105 | B195: 2017-10-12 | D195: CYIENT | E195: Accu | F195: 525.00 | H195: 629 | I195: 629.00 | J195: Target Achieved | K195: 104.00 | L195: 19.81% | M195: Successful | N195: 2018-01-19
A196: 106 | B196: 2017-11-07 | D196: HATSUN | E196: Accu | F196: 740.00 | H196: 892.5 | I196: 900.00 | J196: Profit of Rs.152.5/- | K196: =H196-F196 -> 152.50 | L196: =K196/F196 -> 20.61% | M196: Successful | N196: 2017-11-13
A197: 107 | B197: 2017-12-04 | D197: SANGHIIND | E197: Accu | F197: 118.50 | H197: 143.5 | I197: 145.00 | J197: Profit of Rs.25/- | K197: 25.00 | L197: 21.10% | M197: Successful | N197: 2017-12-28
A198: 108 | B198: 2017-12-21 | D198: KAJARIACER | E198: Accu | F198: 715 | H198: 500.00 | I198: 872.00 | J198: Loss of Rs.215/- | K198: -215.00 | L198: -30.07% | M198: Unsuccessful | N198: 2019-07-24
A199: 109 | B199: 2017-12-29 | D199: GNA | E199: Accu | F199: 435.00 | H199: 542.5 | I199: 539.00 | J199: Target Achieved | K199: 107.50 | L199: 24.71% | M199: Successful | N199: 2018-04-16
A200: 110 | B200: 2017-12-29 | D200: ZENSARTECH | E200: Accu | F200: 885.00 | H200: 1090 | I200: 1084.00 | J200: Target Achieved | K200: 205.00 | L200: 23.16% | M200: Successful | N200: 2018-04-23
A201: 111 | B201: 2018-04-02 | D201: EVERESTIND | E201: Accu | F201: 478.50 | H201: 442 | I201: 613.00 | J201: Loss of Rs.36.50 /- | K201: =H201-F201 -> -36.50 | L201: =K201/F201 -> -7.63% | M201: Unsuccessful | N201: 2019-10-24
A202: 112 | B202: 2018-04-04 | D202: GPPL$ | E202: Accu | F202: =141.5-7.3 -> 134.2 | H202: 77.00 | I202: 180.00 | J202: Loss of Rs.57.2/- | K202: -57.20 | L202: -42.62% | M202: Unsuccessful | N202: 2019-02-26
A203: 113 | B203: 2018-04-19 | D203: MANPASAND | E203: Accu | F203: 430 | H203: 220.00 | I203: 537.00 | J203: Loss of Rs.210/- | K203: -210.00 | L203: -48.84% | M203: Unsuccessful | N203: 2018-06-01
A204: 114 | B204: 2018-04-30 | D204: HEIDELBERG | E204: Accu | F204: 153.5 | H204: 196 | I204: 196.00 | J204: Profit of Rs.42.50/- | K204: 42.50 | L204: 27.69% | M204: Successful | N204: 2019-05-20
A205: 115 | B205: 2018-07-25 | D205: ZEEMEDIA | E205: Accu | F205: 27.5 | H205: 13.10 | I205: 60.00 | J205: Loss of Rs.14.40/- | K205: -14.40 | L205: -52.36% | M205: Unsuccessful | N205: 2018-02-07
A206: 116 | B206: 2018-08-06 | D206: GABRIEL | E206: Accu | F206: 148.5 | H206: 102 | I206: 182.00 | J206: Loss of Rs.46.50/- | K206: =H206-F206 -> -46.50 | L206: =K206/F206 -> -31.31% | M206: Unsuccessful | N206: 2019-07-15
A207: 117 | B207: 2018-08-23 | D207: INDIANHUME | E207: Accu | F207: 285 | H207: 355 | I207: 364.00 | J207: Profit of Rs.70/- | K207: 70.00 | L207: 24.56% | M207: Successful | N207: 2018-12-21
A208: 118 | B208: 2018-08-29 | D208: GRINDWELL | E208: Accu | F208: 525 | H208: 585 | I208: 635.00 | J208: Profit of Rs.60- | K208: =H208-F208 -> 60.00 | L208: =K208/F208 -> 11.43% | M208: Successful | N208: 2019-07-16
A209: 119 | B209: 2018-10-22 | D209: FINPIPE | E209: Accu | F209: 475 | H209: 574 | I209: 570.00 | J209: Target Achieved | K209: 99.00 | L209: 20.84% | M209: Successful | N209: 2018-10-30
A210: 120 | B210: 2018-10-24 | D210: GULFOILLUB | E210: Accu | F210: 707.5 | H210: 872 | I210: 872.00 | J210: Target Achieved | K210: 164.50 | L210: 23.25% | M210: Successful | N210: 2019-01-17
A211: 121 | B211: 2018-10-25 | D211: DBCORP | E211: Accu | F211: 162 | H211: 204 | I211: 209.00 | J211: Profit of Rs.42/- | K211: 42.00 | L211: 25.93% | M211: Successful | N211: 2019-03-15
A212: 122 | B212: 2018-10-26 | D212: RITES | E212: Accu | F212: 240 | H212: 297 | I212: 297.00 | J212: Target Achieved | K212: 57.00 | L212: 23.75% | M212: Successful | N212: 2018-11-13
A213: 123 | B213: 2018-12-05 | D213: BRIGADE | E213: Accu | F213: 202.5 | H213: 255 | I213: 252.00 | J213: Target Achieved | K213: 52.50 | L213: 25.93% | M213: Successful | N213: 2019-03-18 | R213: V
A214: 124 | B214: 2018-12-31 | D214: JKCEMENT | E214: Accu | F214: 710 | H214: 866 | I214: 866.00 | J214: Target Achieved | K214: 156.00 | L214: 21.97% | M214: Successful | N214: 2019-03-29 | R214: V
A215: 125 | B215: 2019-02-26 | D215: MARICO | E215: Accu | F215: 337.25 | H215: 398.5 | I215: 411.00 | J215: Profit of Rs.61.25/- | K215: 61.25 | L215: 18.16% | M215: Successful | N215: 2019-10-22 | R215: V
A216: 126 | B216: 2019-04-04 | D216: ITDCEM | E216: Accu | F216: 130 | H216: 65 | I216: 158.00 | J216: Loss of Rs.65 /- | K216: -65.00 | L216: -50.00% | M216: Unsuccessful | N216: 2019-09-18 | R216: K
A217: 127 | B217: 2017-10-09 | D217: RECLTD | E217: Accu | F217: 141.5 | H217: 183.5 | I217: 210.00 | J217: Profit of Rs.42/- | K217: 42.00 | L217: 29.68% | M217: Successful | N217: 2017-11-03 | R217: K
A218: 128 | B218: 2017-12-05 | D218: ALLCARGO | E218: Accu | F218: 172.00 | H218: 155.25 | I218: 230.00 | J218: Loss of Rs.16.75/- | K218: -16.75 | L218: -9.74% | M218: Unsuccessful | N218: 2019-11-18 | R218: K
A219: 129 | B219: 2018-10-25 | D219: GODREJCP | E219: Accu | F219: 698.5 | H219: 890 | I219: 890.00 | J219: Profit of Rs.191.50/- | K219: 191.50 | L219: 27.42% | M219: Successful | N219: 2021-05-12 | R219: V
A220: 130 | B220: 2017-05-22 | D220: GREAVESCOT | E220: Accu | F220: 127.6 | H220: 138 | I220: 190.00 | J220: Profit of Rs.10.40 | K220: 10.40 | L220: 8.15% | M220: Successful | N220: 2019-11-05 | R220: K
A221: 131 | B221: 2018-02-27 | D221: MOLDTKPAC | E221: Accu | F221: 317 | H221: 382.5 | I221: 398.00 | J221: Profit of Rs.65.5 | K221: 65.50 | L221: 20.66% | M221: Successful | N221: 2021-02-11 | R221: K
A222: 132 | B222: 2018-03-05 | D222: LICHSGFIN | E222: Accu | F222: =510-14.4 -> 495.60 | H222: 350 | I222: 672.00 | J222: Loss of Rs.145.60/- | K222: -145.60 | L222: -29.38% | M222: Unsuccessful | N222: 2020-02-26 | R222: V
A223: 133 | B223: 2018-05-17 | D223: PHILIPCARB | E223: Accu | F223: 230.30 | H223: 102.5 | I223: 348.00 | J223: Loss of Rs.127.80/- | K223: -127.80 | L223: -55.49% | M223: Unsuccessful | N223: 2020-03-06 | R223: V
A224: 134 | B224: 2018-06-07 | D224: KEC | E224: Accu | F224: =342.5-5.1 -> 337.4 | H224: 412.5 | I224: 439.00 | J224: Profit of Rs.75.10 | K224: 75.10 | L224: 22.26% | M224: Successful | N224: 2021-02-03 | R224: K
A225: 135 | B225: 2018-07-04 | D225: ASHOKLEY | E225: Accu | F225: =127.5-5.53 -> 121.97 | H225: 122.50 | I225: 170.00 | J225: Profit of Rs.0.53/- | K225: 0.53 | L225: 0% | M225: Neutral | N225: 2021-08-23 | R225: V
A226: 136 | B226: 2018-07-13 | D226: FCONSUMER | E226: Accu | F226: 46.50 | H226: 17 | I226: 59.00 | J226: Loss of Rs.29.50/- | K226: -29.50 | L226: -63.44% | M226: Unsuccessful | N226: 2020-02-26 | R226: V
A227: 137 | B227: 2018-10-23 | D227: JKPAPER | E227: Accu | F227: 156.5 | H227: 207.5 | I227: 191.00 | J227: Target Achieved | K227: 51.00 | L227: 32.59% | M227: Successful | N227: 2021-06-22 | R227: V
A228: 138 | B228: 2018-12-05 | D228: CCL | E228: Accu | F228: 259.5 | H228: 320 | I228: 320.00 | J228: Target Achieved | K228: 60.50 | L228: 23.31% | M228: Successful | N228: 2021-05-07 | R228: V
A229: 139 | B229: 2018-12-05 | D229: VARROC | E229: Accu | F229: 715 | H229: 445 | I229: 840.00 | J229: Loss of Rs.270/- | K229: -270.00 | L229: -37.76% | M229: Unsuccessful | N229: 2019-12-01 | R229: V
A230: 140 | B230: 2019-01-04 | D230: MGL | E230: Accu | F230: 875 | H230: 1165 | I230: 1185.00 | J230: Profit of Rs.290/- | K230: 290.00 | L230: 33.14% | M230: Successful | N230: 2020-01-17 | R230: V
A231: 141 | B231: 2019-04-04 | D231: COCHINSHIP | E231: Accu | F231: =387-14.63 -> 372.37 | H231: 490 | I231: 490.00 | J231: Target Achieved | K231: 117.63 | L231: 31.59% | M231: Successful | N231: 2020-01-20 | R231: V
... 51 more rows
